Workbook

Sheet I. General Information
A1: LEA ARP ESSER Plan: “A Plan for the LEA's Use of ARP ESSER Funds”
A3: Please submit in both Excel and PDF form to ESSER@doe.nh.gov by 1/13/2023.
A5: The American Rescue Plan Elementary and Secondary School Emergency Relief (“ARP ESSER”) Fund, authorized under the American Rescue Plan (“ARP”) | AQ5: Dst ID | AR5: Dst Name | AS5: School ID | AT5: School Name | AV5: Dst ID | AW5: Dst Name
A6: Act of 2021, provides New Hampshire over $350 million to support schools in safely reopening and sustaining safe operations of schools while meeting the academic, | AQ6: 9 | AR6: Allenstown | AT6: Allenstown Elementary School | AV6: 9 | AW6: Allenstown
A7: social, emotional, and mental health needs of students resulting from the coronavirus disease 2019 (“COVID-19”) pandemic. | AQ7: 9 | AR7: Allenstown | AS7: 22580 | AT7: Armand R. Dupont School | AV7: 15 | AW7: Alton
AQ8: 17 | AR8: Amherst | AS8: 22480 | AT8: Amherst Middle School | AV8: 17 | AW8: Amherst
A9: This mandatory template is intended to collect all federally required information from an LEA in a convenient format and to assist LEAs in meeting the federal requirement that, | AQ9: 17 | AR9: Amherst | AS9: 21745 | AT9: Clark-Wilkins School | AV9: 19 | AW9: Andover
A10: requirement that, an LEA shall publish an LEA ARP ESSER Plan, which is often called a “school district use of funds plan.” See the Department of Education's | AQ10: 19 | AR10: Andover | AS10: 21750 | AT10: Andover Elementary School | AV10: 23 | AW10: Ashland
A11: most current guidance posted here: https://omb.report/icr/202201-1810-002/doc/117519100. | AQ11: 23 | AR11: Ashland | AS11: 22130 | AT11: Ashland Elementary School | AV11: 29 | AW11: Auburn
AQ12: 29 | AR12: Auburn | AS12: 20010 | AT12: Auburn Village School | AV12: 31 | AW12: Barnstead
A13: For further context, please reference ARPA (https://www.congress.gov/bill/117th-congress/house-bill/1319/text) or the Interim Final Requirements of ARP | AQ13: 31 | AR13: Barnstead | AS13: 20530 | AT13: Barnstead Elementary School | AV13: 33 | AW13: Barrington
A14: ESSER in which the U.S. Department of Education established these requirements (https://www.govinfo.gov/content/pkg/FR-2021-04-22/pdf/2021-08359.pdf). | AQ14: 33 | AR14: Barrington | AS14: 22485 | AT14: Barrington Elementary School | AV14: 35 | AW14: Bartlett
AQ15: 33 | AR15: Barrington | AS15: 22030 | AT15: Early Childhood Learning Center | AV15: 39 | AW15: Bath
A16: I. General Information | AQ16: 35 | AR16: Bartlett | AS16: 29010 | AT16: Josiah Bartlett Elementary School | AV16: 41 | AW16: Bedford
AQ17: 39 | AR17: Bath | AS17: 20325 | AT17: Bath Village School | AV17: 51 | AW17: Berlin
A18: 1) School District / Charter School Name: | C18: Shaker Regional | N18: → Cell C18 Must be Input for Formulas to Populate Correctly | AQ18: 41 | AR18: Bedford | AS18: 20860 | AT18: Bedford High School | AV18: 53 | AW18: Bethlehem
AQ19: 41 | AR19: Bedford | AS19: 28555 | AT19: McKelvie Intermediate School | AV19: 57 | AW19: Bow
A20: 2) District ID Number: | C20: =IFERROR(INDEX('School ID'!$G$2:$G$199, SMALL(IF($C$18='I. General Information'!$AW$6:$AW$205, ROW('I. General Information'!$AW$6:$AW$205)-ROW($AW$6)+1), ROW(1:1))),"" ) -> 486 | N20: → Autopopulates upon Selection | AQ20: 41 | AR20: Bedford | AS20: 21005 | AT20: Memorial School | AV20: 63 | AW20: Brentwood
AQ21: 41 | AR21: Bedford | AS21: 20990 | AT21: Peter Woodbury School | AV21: 71 | AW21: Brookline
A22: 3) SAU Number: | C22: =IFERROR(INDEX(Enrollments!$C$2:$C$197, SMALL(IF($C$18='I. General Information'!$AW$6:$AW$205, ROW('I. General Information'!$AW$6:$AW$205)-ROW($AW$6)+1), ROW(1:1))),"" ) -> 80 | N22: → Autopopulates upon Selection | AQ22: 41 | AR22: Bedford | AS22: 21000 | AT22: Riddle Brook School | AV22: 75 | AW22: Campton
AQ23: 41 | AR23: Bedford | AS23: 27680 | AT23: Ross A. Lurgio Middle School | AV23: 79 | AW23: Candia
A24: 4) Date of Publication: | C24: 2022-12-19 | AQ24: 51 | AR24: Berlin | AS24: 28560 | AT24: Berlin Middle School | AV24: 93 | AW24: Chester
AQ25: 51 | AR25: Berlin | AS25: 20045 | AT25: Berlin Senior High School | AV25: 95 | AW25: Chesterfield
A26: 5) Approver Name - | C26: Michael J. Tursi, Superintendent | AQ26: 51 | AR26: Berlin | AS26: 20050 | AT26: Hillside Elementary School | AV26: 99 | AW26: Chichester
A27: (Superintendent / Head of School): | AQ27: 53 | AR27: Bethlehem | AS27: 27035 | AT27: Bethlehem Elementary School | AV27: 101 | AW27: Claremont
AQ28: 57 | AR28: Bow | AS28: 21400 | AT28: Bow Elementary School | AV28: 105 | AW28: Colebrook
A29: 6) Email & Telephone: | C29: mtursi@sau80.org 603-267-9223 | AQ29: 57 | AR29: Bow | AS29: 20680 | AT29: Bow High School | AV29: 111 | AW29: Concord
AQ30: 57 | AR30: Bow | AS30: 27375 | AT30: Bow Memorial School | AV30: 112 | AW30: Contoocook Valley
AQ31: 63 | AR31: Brentwood | AS31: 20675 | AT31: Swasey Central School | AV31: 113 | AW31: Conway
AQ32: 71 | AR32: Brookline | AS32: 20555 | AT32: Captain Samuel Douglass Academy | AV32: 115 | AW32: Cornish
AQ33: 71 | AR33: Brookline | AS33: 27765 | AT33: Richard Maghakian Memorial School | AV33: 117 | AW33: Croydon
AQ34: 75 | AR34: Campton | AS34: 21800 | AT34: Campton Elementary School | AV34: 127 | AW34: Deerfield
AQ35: 79 | AR35: Candia | AS35: 22335 | AT35: Henry W. Moore School | AV35: 131 | AW35: Derry Cooperative
AQ36: 93 | AR36: Chester | AS36: 20535 | AT36: Chester Academy | AV36: 141 | AW36: Dover
AQ37: 95 | AR37: Chesterfield | AS37: 20500 | AT37: Chesterfield Central School | AV37: 142 | AW37: Dresden
AQ38: 99 | AR38: Chichester | AS38: 21140 | AT38: Chichester Central School | AV38: 149 | AW38: Dunbarton
AQ39: 101 | AR39: Claremont | AS39: 22590 | AT39: Bluff School | AV39: 153 | AW39: East Kingston
AQ40: 101 | AR40: Claremont | AS40: 20145 | AT40: Claremont Middle School | AV40: 165 | AW40: Epping
AQ41: 101 | AR41: Claremont | AS41: 20115 | AT41: Disnard Elementary School | AV41: 167 | AW41: Epsom
AQ42: 101 | AR42: Claremont | AS42: 20165 | AT42: Maple Avenue School | AV42: 171 | AW42: Errol
AQ43: 101 | AR43: Claremont | AS43: 20160 | AT43: Stevens High School | AV43: 172 | AW43: Exeter Region Cooperative
AQ44: 105 | AR44: Colebrook | AS44: 20140 | AT44: Colebrook Academy | AV44: 173 | AW44: Exeter
AQ45: 105 | AR45: Colebrook | AS45: 20185 | AT45: Colebrook Elementary School | AV45: 174 | AW45: Fall Mountain Regional
AQ46: 111 | AR46: Concord | AS46: 20195 | AT46: Abbot-Downing School | AV46: 175 | AW46: Farmington
AQ47: 111 | AR47: Concord | AS47: 20240 | AT47: Beaver Meadow School | AV47: 185 | AW47: Franklin
AQ48: 111 | AR48: Concord | AS48: 26490 | AT48: Broken Ground School | AV48: 187 | AW48: Freedom
AQ49: 111 | AR49: Concord | AS49: 20260 | AT49: Christa McAuliffe School | AV49: 189 | AW49: Fremont
AQ50: 111 | AR50: Concord | AS50: 20305 | AT50: Concord High School | AV50: 191 | AW50: Gilford
AQ51: 111 | AR51: Concord | AS51: 20285 | AT51: Mill Brook School | AV51: 195 | AW51: Gilmanton
AQ52: 111 | AR52: Concord | AS52: 20250 | AT52: Rundlett Middle School | AV52: 199 | AW52: Goffstown
AQ53: 112 | AR53: Contoocook Valley | AS53: 20270 | AT53: Antrim Elementary School | AV53: 203 | AW53: Gorham Randolph Shelburne Cooperative
AQ54: 112 | AR54: Contoocook Valley | AS54: 22215 | AT54: Conval Regional High School | AV54: 204 | AW54: Goshen
AQ55: 112 | AR55: Contoocook Valley | AS55: 22290 | AT55: Dublin Consolidated School | AV55: 208 | AW55: Governor Wentworth Regional
AQ56: 112 | AR56: Contoocook Valley | AS56: 22230 | AT56: Francestown Elementary School | AV56: 211 | AW56: Grantham
AQ57: 112 | AR57: Contoocook Valley | AS57: 22245 | AT57: Great Brook School | AV57: 215 | AW57: Greenland
AQ58: 112 | AR58: Contoocook Valley | AS58: 22210 | AT58: Greenfield Elementary School | AV58: 223 | AW58: Hampstead
AQ59: 112 | AR59: Contoocook Valley | AS59: 22250 | AT59: Hancock Elementary School | AV59: 225 | AW59: Hampton
AQ60: 112 | AR60: Contoocook Valley | AS60: 22260 | AT60: Peterborough Elementary School | AV60: 227 | AW60: Hampton Falls
AQ61: 112 | AR61: Contoocook Valley | AS61: 22310 | AT61: Pierce Elementary School | AV61: 233 | AW61: Hanover
AQ62: 112 | AR62: Contoocook Valley | AS62: 22225 | AT62: South Meadow School | AV62: 235 | AW62: Harrisville
AQ63: 112 | AR63: Contoocook Valley | AS63: 22295 | AT63: Temple Elementary School | AV63: 238 | AW63: Haverhill Cooperative
AQ64: 113 | AR64: Conway | AS64: 22330 | AT64: A. Crosby Kennett Middle School | AV64: 245 | AW64: Henniker
AQ65: 113 | AR65: Conway | AS65: 27010 | AT65: Conway Elementary School | AV65: 247 | AW65: Hill
AQ66: 113 | AR66: Conway | AS66: 20340 | AT66: John H. Fuller School | AV66: 251 | AW66: Hillsboro-Deering Cooperative
AQ67: 113 | AR67: Conway | AS67: 20335 | AT67: Kennett High School | AV67: 255 | AW67: Hinsdale
AQ68: 113 | AR68: Conway | AS68: 20345 | AT68: Pine Tree Elementary School | AV68: 257 | AW68: Holderness
AQ69: 115 | AR69: Cornish | AS69: 20330 | AT69: Cornish Elementary School | AV69: 259 | AW69: Hollis
AQ70: 117 | AR70: Croydon | AS70: 20175 | AT70: Croydon Village School | AV70: 260 | AW70: Hollis-Brookline Cooperative
AQ71: 127 | AR71: Deerfield | AS71: 21960 | AT71: Deerfield Community School | AV71: 261 | AW71: Hooksett
AQ72: 131 | AR72: Derry Cooperative | AS72: 22595 | AT72: Derry Early Education Program | AV72: 263 | AW72: Hopkinton
AQ73: 131 | AR73: Derry Cooperative | AS73: 29156 | AT73: Derry Village School | AV73: 267 | AW73: Hudson
AQ74: 131 | AR74: Derry Cooperative | AS74: 20380 | AT74: East Derry Memorial Elementary School | AV74: 269 | AW74: Inter-Lakes Cooperative
AQ75: 131 | AR75: Derry Cooperative | AS75: 20370 | AT75: Ernest P. Barka Elementary School | AV75: 271 | AW75: Jackson
AQ76: 131 | AR76: Derry Cooperative | AS76: 28465 | AT76: Gilbert H. Hood Middle School | AV76: 274 | AW76: Jaffrey-Rindge Cooperative
AQ77: 131 | AR77: Derry Cooperative | AS77: 20420 | AT77: Grinnell School | AV77: 275 | AW77: John Stark Regional
AQ78: 131 | AR78: Derry Cooperative | AS78: 20390 | AT78: South Range Elementary School | AV78: 276 | AW78: Kearsarge Regional
AQ79: 131 | AR79: Derry Cooperative | AS79: 20405 | AT79: West Running Brook Middle School | AV79: 279 | AW79: Keene
AQ80: 141 | AR80: Dover | AS80: 27065 | AT80: Dover Middle School | AV80: 281 | AW80: Kensington
AQ81: 141 | AR81: Dover | AS81: 20435 | AT81: Dover Senior High School | AV81: 285 | AW81: Laconia
AQ82: 141 | AR82: Dover | AS82: 20455 | AT82: Garrison School | AV82: 288 | AW82: Lafayette Regional
AQ83: 141 | AR83: Dover | AS83: 20430 | AT83: Horne Street School | AV83: 291 | AW83: Landaff
AQ84: 141 | AR84: Dover | AS84: 20445 | AT84: Woodman Park School | AV84: 295 | AW84: Lebanon
AQ85: 142 | AR85: Dresden | AS85: 20460 | AT85: Frances C. Richmond School | AV85: 299 | AW85: Lempster
AQ86: 142 | AR86: Dresden | AS86: 20825 | AT86: Hanover High School | AV86: 305 | AW86: Lincoln-Woodstock Cooperative
AQ87: 149 | AR87: Dunbarton | AS87: 20820 | AT87: Dunbarton Elementary School | AV87: 306 | AW87: Lisbon Regional
AQ88: 153 | AR88: East Kingston | AS88: 20685 | AT88: East Kingston Elementary School | AV88: 315 | AW88: Litchfield
AQ89: 165 | AR89: Epping | AS89: 20565 | AT89: Epping Elementary School | AV89: 317 | AW89: Littleton
AQ90: 165 | AR90: Epping | AS90: 26510 | AT90: Epping High School | AV90: 319 | AW90: Londonderry
AQ91: 165 | AR91: Epping | AS91: 20515 | AT91: Epping Middle School | AV91: 327 | AW91: Lyme
AQ92: 167 | AR92: Epsom | AS92: 26505 | AT92: Epsom Central School | AV92: 333 | AW92: Madison
AQ93: 171 | AR93: Errol | AS93: 22600 | AT93: Errol Consolidated Elementary School | AV93: 335 | AW93: Manchester
AQ94: 173 | AR94: Exeter | AS94: 20735 | AT94: Lincoln Street Elementary School | AV94: 339 | AW94: Marlborough
AQ95: 173 | AR95: Exeter | AS95: 20595 | AT95: Main Street School | AV95: 341 | AW95: Marlow
AQ96: 172 | AR96: Exeter Region Cooperative | AS96: 20575 | AT96: Cooperative Middle School | AV96: 342 | AW96: Mascenic Regional
AQ97: 172 | AR97: Exeter Region Cooperative | AS97: 20590 | AT97: Exeter High School | AV97: 343 | AW97: Mascoma Valley Regional
AQ98: 174 | AR98: Fall Mountain Regional | AS98: 20600 | AT98: Acworth Elementary School | AV98: 345 | AW98: Mason
AQ99: 174 | AR99: Fall Mountain Regional | AS99: 22960 | AT99: Alstead Primary School | AV99: 351 | AW99: Merrimack
AQ100: 174 | AR100: Fall Mountain Regional | AS100: 22965 | AT100: Charlestown Middle School | AV100: 352 | AW100: Merrimack Valley
AQ101: 174 | AR101: Fall Mountain Regional | AS101: 22975 | AT101: Charlestown Primary School | AV101: 353 | AW101: Middleton
AQ102: 174 | AR102: Fall Mountain Regional | AS102: 22985 | AT102: Fall Mountain Regional High School | AV102: 355 | AW102: Milan
AQ103: 174 | AR103: Fall Mountain Regional | AS103: 22990 | AT103: N. Charlestown Community School | AV103: 357 | AW103: Milford
AQ104: 174 | AR104: Fall Mountain Regional | AS104: 22980 | AT104: North Walpole School | AV104: 359 | AW104: Milton
AQ105: 174 | AR105: Fall Mountain Regional | AS105: 23005 | AT105: Sarah Porter School | AV105: 363 | AW105: Monadnock Regional
AQ106: 174 | AR106: Fall Mountain Regional | AS106: 22995 | AT106: Vilas Elementary School | AV106: 365 | AW106: Monroe
AQ107: 174 | AR107: Fall Mountain Regional | AS107: 22970 | AT107: Walpole Elementary School | AV107: 367 | AW107: Mont Vernon
AQ108: 174 | AR108: Fall Mountain Regional | AS108: 23015 | AT108: Walpole Primary School | AV108: 369 | AW108: Moultonborough
AQ109: 175 | AR109: Farmington | AS109: 23010 | AT109: Farmington Senior High School | AV109: 371 | AW109: Nashua
AQ110: 175 | AR110: Farmington | AS110: 22050 | AT110: Henry Wilson Memorial School | AV110: 375 | AW110: Nelson
AQ111: 175 | AR111: Farmington | AS111: 22055 | AT111: Valley View Community School | AV111: 377 | AW111: New Boston
AQ112: 185 | AR112: Franklin | AS112: 27980 | AT112: Franklin High School | AV112: 381 | AW112: New Castle
AQ113: 185 | AR113: Franklin | AS113: 20660 | AT113: Franklin Middle School | AV113: 387 | AW113: Newfields
AQ114: 185 | AR114: Franklin | AS114: 26755 | AT114: Paul A. Smith School | AV114: 388 | AW114: Newfound Area
AQ115: 187 | AR115: Freedom | AS115: 20650 | AT115: Freedom Elementary School | AV115: 391 | AW115: Newington
AQ116: 189 | AR116: Fremont | AS116: 20350 | AT116: Ellis School | AV116: 399 | AW116: Newmarket
AQ117: 191 | AR117: Gilford | AS117: 20525 | AT117: Gilford Elementary School | AV117: 401 | AW117: Newport
AQ118: 191 | AR118: Gilford | AS118: 21245 | AT118: Gilford High School | AV118: 405 | AW118: North Hampton
AQ119: 191 | AR119: Gilford | AS119: 21240 | AT119: Gilford Middle School | AV119: 407 | AW119: Northumberland
AQ120: 195 | AR120: Gilmanton | AS120: 26995 | AT120: Gilmanton Elementary School | AV120: 411 | AW120: Northwood
AQ121: 199 | AR121: Goffstown | AS121: 21250 | AT121: Bartlett Elementary School | AV121: 413 | AW121: Nottingham
AQ122: 199 | AR122: Goffstown | AS122: 20695 | AT122: Glen Lake School | AV122: 423 | AW122: Oyster River Coop
AQ123: 199 | AR123: Goffstown | AS123: 28525 | AT123: Goffstown High School | AV123: 425 | AW123: Pelham
AQ124: 199 | AR124: Goffstown | AS124: 20700 | AT124: Maple Avenue School | AV124: 427 | AW124: Pembroke
AQ125: 199 | AR125: Goffstown | AS125: 20690 | AT125: Mountain View Middle School | AV125: 428 | AW125: Pemi-Baker Regional
AQ126: 203 | AR126: Gorham Randolph Shelburne Cooperative | AS126: 26820 | AT126: Edward Fenn School | AV126: 435 | AW126: Piermont
AQ127: 203 | AR127: Gorham Randolph Shelburne Cooperative | AS127: 20745 | AT127: Gorham High School | AV127: 437 | AW127: Pittsburg
AQ128: 203 | AR128: Gorham Randolph Shelburne Cooperative | AS128: 20750 | AT128: Gorham Middle School | AV128: 439 | AW128: Pittsfield
AQ129: 204 | AR129: Goshen | AV129: 441 | AW129: Plainfield
AQ130: 208 | AR130: Governor Wentworth Regional | AS130: 27005 | AT130: Carpenter Elementary School | AV130: 447 | AW130: Plymouth
AQ131: 208 | AR131: Governor Wentworth Regional | AS131: 22430 | AT131: Crescent Lake School | AV131: 449 | AW131: Portsmouth
AQ132: 208 | AR132: Governor Wentworth Regional | AS132: 27515 | AT132: Effingham Elementary School | AV132: 450 | AW132: Profile
AQ133: 208 | AR133: Governor Wentworth Regional | AS133: 22395 | AT133: Kingswood Regional High School | AV133: 453 | AW133: Raymond
AQ134: 208 | AR134: Governor Wentworth Regional | AS134: 22425 | AT134: Kingswood Regional Middle School | AV134: 461 | AW134: Rochester
AQ135: 208 | AR135: Governor Wentworth Regional | AS135: 22440 | AT135: New Durham Elementary School | AV135: 463 | AW135: Rollinsford
AQ136: 208 | AR136: Governor Wentworth Regional | AS136: 22400 | AT136: Ossipee Central School | AV136: 467 | AW136: Rumney
AQ137: 208 | AR137: Governor Wentworth Regional | AS137: 22405 | AT137: Tuftonboro Central School | AV137: 471 | AW137: Rye
AQ138: 211 | AR138: Grantham | AS138: 22410 | AT138: Grantham Village School | AV138: 473 | AW138: Salem
AQ139: 215 | AR139: Greenland | AS139: 21330 | AT139: Greenland Central School | AV139: 476 | AW139: Sanborn Regional
AQ140: 223 | AR140: Hampstead | AS140: 22450 | AT140: Hampstead Central School | AV140: 485 | AW140: Seabrook
AQ141: 223 | AR141: Hampstead | AS141: 22755 | AT141: Hampstead Middle School | AV141: 486 | AW141: Shaker Regional
AQ142: 225 | AR142: Hampton | AS142: 22750 | AT142: Adeline C. Marston School | AV142: 491 | AW142: Somersworth
AQ143: 225 | AR143: Hampton | AS143: 20795 | AT143: Hampton Academy | AV143: 493 | AW143: Souhegan Cooperative
AQ144: 225 | AR144: Hampton | AS144: 20790 | AT144: Hampton Centre School | AV144: 495 | AW144: South Hampton
AQ145: 227 | AR145: Hampton Falls | AS145: 20770 | AT145: Lincoln Akerman School | AV145: 499 | AW145: Stark
AQ146: 233 | AR146: Hanover | AS146: 20800 | AT146: Bernice A. Ray School | AV146: 501 | AW146: Stewartstown
AQ147: 235 | AR147: Harrisville | AS147: 20830 | AT147: Wells Memorial School | AV147: 503 | AW147: Stoddard
AQ148: 238 | AR148: Haverhill Cooperative | AS148: 21155 | AT148: Haverhill Cooperative Middle School | AV148: 507 | AW148: Strafford
AQ149: 238 | AR149: Haverhill Cooperative | AS149: 26875 | AT149: Woodsville Elementary School | AV149: 509 | AW149: Stratford
AQ150: 238 | AR150: Haverhill Cooperative | AS150: 20905 | AT150: Woodsville High School | AV150: 511 | AW150: Stratham
AQ151: 245 | AR151: Henniker | AS151: 20910 | AT151: Henniker Community School | AV151: 515 | AW151: Sunapee
AQ152: 247 | AR152: Hill | AS152: 20935 | AT152: Jennie D. Blake School | AV152: 525 | AW152: Tamworth
AQ153: 251 | AR153: Hillsboro-Deering Cooperative | AS153: 20670 | AT153: Hillsboro-Deering Elementary School | AV153: 531 | AW153: Thornton
AQ154: 251 | AR154: Hillsboro-Deering Cooperative | AS154: 20955 | AT154: Hillsboro-Deering High School | AV154: 534 | AW154: Timberlane Regional
AQ155: 251 | AR155: Hillsboro-Deering Cooperative | AS155: 20950 | AT155: Hillsboro-Deering Middle School | AV155: 539 | AW155: Unity
AQ156: 255 | AR156: Hinsdale | AS156: 20960 | AT156: Hinsdale Elementary School | AV156: 543 | AW156: Wakefield
AQ157: 255 | AR157: Hinsdale | AS157: 21680 | AT157: Hinsdale High School | AV157: 549 | AW157: Warren
AQ158: 255 | AR158: Hinsdale | AS158: 21675 | AT158: Hinsdale Middle High School | AV158: 551 | AW158: Washington
AQ159: 257 | AR159: Holderness | AS159: 26985 | AT159: Holderness Central School | AV159: 553 | AW159: Waterville Valley
AQ160: 259 | AR160: Hollis | AS160: 22345 | AT160: Hollis Primary School | AV160: 555 | AW160: Weare
AQ161: 259 | AR161: Hollis | AS161: 21815 | AT161: Hollis Upper Elementary School | AV161: 559 | AW161: Wentworth
AQ162: 260 | AR162: Hollis-Brookline Cooperative | AS162: 27530 | AT162: Hollis-Brookline High School | AV162: 563 | AW162: Westmoreland
AQ163: 260 | AR163: Hollis-Brookline Cooperative | AS163: 21810 | AT163: Hollis-Brookline Middle School | AV163: 568 | AW163: White Mountains Regional
AQ164: 261 | AR164: Hooksett | AS164: 21805 | AT164: David R. Cawley Middle School | AV164: 572 | AW164: Wilton-Lyndeborough Cooperative
AQ165: 261 | AR165: Hooksett | AS165: 28050 | AT165: Fred C. Underhill School | AV165: 573 | AW165: Winchester
AQ166: 261 | AR166: Hooksett | AS166: 20550 | AT166: Hooksett Memorial School | AV166: 575 | AW166: Windham
AQ167: 263 | AR167: Hopkinton | AS167: 20540 | AT167: Harold Martin School | AV167: 581 | AW167: Winnacunnet Cooperative
AQ168: 263 | AR168: Hopkinton | AS168: 20975 | AT168: Hopkinton High School | AV168: 582 | AW168: Winnisquam Regional
AQ169: 263 | AR169: Hopkinton | AS169: 20970 | AT169: Hopkinton Middle School | AV169: 702 | AW169: Granite State Arts Academy Charter School
AQ170: 263 | AR170: Hopkinton | AS170: 27000 | AT170: Maple Street Elementary School | AV170: 703 | AW170: North Country Charter Academy
AQ171: 267 | AR171: Hudson | AS171: 20965 | AT171: Alvirne High School | AV171: 704 | AW171: Mountain Village Charter School
AQ172: 267 | AR172: Hudson | AS172: 21050 | AT172: Dr. H. O. Smith Elementary School | AV172: 705 | AW172: Seacoast Charter School
AQ173: 267 | AR173: Hudson | AS173: 21045 | AT173: Hills Garrison Elementary School | AV173: 706 | AW173: LEAF Charter School
AQ174: 267 | AR174: Hudson | AS174: 27900 | AT174: Hudson Memorial School | AV174: 707 | AW174: Cocheco Academy for the Arts
AQ175: 267 | AR175: Hudson | AS175: 21060 | AT175: Nottingham West Elementary School | AV175: 708 | AW175: Kreiva Academy Public Charter School
AQ176: 269 | AR176: Inter-Lakes Cooperative | AS176: 26765 | AT176: Inter-Lakes Elementary School | AV176: 709 | AW176: Great Bay Charter School
AQ177: 269 | AR177: Inter-Lakes Cooperative | AS177: 29200 | AT177: Inter-Lakes High School | AV177: 710 | AW177: Capital City Public Charter School
AQ178: 269 | AR178: Inter-Lakes Cooperative | AS178: 20035 | AT178: Inter-Lakes Middle School | AV178: 712 | AW178: Windham Academy Public Charter School
AQ179: 269 | AR179: Inter-Lakes Cooperative | AS179: 29201 | AT179: Sandwich Central School | AV179: 714 | AW179: Spark Academy of Advanced Technologies Charter School
AQ180: 271 | AR180: Jackson | AS180: 20040 | AT180: Jackson Grammar School | AV180: 717 | AW180: Surry Village Charter School
AQ181: 274 | AR181: Jaffrey-Rindge Cooperative | AS181: 20355 | AT181: Conant High School | AV181: 719 | AW181: Ledyard Charter School
AQ182: 274 | AR182: Jaffrey-Rindge Cooperative | AS182: 22265 | AT182: Jaffrey Grade School | AV182: 721 | AW182: Strong Foundations Charter School
AQ183: 274 | AR183: Jaffrey-Rindge Cooperative | AS183: 22275 | AT183: Jaffrey-Rindge Middle School | AV183: 723 | AW183: CSI Charter School
AQ184: 274 | AR184: Jaffrey-Rindge Cooperative | AS184: 22280 | AT184: Rindge Memorial School | AV184: 725 | AW184: Academy for Science and Design Charter
AQ185: 275 | AR185: John Stark Regional | AS185: 22320 | AT185: John Stark Regional High School | AV185: 727 | AW185: Virtual Learning Academy
AQ186: 276 | AR186: Kearsarge Regional | AS186: 26380 | AT186: Kearsarge Reg. Elem. School at New London | AV186: 728 | AW186: PACE Career Academy Charter School
AQ187: 276 | AR187: Kearsarge Regional | AS187: 21980 | AT187: Kearsarge Reg. Elementary School - Bradford | AV187: 729 | AW187: Mill Falls Charter School
AQ188: 276 | AR188: Kearsarge Regional | AS188: 26530 | AT188: Kearsarge Regional High School | AV188: 731 | AW188: The Birches Academy of Academics
AQ189: 276 | AR189: Kearsarge Regional | AS189: 22015 | AT189: Kearsarge Regional Middle School | AV189: 733 | AW189: Making Community Connections Charter School
AQ190: 276 | AR190: Kearsarge Regional | AS190: 26535 | AT190: Simonds Elementary School | AV190: 735 | AW190: Polaris Charter School
AQ191: 276 | AR191: Kearsarge Regional | AS191: 22020 | AT191: Sutton Central Elementary School | AV191: 737 | AW191: Robert Frost Charter School
AQ192: 279 | AR192: Keene | AS192: 22010 | AT192: Franklin Elementary School | AV192: 740 | AW192: Next Charter School
AQ193: 279 | AR193: Keene | AS193: 21190 | AT193: Fuller Elementary School | AV193: 741 | AW193: The Founders Academy Charter School
AQ194: 279 | AR194: Keene | AS194: 21165 | AT194: Keene High School | AV194: 742 | AW194: Gate City Charter School for the Arts
AQ195: 279 | AR195: Keene | AS195: 21195 | AT195: Keene Middle School | AV195: 743 | AW195: Compass Classical Academy Charter School
AQ196: 279 | AR196: Keene | AS196: 21185 | AT196: Symonds Elementary School | AV196: 744 | AW196: MicroSociety Academy Charter School Foundation
AQ197: 279 | AR197: Keene | AS197: 21170 | AT197: Wheelock Elementary School | AV197: 970 | AW197: Prospect Mountain JMA
AQ198: 281 | AR198: Kensington | AS198: 21200 | AT198: Kensington Elementary School | AV198: 998 | AW198: Coe-Brown Northwood Academy
AQ199: 285 | AR199: Laconia | AS199: 20605 | AT199: Elm Street School | AV199: 999 | AW199: Pinkerton Academy
AQ200: 285 | AR200: Laconia | AS200: 21290 | AT200: Laconia High School
AQ201: 285 | AR201: Laconia | AS201: 21255 | AT201: Laconia Middle School
AQ202: 285 | AR202: Laconia | AS202: 21275 | AT202: Pleasant Street School
... 290 more rows

Sheet II. Transparency & Accessbility
A1: II. Transparency and Accessibility
A3: 1) | B3: This plan for the LEA's Use of ARP ESSER funds was published and made publicly available online at the following
B4: specific web address:
B6: Yes - Description Required
B8: Description:
B9: www.sau80.org
A13: 2) | B13: The plan is in an understandable and uniform format (please choose one):
B15: Yes - Description Required
B17: Description:
B18: We utilized the LEA ARP ESSER Plan format provided by the NHDOE.
A22: 3) | B22: The plan, to the extent practicable, is written in a language that parents can understand or, if not practicable to provide
B23: written translations to a parent with limited English proficiency, orally translated (please choose one):
B25: Yes - Description Required
B27: Description:
B28: We utilized the LEA ARP ESSER Plan format provided by the NHDOE and can provide orally translated information upon request.
A32: 4) | B32: The plan, upon request by a parent who is an individual with a disability, is provided in an alternative format
B33: accessible to that parent (please choose one):
B35: Yes - Description Required
B37: Description:
B38: We utilized the LEA ARP ESSER Plan format provided by the NHDOE and can provide this verbally upon request.

Sheet III. Stakeholder Engagement
A1: III. Stakeholder Engagement
A2: Best Practices in Implementing ARP ESSER LEA Use of Funds Plan
A4: 1) | B4: How the LEA provided the public the opportunity to provide input in the development of the LEA’s plan for the use of
B5: ARP ESSER funds:
B7: Yes - Description Required
B9: Description:
B10: The District provided a notice to all students, parents, staff, and community members seeking input. The District held a public hearing to accept the ARP ESSER funds. The District has had information about the funds and some of the way the funds will be used on the board agenda and the information was discussed in the public session, which was also shared via zoom.
A15: 2) | B15: How the LEA took public input into account regarding the development of the LEA’s plan for the use of ARP ESSER
B16: funds (please choose one):
B18: Yes - Description Required
B20: Description:
B21: The following notice was sent to all students, parents, staff, and commuity members: "SAU 80 is seeking your input regarding the use of ARP ESSER Funds. Shaker Regional School District has received an allocation of $2,196,887.64 through the American Rescue Plan (ARPA) which includes a third round of Elementary and Secondary School Emergency Relief (ESSER III) funds. The ARPA ESSER III funds can be used during the 2021-2022, 2022-2023, and the 2023-2024 school years. Districts receiving these funds are required to set aside 20 percent of the allocation to address learning loss. If you have any suggestions, questions, and comments on how the district should use the ESSER funds that have been received, please send an email to srsd-essercomment@sau80.org or go to www.sau80.org to place your comments. To learns more about the ARPA ESSER grant, please visit the NHDOE website at ARPA ESSER III.
A26: 3) | B26: How the LEA engaged in meaningful consultation with specific stakeholders, including, but not limited to:
A27: a. | B27: Students (please choose one):
B29: Yes - Description Required
B31: 1) Description:
B32: The following notice was sent to all students, parents, staff, and commuity members: "SAU 80 is seeking your input regarding the use of ARP ESSER Funds. Shaker Regional School District has received an allocation of $2,196,887.64 through the American Rescue Plan (ARPA) which includes a third round of Elementary and Secondary School Emergency Relief (ESSER III) funds. The ARPA ESSER III funds can be used during the 2021-2022, 2022-2023, and the 2023-2024 school years. Districts receiving these funds are required to set aside 20 percent of the allocation to address learning loss. If you have any suggestions, questions, and comments on how the district should use the ESSER funds that have been received, please send an email to srsd-essercomment@sau80.org or go to www.sau80.org to place your comments. To learns more about the ARPA ESSER grant, please visit the NHDOE website at ARPA ESSER III.
A35: i) Number of total student responses: | B35: i) Number of total responses: 0
A36: ii) Uses consulted on: | B36: ii) Uses consulted on:
B37: iii) Description of feedback received:
B39: Please indicate how consultation was:
B40: 2) Inclusive:
B42: 3) Widely advertised and available:
B44: 4) Ongoing:
A47: b. | B47: Families (please choose one):
B49: Yes - Description Required
B51: 1) Description:
B52: The following notice was sent to all students, parents, staff, and commuity members: "SAU 80 is seeking your input regarding the use of ARP ESSER Funds. Shaker Regional School District has received an allocation of $2,196,887.64 through the American Rescue Plan (ARPA) which includes a third round of Elementary and Secondary School Emergency Relief (ESSER III) funds. The ARPA ESSER III funds can be used during the 2021-2022, 2022-2023, and the 2023-2024 school years. Districts receiving these funds are required to set aside 20 percent of the allocation to address learning loss. If you have any suggestions, questions, and comments on how the district should use the ESSER funds that have been received, please send an email to srsd-essercomment@sau80.org or go to www.sau80.org to place your comments. To learns more about the ARPA ESSER grant, please visit the NHDOE website at ARPA ESSER III.
A55: i) Number of total student responses: | B55: i) Number of total responses: 7
A56: ii) Uses consulted on: | B56: ii) Uses consulted on:
B57: iii) Description of feedback received: (1) Hire a staff member dedicated to students in quarantine. They would serve as the pont of contact between the parent and the teacher. (2) Provide a checklist of materials that are being sent home to students who are quarantining. (3) Hire a full-time substitute to fill in when there is a staff absence. (4) Purchase outdoor activities for students such as a gaga ball; smaller basketball hoops; additional basketball hoops; snowshoes for students; and build and outdoor classroom. (4) Pay for an author/motivational speaker/artists in residence to make up for lost time. (5) Purchase summer reading books for students for summer enrichment. (6) Increase the wages of staff to fill vacant positions, recruit the best staff possible, and increase morale. (7) Use some of the money to add parking spaces at Canterbury Elementary School. (8) Run a summer program at Belmont Elementary. (9) Use the money to provide a remote learning option for students and parents. (10) Bring back home economics to teach our kids basic living skills like cooking, sewing, budgeting, etc.
B59: Please indicate how consultation was:
B60: 2) Inclusive:
B62: 3) Widely advertised and available:
B64: 4) Ongoing:
A81: c. | B81: School and district administrators, including special education administrators (please choose one):
B83: Yes - Description Required
B85: 1) Description:
B86: The following notice was sent to all students, parents, staff, and commuity members: "SAU 80 is seeking your input regarding the use of ARP ESSER Funds. Shaker Regional School District has received an allocation of $2,196,887.64 through the American Rescue Plan (ARPA) which includes a third round of Elementary and Secondary School Emergency Relief (ESSER III) funds. The ARPA ESSER III funds can be used during the 2021-2022, 2022-2023, and the 2023-2024 school years. Districts receiving these funds are required to set aside 20 percent of the allocation to address learning loss. If you have any suggestions, questions, and comments on how the district should use the ESSER funds that have been received, please send an email to srsd-essercomment@sau80.org or go to www.sau80.org to place your comments. To learns more about the ARPA ESSER grant, please visit the NHDOE website at ARPA ESSER III.
B89: i) Number of total responses: 0
A90: i) Number of total student responses: | B90: ii) Uses consulted on:
A91: ii) Uses consulted on: | B91: iii) Description of feedback received:
B93: Please indicate how consultation was:
B94: 2) Inclusive:
B96: 3) Widely advertised and available:
B98: 4) Ongoing:
A101: d. | B101: Teachers, principals, school leaders, other educators, school staff, and their unions (please choose one):
B103: Yes - Description Required
B105: 1) Description:
B106: The following notice was sent to all students, parents, staff, and commuity members: "SAU 80 is seeking your input regarding the use of ARP ESSER Funds. Shaker Regional School District has received an allocation of $2,196,887.64 through the American Rescue Plan (ARPA) which includes a third round of Elementary and Secondary School Emergency Relief (ESSER III) funds. The ARPA ESSER III funds can be used during the 2021-2022, 2022-2023, and the 2023-2024 school years. Districts receiving these funds are required to set aside 20 percent of the allocation to address learning loss. If you have any suggestions, questions, and comments on how the district should use the ESSER funds that have been received, please send an email to srsd-essercomment@sau80.org or go to www.sau80.org to place your comments. To learns more about the ARPA ESSER grant, please visit the NHDOE website at ARPA ESSER III.
A109: i) Number of total student responses: | B109: i) Number of total responses: 3
A110: ii) Uses consulted on: | B110: ii) Uses consulted on:
B111: iii) Description of feedback received: (1) Increase the wages of staff to fill vacant positions, recruit the best staff possible, and increase morale. (2) Purchase an updated Second Step curriculum by Committee for Children to teach social, emotional skills in K-4.
B113: Please indicate how consultation was:
B114: 2) Inclusive: We have reached out to staff who responded to obtain clarification and additional information.
B116: 3) Widely advertised and available:
B118: 4) Ongoing: Use of funds is included as an agenda item on board meetings.
A121: e. | B121: Tribes, if applicable (please choose one):
B123: No
B125: 1) Description:
A129: i) Number of total student responses: | B129: i) Number of total responses:
A130: ii) Uses consulted on: | B130: ii) Uses consulted on:
B131: iii) Description of feedback received:
B133: Please indicate how consultation was:
B134: 2) Inclusive:
B136: 3) Widely advertised and available:
B138: 4) Ongoing:
A141: f. | B141: Civil rights organizations, including disability rights organizations (please check one):
B143: Yes - Description Required
B145: 1) Description:
B146: The following notice was sent to all students, parents, staff, and commuity members: "SAU 80 is seeking your input regarding the use of ARP ESSER Funds. Shaker Regional School District has received an allocation of $2,196,887.64 through the American Rescue Plan (ARPA) which includes a third round of Elementary and Secondary School Emergency Relief (ESSER III) funds. The ARPA ESSER III funds can be used during the 2021-2022, 2022-2023, and the 2023-2024 school years. Districts receiving these funds are required to set aside 20 percent of the allocation to address learning loss. If you have any suggestions, questions, and comments on how the district should use the ESSER funds that have been received, please send an email to srsd-essercomment@sau80.org or go to www.sau80.org to place your comments. To learns more about the ARPA ESSER grant, please visit the NHDOE website at ARPA ESSER III.
A149: i) Number of total student responses: | B149: i) Number of total responses: 0
A150: ii) Uses consulted on: | B150: ii) Uses consulted on:
B151: iii) Description of feedback received:
B153: Please indicate how consultation was:
B154: 2) Inclusive:
B156: 3) Widely advertised and available:
B158: 4) Ongoing:
A161: g. | B161: Stakeholders representing the interests of children with disabilities, English learners, children experiencing homelessness,
B162: children and youth in foster care, migratory students, children who are incarcerated, and other underserved students
B163: (please choose one):
B165: Yes - Description Required
B167: 1) Description:
B168: The following notice was sent to all students, parents, staff, and commuity members: "SAU 80 is seeking your input regarding the use of ARP ESSER Funds. Shaker Regional School District has received an allocation of $2,196,887.64 through the American Rescue Plan (ARPA) which includes a third round of Elementary and Secondary School Emergency Relief (ESSER III) funds. The ARPA ESSER III funds can be used during the 2021-2022, 2022-2023, and the 2023-2024 school years. Districts receiving these funds are required to set aside 20 percent of the allocation to address learning loss. If you have any suggestions, questions, and comments on how the district should use the ESSER funds that have been received, please send an email to srsd-essercomment@sau80.org or go to www.sau80.org to place your comments. To learns more about the ARPA ESSER grant, please visit the NHDOE website at ARPA ESSER III.
A171: i) Number of total student responses: | B171: i) Number of total responses: 0
A172: ii) Uses consulted on: | B172: ii) Uses consulted on:
B173: iii) Description of feedback received:
B175: Please indicate how consultation was:
B176: 2) Inclusive:
B178: 3) Widely advertised and available:
B180: 4) Ongoing:
A183: h. | B183: Community-based organizations, including partnerships to promote access to before and after-school
B184: programming (please choose one):
B186: Yes - Description Required
B188: 1) Description:
B189: The following notice was sent to all students, parents, staff, and commuity members: "SAU 80 is seeking your input regarding the use of ARP ESSER Funds. Shaker Regional School District has received an allocation of $2,196,887.64 through the American Rescue Plan (ARPA) which includes a third round of Elementary and Secondary School Emergency Relief (ESSER III) funds. The ARPA ESSER III funds can be used during the 2021-2022, 2022-2023, and the 2023-2024 school years. Districts receiving these funds are required to set aside 20 percent of the allocation to address learning loss. If you have any suggestions, questions, and comments on how the district should use the ESSER funds that have been received, please send an email to srsd-essercomment@sau80.org or go to www.sau80.org to place your comments. To learns more about the ARPA ESSER grant, please visit the NHDOE website at ARPA ESSER III.
A192: i) Number of total student responses: | B192: i) Number of total responses: 0
A193: ii) Uses consulted on: | B193: ii) Uses consulted on:
B194: iii) Description of feedback received:
B196: Please indicate how consultation was:
B197: 2) Inclusive:
B199: 3) Widely advertised and available:
B201: 4) Ongoing:
A204: i. | B204: Early childhood education providers and families, including partnerships to ensure access to and continuity of
B205: care for families with children of different ages, particularly as they transition to school (please check one):
B207: Yes - Description Required
B209: 1) Description:
B210: The following notice was sent to all students, parents, staff, and commuity members: "SAU 80 is seeking your input regarding the use of ARP ESSER Funds. Shaker Regional School District has received an allocation of $2,196,887.64 through the American Rescue Plan (ARPA) which includes a third round of Elementary and Secondary School Emergency Relief (ESSER III) funds. The ARPA ESSER III funds can be used during the 2021-2022, 2022-2023, and the 2023-2024 school years. Districts receiving these funds are required to set aside 20 percent of the allocation to address learning loss. If you have any suggestions, questions, and comments on how the district should use the ESSER funds that have been received, please send an email to srsd-essercomment@sau80.org or go to www.sau80.org to place your comments. To learns more about the ARPA ESSER grant, please visit the NHDOE website at ARPA ESSER III.
A213: i) Number of total student responses: | B213: i) Number of total responses: 0
A214: ii) Uses consulted on: | B214: ii) Uses consulted on:
B215: iii) Description of feedback received:
B217: Please indicate how consultation was:
B218: 2) Inclusive:
B220: 3) Widely advertised and available:
B222: 4) Ongoing:

Sheet IV. Budget and Data Reporting
C1: Name of Entity Note: Please select entity name from pre-populated dropdown listing. | D1: UEI (SAM)# Note: Upon entity selection, UEI will automatically populate. | E1: NCES ID# | F1: Total ARP ESSER Mandatory Subgrant Amount Awarded to LEA | G1: Total Mandatory Subgrant Amount Expended in Current Reporting Period (07/01/2021-06/30/2022). Note: Please do not include the mandatory set aside for learning loss which is captured later. Please be advised that Columns H, R, AB and AL, should total the expended amount in Column Column G. The subcategories for each category cannot exceed the expended amount listed in the preceding column. | H1: Amount Expended by Activity | AV1: Total Mandatory Subgrant Amount Expended Toward Required Set-Aside to Address Learning Loss in Current Reporting Period (7/1/2021-06/30/22). Note: This amount should be at least 20% of your total ARP ESSER award amount. | AW1: Amount Expended Toward Required Set-Aside by Activity | CK1: Remaining ARP ESSER Mandatory Subgrant Funds Note: Remaining funding should be allocated by percentage across percentage and should total 100%. | CL1: Planned Uses of Remaining ARP ESSER Mandatory Subgrant Funds (% of Remaining Funds) Note: Categories must sum to 100% | CQ1: The total amount reserved by the LEA to address the impact of learning loss | CS1: Activities or interventions the LEA implemented to satisfy the LEA’s mandatory set-aside requirements of ARP ESSER funds | DH1: Please describe how the selected activities or interventions respond to students’ academic, social, and emotional needs. (3,000 character limit)
H2: LEA's Planned Expenditures | CL2: Percentage of LEA Funds Remaining | CR2: Total expenditures of ARP ESSER LEA Reserve in this reporting period | CS2: Dollar Amount LEA's Plans to Allocate in Addressing Learning Loss Requirement - Note: Total amount recorded via Columns CS to DG should not exceed, or fall below LEA's 20% set-aside requirement. | DH2: LEA to Also Complete Columns DH to DJ
H3: Addressing Physical Health and Safety (exclusive of amount expended toward required set-aside to address learning loss) | R3: Meeting Students’ Academic, Social, Emotional, and Other Needs (Excluding Mental Health Supports) (exclusive of amount expended toward required set-aside to address learning loss) | AB3: Mental Health Supports for Students and Staff (exclusive of amount expended toward required set-aside to address learning loss) | AL3: Operational Continuity and Other Allowed Uses (exclusive of amount expended toward required set-aside to address learning loss) | AW3: Addressing Physical Health and Safety (amount expended toward required set-aside to address learning loss) | BG3: Meeting Students’ Academic, Social, Emotional, and Other Needs (Excluding Mental Health Supports) (amount expended toward required set-aside to address learning loss) | BQ3: Mental Health Supports for Students and Staff (amount expended toward required set-aside to address learning loss) | CA3: Operational Continuity and Other Allowed Uses (amount expended toward required set-aside to address learning loss) | CL3: % Remaining Funds Planned for Addressing Physical Health and Safety | CM3: % Remaining Funds Planned for Meeting Students’ Academic, Social, Emotional, and Other Needs (Excluding Mental Health Supports) | CN3: % Remaining Funds Planned for Mental Health Supports for Students and Staff | CO3: % Remaining Funds Planned for Operational Continuity and Other Uses | CP3: % Remaining Funds Not Yet Planned for Specific Use | CS3: a. Summer learning or summer enrichment | CT3: b. Afterschool programs | CU3: c. Extended instructional time (school day, school week, or school year) | CV3: d. Tutoring | CW3: e. Additional classroom teachers | CX3: f. Other additional staffing and/or activities to assess and support social-emotional well-being (excluding mental health supports), for students, educators and/or families | CY3: g. Other additional staffing and/or activities to assess and support mental health needs, for students, educators and/or families | CZ3: h. Other additional staffing and/or activities to identify and/or respond to unique student needs and/or provide targeted support for vulnerable students (including low-income children or students, students with disabilities, English learners, racial and ethnic minorities, students experiencing homelessness, and children and youth in foster care) | DA3: i. Universal screening, academic assessments, and intervention data systems, such as early warning systems and/or opportunity to learn data systems. | DB3: j. Improved coordination of services for students with multiple types of needs, such as full-service community schools or improved coordination with partner agencies, such as foster care services | DC3: k. Early childhood programs | DD3: l. Curriculum adoption and learning materials | DE3: m. Core staff capacity building/training to increase instructional quality and advance investments in talent pipelines for teachers and/or classified staff | DF3: n. Other | DG3: n. Description of other activities | DH3: Please describe how the selected activities or interventions respond to students’ academic, social, and emotional needs. (3,000 character limit) | DI3: Total ARP ESSER Allocation (as of 01/13/2023) | DJ3: Total ARP ESSER Allocation Unbudgeted To Date (as of 01/13/2023)
H4: Amount Expended Addressing Physical Health and Safety Note: Pre-populated upon inputs to corresponding cells. | I4: a. Personnel Services – Salaries | J4: b. Personnel Services – Benefits | K4: c. Purchased Professional and Technical Services | L4: d. Purchased Property Services | M4: e. Other Purchased Services | N4: f. Supplies | O4: g. Property | P4: h. Debt Service and Miscellaneous | Q4: i. Other Items | R4: Amount Expended Meeting Students’ Academic, Social, Emotional, and Other Needs (Excluding Mental Health Supports) Note: Pre-populated upon inputs to corresponding cells. | S4: j. Personnel Services – Salaries | T4: k. Personnel Services – Benefits | U4: l. Purchased Professional and Technical Services | V4: m. Purchased Property Services | W4: n. Other Purchased Services | X4: o. Supplies | Y4: p. Property | Z4: q. Debt Service and Miscellaneous | AA4: r. Other Items | AB4: Amount Expended on Mental Health Supports for Students and Staff Note: Pre-populated upon inputs to corresponding cells. | AC4: s. Personnel Services – Salaries | AD4: t. Personnel Services – Benefits | AE4: u. Purchased Professional and Technical Services | AF4: v. Purchased Property Services | AG4: w. Other Purchased Services | AH4: x. Supplies | AI4: y. Property | AJ4: z. Debt Service and Miscellaneous | AK4: aa. Other Items | AL4: Amount Expended on Operational Continuity and Other Allowed Uses Note: Pre-populated upon inputs to corresponding cells. | AM4: bb. Personnel Services – Salaries | AN4: cc. Personnel Services – Benefits | AO4: dd. Purchased Professional and Technical Services | AP4: ee. Purchased Property Services | AQ4: ff. Other Purchased Services | AR4: gg. Supplies | AS4: hh. Property | AT4: ii. Debt Service and Miscellaneous | AU4: jj. Other Items | AV4: Total Mandatory Subgrant Amount Expended Toward Required Set-Aside to Address Learning Loss in Current Reporting Period (7/1/2021-06/30/2022). Note: This amount should be at least 20% of your total ARP ESSER award amount. There are four subsections to consider: 1) Columns AX to BF; 2) BH to BP; 3) BR to BZ & 4) CB to CJ. | AW4: Amount expended toward required set-aside | AX4: a. Personnel Services – Salaries | AY4: b. Personnel Services – Benefits | AZ4: c. Purchased Professional and Technical Services | BA4: d. Purchased Property Services | BB4: e. Other Purchased Services | BC4: f. Supplies | BD4: g. Property | BE4: h. Debt Service and Miscellaneous | BF4: i. Other Items | BG4: Amount expended toward required set-aside | BH4: j. Personnel Services – Salaries | BI4: k. Personnel Services – Benefits | BJ4: l. Purchased Professional and Technical Services | BK4: m. Purchased Property Services | BL4: n. Other Purchased Services | BM4: o. Supplies | BN4: p. Property | BO4: q. Debt Service and Miscellaneous | BP4: r. Other Items | BQ4: Amount expended toward required set-aside | BR4: s. Personnel Services – Salaries | BS4: t. Personnel Services – Benefits | BT4: u. Purchased Professional and Technical Services | BU4: v. Purchased Property Services | BV4: w. Other Purchased Services | BW4: x. Supplies | BX4: y. Property | BY4: z. Debt Service and Miscellaneous | BZ4: aa. Other Items | CA4: Amount expended toward required set-aside | CB4: bb. Personnel Services – Salaries | CC4: cc. Personnel Services – Benefits | CD4: dd. Purchased Professional and Technical Services | CE4: ee. Purchased Property Services | CF4: ff. Other Purchased Services | CG4: gg. Supplies | CH4: hh. Property | CI4: ii. Debt Service and Miscellaneous | CJ4: jj. Other Items
C5: Shaker Regional | D5: =IFERROR(VLOOKUP(C5,'UEI''s'!$A$2:$B$181,2,FALSE),"") -> UTD1G7XJFBP5 | E5: 20200804 ESSER | F5: 283691.19 | G5: 111862.94 | H5: =SUM(I5:Q5) -> 111862.94 | I5: =10410+43320.21 -> 53730.21 | J5: =796.41+1904.44+52.5+6194.8+296.08+41.95+37.51+3509.9+9644.21+105.93 -> 22583.73 | K5: =18820.4+2208.6 -> 21029 | M5: 14520 | R5: =SUM(S5:AA5) -> 0 | AB5: =SUM(AC5:AK5) -> 0 | AL5: =SUM(AM5:AU5) -> 0 | AW5: =SUM(AX5:BF5) -> 0 | BG5: =SUM(BH5:BP5) -> 0 | BQ5: =SUM(BR5:BZ5) -> 0 | CA5: =SUM(CB5:CJ5) -> 0 | CK5: =F5-SUM(G5+AV5) -> 171828.25 | CQ5: =G5*20% -> 22372.588 | CR5: =SUM(H5,R5,AB5,AL5) -> 111862.94
D6: =IFERROR(VLOOKUP(C6,'UEI''s'!$A$2:$B$181,2,FALSE),"") ->  | E6: 20211433 ESSER II | F6: 977238.55 | G6: 214546.13 | H6: =SUM(I6:Q6) -> 214546.13 | I6: =97.5+600+1680+8000+19999.4 -> 30376.9 | J6: =6.32+20.44+45.89+126.08+3.02+120.09+313.42+6.95+612+1681.6+33.17+1530+141.9+2355.74+82.94 -> 7079.56 | K6: =562.08+16125 -> 16687.08 | L6: 132478 | N6: =22698+5226.59 -> 27924.59 | R6: =SUM(S6:AA6) -> 0 | AB6: =SUM(AC6:AK6) -> 0 | AL6: =SUM(AM6:AU6) -> 0 | AW6: =SUM(AX6:BF6) -> 0 | BG6: =SUM(BH6:BP6) -> 0 | BQ6: =SUM(BR6:BZ6) -> 0 | CA6: =SUM(CB6:CJ6) -> 0 | CK6: 762692.42 | CQ6: =G6*20% -> 42909.226 | CR6: =SUM(H6,R6,AB6,AL6) -> 214546.13
D7: =IFERROR(VLOOKUP(C7,'UEI''s'!$A$2:$B$181,2,FALSE),"") ->  | E7: 20220732 ESSER III | F7: 2196887.64 | G7: 93434.44 | H7: 93434.44 | L7: 93434.44 | R7: 0 | AB7: 0 | AL7: 0 | AV7: =24044.04+3478.15 -> 27522.19 | AW7: 0 | BG7: 27522.19 | BH7: =14497.5+2782.5 -> 17280 | BI7: =1052.2+2820.49+46.33+212.85+471.38+11.42 -> 4614.67 | BJ7: 5627.52 | BQ7: =SUM(BR7:BZ7) -> 0 | CA7: 0 | CK7: 2075931.01 | CL7: 0.802 | CM7: 0.198 | CQ7: 18686.888 | CR7: 93434.44 | CS7: 249982.95 | CT7: 109972.38 | DA7: 51900 | DH7: Teachers provide additional academic teaching and tutoring during the summer and during before/after school academic sessions. Additionally we have allocated for IXL and Zearn software to allow for student assessment, identification of instructional targets, and follow-up evaluation of academic impact of the interventions. | DI7: 2196987.64 | DJ7: 0
D8: =IFERROR(VLOOKUP(C8,'UEI''s'!$A$2:$B$181,2,FALSE),"") ->  | E8: 20220681 ESSER Homeless | F8: 7894.22 | G8: 4660 | H8: 4660 | K8: 4660 | R8: 0 | AB8: 0 | AL8: 0 | AW8: 0 | BG8: 0 | BQ8: 0 | CA8: 0 | CK8: 3234.22 | CQ8: 932 | CR8: 4660
D9: =IFERROR(VLOOKUP(C9,'UEI''s'!$A$2:$B$181,2,FALSE),"") ->  | H9: 0 | R9: 0 | AB9: 0 | AL9: 0 | AW9: 0 | BG9: 0 | BQ9: 0 | CA9: 0 | CK9: 0 | CQ9: 0 | CR9: 0
D10: =IFERROR(VLOOKUP(C10,'UEI''s'!$A$2:$B$181,2,FALSE),"") ->  | H10: 0 | R10: 0 | AB10: 0 | AL10: 0 | AW10: 0 | BG10: 0 | BQ10: 0 | CA10: 0 | CK10: 0 | CQ10: 0 | CR10: 0
D11: =IFERROR(VLOOKUP(C11,'UEI''s'!$A$2:$B$181,2,FALSE),"") ->  | H11: 0 | R11: 0 | AB11: 0 | AL11: 0 | AW11: 0 | BG11: 0 | BQ11: 0 | CA11: 0 | CK11: 0 | CQ11: 0 | CR11: 0
D12: =IFERROR(VLOOKUP(C12,'UEI''s'!$A$2:$B$181,2,FALSE),"") ->  | H12: 0 | R12: 0 | AB12: 0 | AL12: 0 | AW12: 0 | BG12: 0 | BQ12: 0 | CA12: 0 | CK12: 0 | CQ12: 0 | CR12: 0
D13: =IFERROR(VLOOKUP(C13,'UEI''s'!$A$2:$B$181,2,FALSE),"") ->  | H13: 0 | R13: 0 | AB13: 0 | AL13: 0 | AW13: 0 | BG13: 0 | BQ13: 0 | CA13: 0 | CK13: 0 | CQ13: 0 | CR13: 0
D14: =IFERROR(VLOOKUP(C14,'UEI''s'!$A$2:$B$181,2,FALSE),"") ->  | H14: 0 | R14: 0 | AB14: 0 | AL14: 0 | AW14: 0 | BG14: 0 | BQ14: 0 | CA14: 0 | CK14: 0 | CQ14: 0 | CR14: 0
D15: =IFERROR(VLOOKUP(C15,'UEI''s'!$A$2:$B$181,2,FALSE),"") ->  | H15: 0 | R15: 0 | AB15: 0 | AL15: 0 | AW15: 0 | BG15: 0 | BQ15: 0 | CA15: 0 | CK15: 0 | CQ15: 0 | CR15: 0
D16: =IFERROR(VLOOKUP(C16,'UEI''s'!$A$2:$B$181,2,FALSE),"") ->  | H16: 0 | R16: 0 | AB16: 0 | AL16: 0 | AW16: 0 | BG16: 0 | BQ16: 0 | CA16: 0 | CK16: 0 | CQ16: 0 | CR16: 0
D17: =IFERROR(VLOOKUP(C17,'UEI''s'!$A$2:$B$181,2,FALSE),"") ->  | H17: 0 | R17: 0 | AB17: 0 | AL17: 0 | AW17: 0 | BG17: 0 | BQ17: 0 | CA17: 0 | CK17: 0 | CQ17: 0 | CR17: 0
D18: =IFERROR(VLOOKUP(C18,'UEI''s'!$A$2:$B$181,2,FALSE),"") ->  | H18: 0 | R18: 0 | AB18: 0 | AL18: 0 | AW18: 0 | BG18: 0 | BQ18: 0 | CA18: 0 | CK18: 0 | CQ18: 0 | CR18: 0
D19: =IFERROR(VLOOKUP(C19,'UEI''s'!$A$2:$B$181,2,FALSE),"") ->  | H19: 0 | R19: 0 | AB19: 0 | AL19: 0 | AW19: 0 | BG19: 0 | BQ19: 0 | CA19: 0 | CK19: 0 | CQ19: 0 | CR19: 0
D20: =IFERROR(VLOOKUP(C20,'UEI''s'!$A$2:$B$181,2,FALSE),"") ->  | H20: 0 | R20: 0 | AB20: 0 | AL20: 0 | AW20: 0 | BG20: 0 | BQ20: 0 | CA20: 0 | CK20: 0 | CQ20: 0 | CR20: 0
D21: =IFERROR(VLOOKUP(C21,'UEI''s'!$A$2:$B$181,2,FALSE),"") ->  | H21: 0 | R21: 0 | AB21: 0 | AL21: 0 | AW21: 0 | BG21: 0 | BQ21: 0 | CA21: 0 | CK21: 0 | CQ21: 0 | CR21: 0
D22: =IFERROR(VLOOKUP(C22,'UEI''s'!$A$2:$B$181,2,FALSE),"") ->  | H22: 0 | R22: 0 | AB22: 0 | AL22: 0 | AW22: 0 | BG22: 0 | BQ22: 0 | CA22: 0 | CK22: 0 | CQ22: 0 | CR22: 0
D23: =IFERROR(VLOOKUP(C23,'UEI''s'!$A$2:$B$181,2,FALSE),"") ->  | H23: 0 | R23: 0 | AB23: 0 | AL23: 0 | AW23: 0 | BG23: 0 | BQ23: 0 | CA23: 0 | CK23: 0 | CQ23: 0 | CR23: 0
D24: =IFERROR(VLOOKUP(C24,'UEI''s'!$A$2:$B$181,2,FALSE),"") ->  | H24: 0 | R24: 0 | AB24: 0 | AL24: 0 | AW24: 0 | BG24: 0 | BQ24: 0 | CA24: 0 | CK24: 0 | CQ24: 0 | CR24: 0
D25: =IFERROR(VLOOKUP(C25,'UEI''s'!$A$2:$B$181,2,FALSE),"") ->  | H25: 0 | R25: 0 | AB25: 0 | AL25: 0 | AW25: 0 | BG25: 0 | BQ25: 0 | CA25: 0 | CK25: 0 | CQ25: 0 | CR25: 0
D26: =IFERROR(VLOOKUP(C26,'UEI''s'!$A$2:$B$181,2,FALSE),"") ->  | H26: 0 | R26: 0 | AB26: 0 | AL26: 0 | AW26: 0 | BG26: 0 | BQ26: 0 | CA26: 0 | CK26: 0 | CQ26: 0 | CR26: 0
D27: =IFERROR(VLOOKUP(C27,'UEI''s'!$A$2:$B$181,2,FALSE),"") ->  | H27: 0 | R27: 0 | AB27: 0 | AL27: 0 | AW27: 0 | BG27: 0 | BQ27: 0 | CA27: 0 | CK27: 0 | CQ27: 0 | CR27: 0
D28: =IFERROR(VLOOKUP(C28,'UEI''s'!$A$2:$B$181,2,FALSE),"") ->  | H28: 0 | R28: 0 | AB28: 0 | AL28: 0 | AW28: 0 | BG28: 0 | BQ28: 0 | CA28: 0 | CK28: 0 | CQ28: 0 | CR28: 0
D29: =IFERROR(VLOOKUP(C29,'UEI''s'!$A$2:$B$181,2,FALSE),"") ->  | H29: 0 | R29: 0 | AB29: 0 | AL29: 0 | AW29: 0 | BG29: 0 | BQ29: 0 | CA29: 0 | CK29: 0 | CQ29: 0 | CR29: 0
D30: =IFERROR(VLOOKUP(C30,'UEI''s'!$A$2:$B$181,2,FALSE),"") ->  | H30: 0 | R30: 0 | AB30: 0 | AL30: 0 | AW30: 0 | BG30: 0 | BQ30: 0 | CA30: 0 | CK30: 0 | CQ30: 0 | CR30: 0
D31: =IFERROR(VLOOKUP(C31,'UEI''s'!$A$2:$B$181,2,FALSE),"") ->  | H31: 0 | R31: 0 | AB31: 0 | AL31: 0 | AW31: 0 | BG31: 0 | BQ31: 0 | CA31: 0 | CK31: 0 | CQ31: 0 | CR31: 0
D32: =IFERROR(VLOOKUP(C32,'UEI''s'!$A$2:$B$181,2,FALSE),"") ->  | H32: 0 | R32: 0 | AB32: 0 | AL32: 0 | AW32: 0 | BG32: 0 | BQ32: 0 | CA32: 0 | CK32: 0 | CQ32: 0 | CR32: 0
D33: =IFERROR(VLOOKUP(C33,'UEI''s'!$A$2:$B$181,2,FALSE),"") ->  | H33: 0 | R33: 0 | AB33: 0 | AL33: 0 | AW33: 0 | BG33: 0 | BQ33: 0 | CA33: 0 | CK33: 0 | CQ33: 0 | CR33: 0
D34: =IFERROR(VLOOKUP(C34,'UEI''s'!$A$2:$B$181,2,FALSE),"") ->  | H34: 0 | R34: 0 | AB34: 0 | AL34: 0 | AW34: 0 | BG34: 0 | BQ34: 0 | CA34: 0 | CK34: 0 | CQ34: 0 | CR34: 0
D35: =IFERROR(VLOOKUP(C35,'UEI''s'!$A$2:$B$181,2,FALSE),"") ->  | H35: 0 | R35: 0 | AB35: 0 | AL35: 0 | AW35: 0 | BG35: 0 | BQ35: 0 | CA35: 0 | CK35: 0 | CQ35: 0 | CR35: 0
D36: =IFERROR(VLOOKUP(C36,'UEI''s'!$A$2:$B$181,2,FALSE),"") ->  | H36: 0 | R36: 0 | AB36: 0 | AL36: 0 | AW36: 0 | BG36: 0 | BQ36: 0 | CA36: 0 | CK36: 0 | CQ36: 0 | CR36: 0
D37: =IFERROR(VLOOKUP(C37,'UEI''s'!$A$2:$B$181,2,FALSE),"") ->  | H37: 0 | R37: 0 | AB37: 0 | AL37: 0 | AW37: 0 | BG37: 0 | BQ37: 0 | CA37: 0 | CK37: =F37-SUM(G37+AV37) -> 0 | CQ37: 0 | CR37: 0
D38: =IFERROR(VLOOKUP(C38,'UEI''s'!$A$2:$B$181,2,FALSE),"") ->  | H38: 0 | R38: 0 | AB38: 0 | AL38: 0 | AW38: 0 | BG38: 0 | BQ38: 0 | CA38: 0 | CK38: 0 | CQ38: 0 | CR38: 0
D39: =IFERROR(VLOOKUP(C39,'UEI''s'!$A$2:$B$181,2,FALSE),"") ->  | H39: 0 | R39: 0 | AB39: 0 | AL39: 0 | AW39: 0 | BG39: 0 | BQ39: 0 | CA39: 0 | CK39: 0 | CQ39: 0 | CR39: 0
D40: =IFERROR(VLOOKUP(C40,'UEI''s'!$A$2:$B$181,2,FALSE),"") ->  | H40: 0 | R40: 0 | AB40: 0 | AL40: 0 | AW40: 0 | BG40: 0 | BQ40: 0 | CA40: 0 | CK40: 0 | CQ40: 0 | CR40: 0
H41: 0 | R41: 0 | AB41: 0 | AL41: 0 | AW41: 0 | BG41: 0 | BQ41: 0 | CA41: 0 | CK41: 0 | CQ41: 0 | CR41: 0
H42: 0 | R42: 0 | AB42: 0 | AL42: 0 | AW42: 0 | BG42: 0 | BQ42: 0 | CA42: 0 | CK42: 0 | CQ42: 0 | CR42: 0
H43: 0 | R43: 0 | AB43: 0 | AL43: 0 | AW43: 0 | BG43: 0 | BQ43: 0 | CA43: 0 | CK43: 0 | CQ43: 0 | CR43: 0
H44: 0 | R44: 0 | AB44: 0 | AL44: 0 | AW44: 0 | BG44: 0 | BQ44: 0 | CA44: 0 | CK44: 0 | CQ44: 0 | CR44: 0
H45: 0 | R45: 0 | AB45: 0 | AL45: 0 | AW45: 0 | BG45: 0 | BQ45: 0 | CA45: 0 | CK45: 0 | CQ45: 0 | CR45: 0
H46: 0 | R46: 0 | AB46: 0 | AL46: 0 | AW46: 0 | BG46: 0 | BQ46: 0 | CA46: 0 | CK46: 0 | CQ46: 0 | CR46: 0
H47: 0 | R47: 0 | AB47: 0 | AL47: 0 | AW47: 0 | BG47: 0 | BQ47: 0 | CA47: 0 | CK47: 0 | CQ47: 0 | CR47: 0
H48: 0 | R48: 0 | AB48: 0 | AL48: 0 | AW48: 0 | BG48: 0 | BQ48: 0 | CA48: 0 | CK48: 0 | CQ48: 0 | CR48: 0
H49: 0 | R49: 0 | AB49: 0 | AL49: 0 | AW49: 0 | BG49: 0 | BQ49: 0 | CA49: 0 | CK49: 0 | CQ49: 0 | CR49: 0
H50: 0 | R50: 0 | AB50: 0 | AL50: 0 | AW50: 0 | BG50: 0 | BQ50: 0 | CA50: 0 | CK50: 0 | CQ50: 0 | CR50: 0
H51: 0 | R51: 0 | AB51: 0 | AL51: 0 | AW51: 0 | BG51: 0 | BQ51: 0 | CA51: 0 | CK51: 0 | CQ51: 0 | CR51: 0
H52: 0 | R52: 0 | AB52: 0 | AL52: 0 | AW52: 0 | BG52: 0 | BQ52: 0 | CA52: 0 | CK52: 0 | CQ52: 0 | CR52: 0
H53: 0 | R53: 0 | AB53: 0 | AL53: 0 | AW53: 0 | BG53: 0 | BQ53: 0 | CA53: 0 | CK53: 0 | CQ53: 0 | CR53: 0
H54: 0 | R54: 0 | AB54: 0 | AL54: 0 | AW54: 0 | BG54: 0 | BQ54: 0 | CA54: 0 | CK54: 0 | CQ54: 0 | CR54: 0
H55: 0 | R55: 0 | AB55: 0 | AL55: 0 | AW55: 0 | BG55: 0 | BQ55: 0 | CA55: 0 | CK55: 0 | CQ55: 0 | CR55: 0
H56: 0 | R56: 0 | AB56: 0 | AL56: 0 | AW56: 0 | BG56: 0 | BQ56: 0 | CA56: 0 | CK56: 0 | CQ56: 0 | CR56: 0
H57: 0 | R57: 0 | AB57: 0 | AL57: 0 | AW57: 0 | BG57: 0 | BQ57: 0 | CA57: 0 | CK57: 0 | CQ57: 0 | CR57: 0
H58: 0 | R58: 0 | AB58: 0 | AL58: 0 | AW58: 0 | BG58: 0 | BQ58: 0 | CA58: 0 | CK58: 0 | CQ58: 0 | CR58: 0
H59: 0 | R59: 0 | AB59: 0 | AL59: 0 | AW59: 0 | BG59: 0 | BQ59: 0 | CA59: 0 | CK59: 0 | CQ59: 0 | CR59: 0
H60: 0 | R60: 0 | AB60: 0 | AL60: 0 | AW60: 0 | BG60: 0 | BQ60: 0 | CA60: 0 | CK60: 0 | CQ60: 0 | CR60: 0
H61: 0 | R61: 0 | AB61: 0 | AL61: 0 | AW61: 0 | BG61: 0 | BQ61: 0 | CA61: 0 | CK61: 0 | CQ61: 0 | CR61: 0
H62: 0 | R62: 0 | AB62: 0 | AL62: 0 | AW62: 0 | BG62: 0 | BQ62: 0 | CA62: 0 | CK62: 0 | CQ62: 0 | CR62: 0
H63: 0 | R63: 0 | AB63: 0 | AL63: 0 | AW63: 0 | BG63: 0 | BQ63: 0 | CA63: 0 | CK63: 0 | CQ63: 0 | CR63: 0
H64: 0 | R64: 0 | AB64: 0 | AL64: 0 | AW64: 0 | BG64: 0 | BQ64: 0 | CA64: 0 | CK64: 0 | CQ64: 0 | CR64: 0
H65: 0 | R65: 0 | AB65: 0 | AL65: 0 | AW65: 0 | BG65: 0 | BQ65: 0 | CA65: 0 | CK65: 0 | CQ65: 0 | CR65: 0
H66: 0 | R66: 0 | AB66: 0 | AL66: 0 | AW66: 0 | BG66: 0 | BQ66: 0 | CA66: 0 | CK66: 0 | CQ66: 0 | CR66: 0
H67: 0 | R67: 0 | AB67: 0 | AL67: 0 | AW67: 0 | BG67: 0 | BQ67: 0 | CA67: 0 | CK67: 0 | CQ67: 0 | CR67: 0
H68: 0 | R68: 0 | AB68: 0 | AL68: 0 | AW68: 0 | BG68: 0 | BQ68: 0 | CA68: 0 | CK68: 0 | CQ68: 0 | CR68: 0
H69: 0 | R69: 0 | AB69: 0 | AL69: 0 | AW69: 0 | BG69: 0 | BQ69: 0 | CA69: 0 | CK69: =F69-SUM(G69+AV69) -> 0 | CQ69: 0 | CR69: 0
H70: =SUM(I70:Q70) -> 0 | R70: =SUM(S70:AA70) -> 0 | AB70: =SUM(AC70:AK70) -> 0 | AL70: =SUM(AM70:AU70) -> 0 | AW70: =SUM(AX70:BF70) -> 0 | BG70: =SUM(BH70:BP70) -> 0 | BQ70: =SUM(BR70:BZ70) -> 0 | CA70: =SUM(CB70:CJ70) -> 0 | CK70: 0 | CQ70: =G70*20% -> 0 | CR70: =SUM(H70,R70,AB70,AL70) -> 0
H71: 0 | R71: 0 | AB71: 0 | AL71: 0 | AW71: 0 | BG71: 0 | BQ71: 0 | CA71: 0 | CK71: 0 | CQ71: 0 | CR71: 0
H72: 0 | R72: 0 | AB72: 0 | AL72: 0 | AW72: 0 | BG72: 0 | BQ72: 0 | CA72: 0 | CK72: 0 | CQ72: 0 | CR72: 0
H73: 0 | R73: 0 | AB73: 0 | AL73: 0 | AW73: 0 | BG73: 0 | BQ73: 0 | CA73: 0 | CK73: 0 | CQ73: 0 | CR73: 0
H74: 0 | R74: 0 | AB74: 0 | AL74: 0 | AW74: 0 | BG74: 0 | BQ74: 0 | CA74: 0 | CK74: 0 | CQ74: 0 | CR74: 0
H75: 0 | R75: 0 | AB75: 0 | AL75: 0 | AW75: 0 | BG75: 0 | BQ75: 0 | CA75: 0 | CK75: 0 | CQ75: 0 | CR75: 0
H76: 0 | R76: 0 | AB76: 0 | AL76: 0 | AW76: 0 | BG76: 0 | BQ76: 0 | CA76: 0 | CK76: 0 | CQ76: 0 | CR76: 0
H77: 0 | R77: 0 | AB77: 0 | AL77: 0 | AW77: 0 | BG77: 0 | BQ77: 0 | CA77: 0 | CK77: 0 | CQ77: 0 | CR77: 0
H78: 0 | R78: 0 | AB78: 0 | AL78: 0 | AW78: 0 | BG78: 0 | BQ78: 0 | CA78: 0 | CK78: 0 | CQ78: 0 | CR78: 0
H79: 0 | R79: 0 | AB79: 0 | AL79: 0 | AW79: 0 | BG79: 0 | BQ79: 0 | CA79: 0 | CK79: 0 | CQ79: 0 | CR79: 0
H80: 0 | R80: 0 | AB80: 0 | AL80: 0 | AW80: 0 | BG80: 0 | BQ80: 0 | CA80: 0 | CK80: 0 | CQ80: 0 | CR80: 0
BM266: - Please Select From One of the Following -
BM267: % Proficient in Math Assessment
BM268: % Proficient in ELA Assessment
BM269: % Proficient in Science Assessment
BM271: FAFSA Completion Rate
BM272: 4-Year Adjusted Cohort Graduation Rate
BM273: College and Career Readiness
BM274: Civic Readiness
BM275: Other-Fill-in
BM278: - Please Select From One of the Following -
BM279: % Participating in Math Assessment
BM280: % Participating in ELA Assessment
BM281: % Participating in Science Assessment
BM282: % Participating in ELP Assessment
BM283: Average Daily Attendance
BM284: Chronic Absenteeism
BM285: Rate Of Suspension (Including In-School Suspensions And Expulsion)
BM286: Incidences Of Bullying And Harassment
BM287: Other-Fill-in
BM289: - Please Select From the Following -
BM290: 2020 to 2021
BM291: 2021 to 2022
BM292: 2022 to 2023
BM293: 2023 to 2024

Sheet V. Authorization
A1: X. Authorization
A3: *Please print and sign this page. Return a signed version with your completed packet to: | I3: ESSER@doe.nh.gov
A8: Approver Signature - Superintendent / Head of School | H8: Date
A10: Michael J. Tursi, Superintendent of Schools
A13: Printed Name - Superintendent / Head of School

Sheet Appx. A. ARPA Statutory Excerpt
A1: Appendix A: ARPA Statutory Excerpt
A3: Appendix A. ARPA Statutory Excerpt (e) USES OF FUNDS.—A local educational agency that receives funds under this section— (1) shall reserve not less than 20 percent of such funds to address learning loss through the implementation of evidence-based interventions, such as summer learning or summer enrichment, extended day, comprehensive afterschool programs, or extended school year programs, and ensure that such interventions respond to students’ academic, social, and emotional needs and address the disproportionate impact of the coronavirus on the student subgroups described in section 1111(b)(2)(B)(xi) of the Elementary and Secondary Education Act of 1965 (20U.S.C. 6311(b)(2)(B)(xi)), students experiencing homelessness, and children and youth in foster care; and
A11: (2) shall use the remaining funds for any of the following: (A) Any activity authorized by the Elementary and Secondary Education Act of 1965. (B) Any activity authorized by the Individuals with Disabilities Education Act. (C) Any activity authorized by the Adult Education and Family Literacy Act. (D) Any activity authorized by the Carl D. Perkins Career and Technical Education Act of 2006. (E) Coordination of preparedness and response efforts of local educational agencies with State, local, Tribal, and territorial public health departments, and other relevant agencies, to improve coordinated responses among such entities to prevent, prepare for, and respond to coronavirus. (F) Activities to address the unique needs of low-income children or students, children with disabilities, English learners, racial and ethnic minorities, students experiencing homelessness, and foster care youth, including how outreach and service delivery will meet the needs of each population. (G) Developing and implementing procedures and systems to improve the preparedness and response efforts of local educational agencies. (H) Training and professional development for staff of the local educational agency on sanitation and minimizing the spread of infectious diseases. (I) Purchasing supplies to sanitize and clean the facilities of a local educational agency, including buildings operated by such agency. (J) Planning for, coordinating, and implementing activities during long-term closures, including providing meals to eligible students, providing technology for online learning to all students, providing guidance for carrying out requirements under the Individuals with Disabilities Education Act and ensuring other educational services can continue to be provided consistent with all Federal, State, and local requirements. (K) Purchasing educational technology (including hardware, software, and connectivity) for students who are served by the local educational agency that aids in regular and substantive educational interaction between students and their classroom instructors, including low-income students and children with disabilities, which may include assistive technology or adaptive equipment. (L) Providing mental health services and supports, including through the implementation of evidence-based full-service community schools. (M) Planning and implementing activities related to summer learning and supplemental afterschool programs, including providing classroom instruction or online learning during the summer months and addressing the needs of low-income students, children with disabilities, English learners, migrant students, students experiencing homelessness, and children in foster care. (N) Addressing learning loss among students, including low-income students, children with disabilities, English learners, racial and ethnic minorities, students experiencing homelessness, and children and youth in foster care, of the local educational agency, including by— (i) administering and using high-quality assessments that are valid and reliable, to accurately assess students’ academic progress and assist educators in meeting students’ academic needs, including through differentiating instruction; (ii) implementing evidence-based activities to meet the comprehensive needs of students; (iii) providing information and assistance to parents and families on how they can effectively support students, including in a distance learning environment; and (iv) tracking student attendance and improving student engagement in distance education. (O) School facility repairs and improvements to enable operation of schools to reduce risk of virus transmission and exposure to environmental health hazards, and to support student health needs. (P) Inspection, testing, maintenance, repair, replacement, and upgrade projects to improve the indoor air quality in school facilities, including mechanical and non-mechanical heating, ventilation, and air conditioning systems, filtering, purification and other air cleaning, fans, control systems, and window and door repair and replacement. (Q) Developing strategies and implementing public health protocols including, to the greatest extent practicable, policies in line with guidance from the Centers for Disease Control and Prevention for the reopening and operation of school facilities to effectively maintain the health and safety of students, educators, and other staff. (R) Other activities that are necessary to maintain the operation of and continuity of services in local educational agencies and continuing to employ existing staff of the local educational agency.

Sheet Appx. B. ARP ESSER IFR Excerpt
A1: Appendix B. Interim Final Requirements of ARP ESSER Excerpt
A3: Appendix B. Interim Final Requirements of ARP ESSER Excerpt
A4: (2) LEA ARP ESSER Plan. (a) Each LEA that receives ARP ESSER funds must submit to the SEA, in such manner and within a reasonable timeline as determined by the SEA, a plan that contains any information reasonably required by the SEA. The plan, and any revisions to the plan submitted consistent with procedures established by the SEA, must describe— (i) The extent to which and how the funds will be used to implement prevention and mitigation strategies that are, to the greatest extent practicable, consistent with the most recent CDC guidance on reopening schools, in order to continuously and safely open and operate schools for in-person learning; (ii) How the LEA will use the funds it reserves under section 2001(e)(1) of the ARP Act to address the academic impact of lost instructional time through the implementation of evidence-based interventions, such as summer learning or summer enrichment, extended day, comprehensive afterschool programs, or extended school year programs; (iii) How the LEA will spend its remaining ARP ESSER funds consistent with section 2001(e) of the ARP Act; and (iv) How the LEA will ensure that the interventions it implements, including but not limited to the interventions under section 2001(e)(1) of the ARP Act to address the academic impact of lost instructional time, will respond to the academic, social, emotional, and mental health needs of all students, and particularly those students disproportionately impacted by the COVID-19 pandemic, including students from low-income families, students of color, English learners, children with disabilities, students experiencing homelessness, children in foster care, and migratory students. (b) In developing its ARP ESSER plan, an LEA must— (i) Engage in meaningful consultation— (A) With stakeholders, including: Students; families; school and district administrators (including special education administrators); and teachers, principals, school leaders, other educators, school staff, and their unions; and (B) To the extent present in or served by the LEA: Tribes; civil rights organizations (including disability rights organizations); and stakeholders representing the interests of children with disabilities, English learners, children experiencing homelessness, children in foster care, migratory students, children who are incarcerated, and other underserved students; and (ii) Provide the public the opportunity to provide input and take such input into account. (c) An LEA's ARP ESSER plan must be— (i) In an understandable and uniform format; (ii) To the extent practicable, written in a language that parents can understand or, if it is not practicable to provide written translations to a parent with limited English proficiency, be orally translated for such parent; (iii) Upon request by a parent who is an individual with a disability as defined by the ADA, provided in an alternative format accessible to that parent; and (iv) Be made publicly available on the LEA's website.

Sheet Print to PDF & Other
A1: Please follow these steps once all tabs of your Districts Excel workbook are completed.
A3: 1) | B3: Go to File:
A13: 2) | B13: Select "Save as Adobe PDF":
A32: 3) | B32: Select "Entire Workbook" and "Fit to paper width." Locate the "IV. Budget and Data Reporting" tab from the list beneath "Sheets in PDF." Select "Remove." The reason is because this spreadsheet is so large, that the information will not easily transpose.
B33: The V. Authorization tab will need to be printed manually from Excel. The print range within the Excel worbook has been established for all tabs outlined.
A64: 3) | B64: Items due to the NHDOE by 01/13/2023:
B65: A. | C65: NH ARP ESSSER LEA Fund Use - Excel Workbook
B66: i. | C66: Print the "V. Authorization" tab from Excel file
B67: ii. | C67: Manually print and sign the "V. Authorization" tab from Excel file
B68: B. | C68: NH ARP ESSSER LEA Fund Use - PDF Version
B69: C. | C69: Return each item listed above in one email message to ESSER@doe.nh.gov (3 separate attachments)

Sheet Enrollments (hidden)
A1: District Name | B1: District ID | C1: SAU # | D1: SAU Name | E1: PreSchool | F1: Kindergarten | G1: Elementary | H1: Middle | I1: High | J1: Total
A2: Allenstown | B2: 9 | C2: 53 | D2: Pembroke | E2: 0 | F2: 49 | G2: 288 | H2: 0 | I2: 0 | J2: 337
A3: Alton | B3: 15 | C3: 72 | D3: Alton | E3: 38 | F3: 32 | G3: 337 | H3: 0 | I3: 0 | J3: 407
A4: Amherst | B4: 17 | C4: 39 | D4: Amherst | E4: 37 | F4: 117 | G4: 517 | H4: 648 | I4: 0 | J4: 1319
A5: Andover | B5: 19 | C5: 46 | D5: Merrimack Valley | E5: 0 | F5: 15 | G5: 195 | H5: 0 | I5: 0 | J5: 210
A6: Ashland | B6: 23 | C6: 2 | D6: Inter-Lakes Cooperative | E6: 0 | F6: 19 | G6: 147 | H6: 0 | I6: 0 | J6: 166
A7: Auburn | B7: 29 | C7: 15 | D7: Hooksett | E7: 0 | F7: 69 | G7: 560 | H7: 0 | I7: 0 | J7: 629
A8: Barnstead | B8: 31 | C8: 86 | D8: Barnstead | E8: 23 | F8: 42 | G8: 427 | H8: 0 | I8: 0 | J8: 492
A9: Barrington | B9: 33 | C9: 74 | D9: Barrington | E9: 46 | F9: 111 | G9: 413 | H9: 399 | I9: 0 | J9: 969
A10: Bartlett | B10: 35 | C10: 9 | D10: Conway | E10: 14 | F10: 23 | G10: 131 | H10: 0 | I10: 0 | J10: 168
A11: Bath | B11: 39 | C11: 23 | D11: Haverhill Cooperative | E11: 0 | F11: 7 | G11: 58 | H11: 0 | I11: 0 | J11: 65
A12: Bedford | B12: 41 | C12: 25 | D12: Bedford | E12: 65 | F12: 190 | G12: 1848 | H12: 690 | I12: 1443 | J12: 4236
A13: Berlin | B13: 51 | C13: 3 | D13: Berlin | E13: 1 | F13: 70 | G13: 378 | H13: 247 | I13: 355 | J13: 1051
A14: Bethlehem | B14: 53 | C14: 35 | D14: SAU #35 Office | E14: 10 | F14: 15 | G14: 115 | H14: 0 | I14: 0 | J14: 140
A15: Bow | B15: 57 | C15: 67 | D15: Bow | E15: 17 | F15: 90 | G15: 407 | H15: 548 | I15: 626 | J15: 1688
A16: Brentwood | B16: 63 | C16: 16 | D16: Exeter | E16: 12 | F16: 41 | G16: 236 | H16: 0 | I16: 0 | J16: 289
A17: Brookline | B17: 71 | C17: 41 | D17: Hollis-Brookline | E17: 12 | F17: 81 | G17: 490 | H17: 0 | I17: 0 | J17: 583
A18: Campton | B18: 75 | C18: 48 | D18: Plymouth | E18: 27 | F18: 35 | G18: 256 | H18: 0 | I18: 0 | J18: 318
A19: Candia | B19: 79 | C19: 15 | D19: Hooksett | E19: 0 | F19: 22 | G19: 253 | H19: 0 | I19: 0 | J19: 275
A20: Chester | B20: 93 | C20: 82 | D20: Chester | E20: 17 | F20: 49 | G20: 416 | H20: 0 | I20: 0 | J20: 482
A21: Chesterfield | B21: 95 | C21: 29 | D21: Keene | E21: 0 | F21: 30 | G21: 243 | H21: 0 | I21: 0 | J21: 273
A22: Chichester | B22: 99 | C22: 53 | D22: Pembroke | E22: 0 | F22: 25 | G22: 174 | H22: 0 | I22: 0 | J22: 199
A23: Claremont | B23: 101 | C23: 6 | D23: Claremont | E23: 53 | F23: 105 | G23: 593 | H23: 385 | I23: 540 | J23: 1676
A24: Colebrook | B24: 105 | C24: 7 | D24: Colebrook | E24: 8 | F24: 28 | G24: 177 | H24: 0 | I24: 105 | J24: 318
A25: Concord | B25: 111 | C25: 8 | D25: Concord | E25: 68 | F25: 293 | G25: 1353 | H25: 861 | I25: 1504 | J25: 4079
A26: Contoocook Valley | B26: 112 | C26: 1 | D26: Contoocook Valley | E26: 62 | F26: 141 | G26: 583 | H26: 580 | I26: 696 | J26: 2062
A27: Conway | B27: 113 | C27: 9 | D27: Conway | E27: 0 | F27: 67 | G27: 525 | H27: 229 | I27: 726 | J27: 1547
A28: Cornish | B28: 115 | C28: 100 | D28: Cornish | E28: 16 | F28: 12 | G28: 96 | H28: 0 | I28: 0 | J28: 124
A29: Croydon | B29: 117 | C29: 99 | D29: Croydon | E29: 0 | F29: 4 | G29: 20 | H29: 0 | I29: 0 | J29: 24
A30: Deerfield | B30: 127 | C30: 53 | D30: Pembroke | E30: 40 | F30: 48 | G30: 434 | H30: 0 | I30: 0 | J30: 522
A31: Derry Cooperative | B31: 131 | C31: 10 | D31: Derry Cooperative | E31: 111 | F31: 300 | G31: 1637 | H31: 1071 | I31: 0 | J31: 3119
A32: Dover | B32: 141 | C32: 11 | D32: Dover | E32: 47 | F32: 231 | G32: 922 | H32: 1074 | I32: 1530 | J32: 3804
A33: Dresden | B33: 142 | C33: 70 | D33: Hanover | E33: 0 | F33: 0 | G33: 349 | H33: 0 | I33: 688 | J33: 1037
A34: Dunbarton | B34: 149 | C34: 67 | D34: Bow | E34: 0 | F34: 29 | G34: 207 | H34: 0 | I34: 0 | J34: 236
A35: East Kingston | B35: 153 | C35: 16 | D35: Exeter | E35: 0 | F35: 30 | G35: 106 | H35: 0 | I35: 0 | J35: 136
A36: Epping | B36: 165 | C36: 14 | D36: Epping | E36: 33 | F36: 68 | G36: 350 | H36: 182 | I36: 245 | J36: 878
A37: Epsom | B37: 167 | C37: 53 | D37: Pembroke | E37: 0 | F37: 46 | G37: 333 | H37: 0 | I37: 0 | J37: 379
A38: Errol | B38: 171 | C38: 20 | D38: Gorham | E38: 0 | F38: 0 | G38: 8 | H38: 0 | I38: 0 | J38: 8
A39: Exeter | B39: 173 | C39: 16 | D39: Exeter | E39: 33 | F39: 118 | G39: 699 | H39: 0 | I39: 0 | J39: 850
A40: Exeter Region Cooperative | B40: 172 | C40: 16 | D40: Exeter | E40: 0 | F40: 0 | G40: 0 | H40: 966 | I40: 1509 | J40: 2475
A41: Fall Mountain Regional | B41: 174 | C41: 60 | D41: Fall Mountain Regional | E41: 67 | F41: 81 | G41: 799 | H41: 0 | I41: 497 | J41: 1444
A42: Farmington | B42: 175 | C42: 61 | D42: Farmington | E42: 24 | F42: 48 | G42: 460 | H42: 0 | I42: 249 | J42: 781
A43: Franklin | B43: 185 | C43: 18 | D43: Franklin | E43: 18 | F43: 64 | G43: 568 | H43: 0 | I43: 267 | J43: 917
A44: Freedom | B44: 187 | C44: 13 | D44: Tamworth | E44: 0 | F44: 6 | G44: 30 | H44: 0 | I44: 0 | J44: 36
A45: Fremont | B45: 189 | C45: 83 | D45: Fremont | E45: 20 | F45: 43 | G45: 319 | H45: 0 | I45: 0 | J45: 382
A46: Gilford | B46: 191 | C46: 73 | D46: Gilford | E46: 0 | F46: 64 | G46: 246 | H46: 320 | I46: 496 | J46: 1126
A47: Gilmanton | B47: 195 | C47: 79 | D47: Gilmanton | E47: 0 | F47: 31 | G47: 333 | H47: 0 | I47: 0 | J47: 364
A48: Goffstown | B48: 199 | C48: 19 | D48: Goffstown | E48: 65 | F48: 140 | G48: 690 | H48: 862 | I48: 1000 | J48: 2757
A49: Gorham Randolph Shelburne Cooperative | B49: 203 | C49: 20 | D49: Gorham | E49: 0 | F49: 32 | G49: 125 | H49: 94 | I49: 142 | J49: 393
A50: Goshen | B50: 204 | C50: 102 | D50: Goshen | E50: - | F50: - | G50: - | H50: - | I50: - | J50: 0
A51: Governor Wentworth Regional | B51: 208 | C51: 49 | D51: Governor Wentworth Regional | E51: 25 | F51: 127 | G51: 853 | H51: 375 | I51: 728 | J51: 2108
A52: Grantham | B52: 211 | C52: 75 | D52: Grantham | E52: 20 | F52: 41 | G52: 215 | H52: 0 | I52: 0 | J52: 276
A53: Greenland | B53: 215 | C53: 50 | D53: Greenland | E53: 0 | F53: 42 | G53: 348 | H53: 0 | I53: 0 | J53: 390
A54: Hampstead | B54: 223 | C54: 55 | D54: Hampstead | E54: 31 | F54: 92 | G54: 325 | H54: 354 | I54: 0 | J54: 802
A55: Hampton | B55: 225 | C55: 90 | D55: Hampton | E55: 29 | F55: 97 | G55: 825 | H55: 0 | I55: 0 | J55: 951
A56: Hampton Falls | B56: 227 | C56: 21 | D56: Winnacunnet | E56: 0 | F56: 13 | G56: 169 | H56: 0 | I56: 0 | J56: 182
A57: Hanover | B57: 233 | C57: 70 | D57: Hanover | E57: 0 | F57: 85 | G57: 412 | H57: 0 | I57: 0 | J57: 497
A58: Harrisville | B58: 235 | C58: 29 | D58: Keene | E58: 0 | F58: 9 | G58: 45 | H58: 0 | I58: 0 | J58: 54
A59: Haverhill Cooperative | B59: 238 | C59: 23 | D59: Haverhill Cooperative | E59: 29 | F59: 48 | G59: 127 | H59: 235 | I59: 221 | J59: 660
A60: Henniker | B60: 245 | C60: 24 | D60: Henniker | E60: 18 | F60: 35 | G60: 344 | H60: 0 | I60: 0 | J60: 397
A61: Hill | B61: 247 | C61: 103 | D61: Hill | E61: 6 | F61: 3 | G61: 40 | H61: 0 | I61: 0 | J61: 49
A62: Hillsboro-Deering Cooperative | B62: 251 | C62: 34 | D62: Hillsboro-Deering | E62: 28 | F62: 65 | G62: 327 | H62: 252 | I62: 368 | J62: 1040
A63: Hinsdale | B63: 255 | C63: 92 | D63: Hinsdale | E63: 26 | F63: 37 | G63: 201 | H63: 127 | I63: 140 | J63: 531
A64: Holderness | B64: 257 | C64: 48 | D64: Plymouth | E64: 0 | F64: 13 | G64: 131 | H64: 0 | I64: 0 | J64: 144
A65: Hollis | B65: 259 | C65: 41 | D65: Hollis-Brookline | E65: 8 | F65: 74 | G65: 531 | H65: 0 | I65: 0 | J65: 613
A66: Hollis-Brookline Cooperative | B66: 260 | C66: 41 | D66: Hollis-Brookline | E66: 0 | F66: 0 | G66: 0 | H66: 362 | I66: 830 | J66: 1192
A67: Hooksett | B67: 261 | C67: 15 | D67: Hooksett | E67: 16 | F67: 115 | G67: 655 | H67: 433 | I67: 0 | J67: 1219
A68: Hopkinton | B68: 263 | C68: 66 | D68: Hopkinton | E68: 33 | F68: 47 | G68: 388 | H68: 135 | I68: 321 | J68: 924
A69: Hudson | B69: 267 | C69: 81 | D69: Hudson | E69: 69 | F69: 193 | G69: 1020 | H69: 698 | I69: 1060 | J69: 3040
A70: Inter-Lakes Cooperative | B70: 269 | C70: 2 | D70: Inter-Lakes Cooperative | E70: 19 | F70: 54 | G70: 569 | H70: 0 | I70: 293 | J70: 935
A71: Jackson | B71: 271 | C71: 9 | D71: Conway | E71: 0 | F71: 2 | G71: 42 | H71: 0 | I71: 0 | J71: 44
A72: Jaffrey-Rindge Cooperative | B72: 274 | C72: 47 | D72: Jaffrey-Rindge | E72: 66 | F72: 91 | G72: 455 | H72: 297 | I72: 377 | J72: 1286
A73: John Stark Regional | B73: 275 | C73: 24 | D73: Henniker | E73: 0 | F73: 0 | G73: 0 | H73: 0 | I73: 579 | J73: 579
A74: Kearsarge Regional | B74: 276 | C74: 65 | D74: Kearsarge Regional | E74: 32 | F74: 124 | G74: 637 | H74: 415 | I74: 513 | J74: 1721
A75: Keene | B75: 279 | C75: 29 | D75: Keene | E75: 85 | F75: 180 | G75: 834 | H75: 653 | I75: 1351 | J75: 3103
A76: Kensington | B76: 281 | C76: 16 | D76: Exeter | E76: 0 | F76: 18 | G76: 110 | H76: 0 | I76: 0 | J76: 128
A77: Laconia | B77: 285 | C77: 30 | D77: Laconia | E77: 67 | F77: 128 | G77: 632 | H77: 422 | I77: 583 | J77: 1832
A78: Lafayette Regional | B78: 288 | C78: 35 | D78: SAU #35 Office | E78: 0 | F78: 10 | G78: 82 | H78: 0 | I78: 0 | J78: 92
A79: Landaff | B79: 291 | C79: 35 | D79: SAU #35 Office | E79: 10 | F79: 4 | G79: 9 | H79: 0 | I79: 0 | J79: 23
A80: Lebanon | B80: 295 | C80: 88 | D80: Lebanon | E80: 37 | F80: 106 | G80: 408 | H80: 464 | I80: 610 | J80: 1625
A81: Lempster | B81: 299 | C81: 71 | D81: Lempster | E81: 7 | F81: 16 | G81: 96 | H81: 0 | I81: 0 | J81: 119
A82: Lincoln-Woodstock Cooperative | B82: 305 | C82: 68 | D82: Lincoln-Woodstock | E82: 0 | F82: 20 | G82: 93 | H82: 63 | I82: 94 | J82: 270
A83: Lisbon Regional | B83: 306 | C83: 35 | D83: SAU #35 Office | E83: 0 | F83: 22 | G83: 139 | H83: 51 | I83: 90 | J83: 302
A84: Litchfield | B84: 315 | C84: 27 | D84: Litchfield | E84: 35 | F84: 81 | G84: 330 | H84: 354 | I84: 423 | J84: 1223
A85: Littleton | B85: 317 | C85: 84 | D85: Littleton | E85: 0 | F85: 56 | G85: 288 | H85: 108 | I85: 205 | J85: 657
A86: Londonderry | B86: 319 | C86: 12 | D86: Londonderry | E86: 110 | F86: 278 | G86: 1467 | H86: 911 | I86: 1377 | J86: 4143
A87: Lyme | B87: 327 | C87: 76 | D87: Lyme | E87: 0 | F87: 23 | G87: 175 | H87: 0 | I87: 0 | J87: 198
A88: Madison | B88: 333 | C88: 13 | D88: Tamworth | E88: 0 | F88: 13 | G88: 117 | H88: 0 | I88: 0 | J88: 130
A89: Manchester | B89: 335 | C89: 37 | D89: Manchester | E89: 328 | F89: 852 | G89: 4210 | H89: 3162 | I89: 3876 | J89: 12428
A90: Marlborough | B90: 339 | C90: 29 | D90: Keene | E90: 14 | F90: 16 | G90: 130 | H90: 0 | I90: 0 | J90: 160
A91: Marlow | B91: 341 | C91: 29 | D91: Keene | E91: 4 | F91: 8 | G91: 37 | H91: 0 | I91: 0 | J91: 49
A92: Mascenic Regional | B92: 342 | C92: 87 | D92: Mascenic Regional | E92: 32 | F92: 69 | G92: 297 | H92: 271 | I92: 267 | J92: 936
A93: Mascoma Valley Regional | B93: 343 | C93: 62 | D93: Mascoma Valley | E93: 69 | F93: 67 | G93: 632 | H93: 0 | I93: 314 | J93: 1082
A94: Mason | B94: 345 | C94: 89 | D94: Mason | E94: 8 | F94: 13 | G94: 71 | H94: 0 | I94: 0 | J94: 92
A95: Merrimack | B95: 351 | C95: 26 | D95: Merrimack | E95: 118 | F95: 256 | G95: 1532 | H95: 556 | I95: 1153 | J95: 3615
A96: Merrimack Valley | B96: 352 | C96: 46 | D96: Merrimack Valley | E96: 32 | F96: 146 | G96: 761 | H96: 477 | I96: 790 | J96: 2206
A97: Middleton | B97: 353 | C97: 69 | D97: Middleton SAU | E97: 4 | F97: 29 | G97: 115 | H97: 0 | I97: 0 | J97: 148
A98: Milan | B98: 355 | C98: 20 | D98: Gorham | E98: 19 | F98: 13 | G98: 82 | H98: 0 | I98: 0 | J98: 114
A99: Milford | B99: 357 | C99: 40 | D99: Milford | E99: 40 | F99: 142 | G99: 728 | H99: 488 | I99: 766 | J99: 2164
A100: Milton | B100: 359 | C100: 64 | D100: Milton | E100: 22 | F100: 35 | G100: 185 | H100: 125 | I100: 149 | J100: 516
A101: Monadnock Regional | B101: 363 | C101: 93 | D101: Monadnock Regional | E101: 59 | F101: 124 | G101: 727 | H101: 254 | I101: 442 | J101: 1606
A102: Monroe | B102: 365 | C102: 77 | D102: Monroe | E102: 6 | F102: 7 | G102: 75 | H102: 0 | I102: 0 | J102: 88
A103: Mont Vernon | B103: 367 | C103: 39 | D103: Amherst | E103: 0 | F103: 26 | G103: 190 | H103: 0 | I103: 0 | J103: 216
A104: Moultonborough | B104: 369 | C104: 45 | D104: Moultonborough | E104: 45 | F104: 34 | G104: 168 | H104: 109 | I104: 144 | J104: 500
A105: Nashua | B105: 371 | C105: 42 | D105: Nashua | E105: 310 | F105: 687 | G105: 3535 | H105: 2157 | I105: 3449 | J105: 10138
A106: Nelson | B106: 375 | C106: 29 | D106: Keene | E106: 0 | F106: 4 | G106: 57 | H106: 0 | I106: 0 | J106: 61
A107: New Boston | B107: 377 | C107: 19 | D107: Goffstown | E107: 24 | F107: 32 | G107: 443 | H107: 0 | I107: 0 | J107: 499
A108: New Castle | B108: 381 | C108: 50 | D108: Greenland | E108: 0 | F108: 3 | G108: 23 | H108: 0 | I108: 0 | J108: 26
A109: Newfields | B109: 387 | C109: 16 | D109: Exeter | E109: 0 | F109: 21 | G109: 95 | H109: 0 | I109: 0 | J109: 116
A110: Newfound Area | B110: 388 | C110: 4 | D110: Newfound Area | E110: 28 | F110: 84 | G110: 402 | H110: 260 | I110: 406 | J110: 1180
A111: Newington | B111: 391 | C111: 50 | D111: Greenland | E111: 0 | F111: 9 | G111: 42 | H111: 0 | I111: 0 | J111: 51
A112: Newmarket | B112: 399 | C112: 31 | D112: Newmarket | E112: 39 | F112: 82 | G112: 598 | H112: 0 | I112: 270 | J112: 989
A113: Newport | B113: 401 | C113: 43 | D113: Newport | E113: 29 | F113: 48 | G113: 274 | H113: 205 | I113: 295 | J113: 851
A114: North Hampton | B114: 405 | C114: 21 | D114: Winnacunnet | E114: 13 | F114: 28 | G114: 259 | H114: 0 | I114: 0 | J114: 300
A115: Northumberland | B115: 407 | C115: 58 | D115: Northumberland | E115: 0 | F115: 16 | G115: 179 | H115: 0 | I115: 127 | J115: 322
A116: Northwood | B116: 411 | C116: 44 | D116: Northwood | E116: 0 | F116: 40 | G116: 304 | H116: 0 | I116: 0 | J116: 344
A117: Nottingham | B117: 413 | C117: 44 | D117: Northwood | E117: 0 | F117: 45 | G117: 429 | H117: 0 | I117: 0 | J117: 474
A118: Oyster River Coop | B118: 423 | C118: 5 | D118: Oyster River | E118: 29 | F118: 128 | G118: 486 | H118: 629 | I118: 858 | J118: 2130
A119: Pelham | B119: 425 | C119: 28 | D119: Pelham | E119: 50 | F119: 82 | G119: 966 | H119: 0 | I119: 577 | J119: 1675
A120: Pembroke | B120: 427 | C120: 53 | D120: Pembroke | E120: 0 | F120: 60 | G120: 596 | H120: 0 | I120: 759 | J120: 1415
A121: Pemi-Baker Regional | B121: 428 | C121: 48 | D121: Plymouth | E121: 0 | F121: 0 | G121: 0 | H121: 0 | I121: 621 | J121: 621
A122: Piermont | B122: 435 | C122: 23 | D122: Haverhill Cooperative | E122: 5 | F122: 5 | G122: 45 | H122: 0 | I122: 0 | J122: 55
A123: Pittsburg | B123: 437 | C123: 7 | D123: Colebrook | E123: 1 | F123: 6 | G123: 40 | H123: 0 | I123: 34 | J123: 81
A124: Pittsfield | B124: 439 | C124: 51 | D124: Pittsfield | E124: 12 | F124: 32 | G124: 206 | H124: 135 | I124: 160 | J124: 545
A125: Plainfield | B125: 441 | C125: 32 | D125: Plainfield | E125: 0 | F125: 18 | G125: 195 | H125: 0 | I125: 0 | J125: 213
A126: Plymouth | B126: 447 | C126: 48 | D126: Plymouth | E126: 0 | F126: 32 | G126: 336 | H126: 0 | I126: 0 | J126: 368
A127: Portsmouth | B127: 449 | C127: 52 | D127: Portsmouth | E127: 14 | F127: 160 | G127: 778 | H127: 491 | I127: 1049 | J127: 2492
A128: Profile | B128: 450 | C128: 35 | D128: SAU #35 Office | E128: 0 | F128: 0 | G128: 0 | H128: 86 | I128: 143 | J128: 229
A129: Raymond | B129: 453 | C129: 33 | D129: Raymond | E129: 48 | F129: 89 | G129: 286 | H129: 441 | I129: 359 | J129: 1223
A130: Rochester | B130: 461 | C130: 54 | D130: Rochester | E130: 41 | F130: 232 | G130: 1383 | H130: 874 | I130: 1386 | J130: 3916
A131: Rollinsford | B131: 463 | C131: 104 | D131: Rollinsford | E131: 0 | F131: 17 | G131: 117 | H131: 0 | I131: 0 | J131: 134
A132: Rumney | B132: 467 | C132: 48 | D132: Plymouth | E132: 0 | F132: 4 | G132: 67 | H132: 0 | I132: 0 | J132: 71
A133: Rye | B133: 471 | C133: 50 | D133: Greenland | E133: 13 | F133: 37 | G133: 341 | H133: 0 | I133: 0 | J133: 391
A134: Salem | B134: 473 | C134: 57 | D134: Salem | E134: 104 | F134: 250 | G134: 1267 | H134: 792 | I134: 1155 | J134: 3568
A135: Sanborn Regional | B135: 476 | C135: 17 | D135: Sanborn Regional | E135: 32 | F135: 97 | G135: 524 | H135: 203 | I135: 560 | J135: 1416
A136: Seabrook | B136: 485 | C136: 21 | D136: Winnacunnet | E136: 31 | F136: 57 | G136: 575 | H136: 0 | I136: 0 | J136: 663
A137: Shaker Regional | B137: 486 | C137: 80 | D137: Shaker Regional | E137: 21 | F137: 78 | G137: 355 | H137: 370 | I137: 375 | J137: 1199
A138: Somersworth | B138: 491 | C138: 56 | D138: Somersworth | E138: 42 | F138: 88 | G138: 486 | H138: 343 | I138: 388 | J138: 1347
A139: Souhegan Cooperative | B139: 493 | C139: 39 | D139: Amherst | E139: 0 | F139: 0 | G139: 0 | H139: 0 | I139: 702 | J139: 702
A140: South Hampton | B140: 495 | C140: 21 | D140: Winnacunnet | E140: 0 | F140: 12 | G140: 74 | H140: 0 | I140: 0 | J140: 86
A141: Stark | B141: 499 | C141: 58 | D141: Northumberland | E141: 0 | F141: 4 | G141: 22 | H141: 0 | I141: 0 | J141: 26
A142: Stewartstown | B142: 501 | C142: 7 | D142: Colebrook | E142: 1 | F142: 5 | G142: 55 | H142: 0 | I142: 0 | J142: 61
A143: Stoddard | B143: 503 | C143: 24 | D143: Henniker | E143: 0 | F143: 8 | G143: 53 | H143: 0 | I143: 0 | J143: 61
A144: Strafford | B144: 507 | C144: 105 | D144: Strafford | E144: 16 | F144: 40 | G144: 362 | H144: 0 | I144: 0 | J144: 418
A145: Stratford | B145: 509 | C145: 58 | D145: Northumberland | E145: 3 | F145: 7 | G145: 47 | H145: 0 | I145: 0 | J145: 57
A146: Stratham | B146: 511 | C146: 16 | D146: Exeter | E146: 23 | F146: 81 | G146: 435 | H146: 0 | I146: 0 | J146: 539
A147: Sunapee | B147: 515 | C147: 85 | D147: Sunapee | E147: 0 | F147: 19 | G147: 140 | H147: 84 | I147: 130 | J147: 373
A148: Tamworth | B148: 525 | C148: 13 | D148: Tamworth | E148: 0 | F148: 27 | G148: 166 | H148: 0 | I148: 0 | J148: 193
A149: Thornton | B149: 531 | C149: 48 | D149: Plymouth | E149: 0 | F149: 19 | G149: 170 | H149: 0 | I149: 0 | J149: 189
A150: Timberlane Regional | B150: 534 | C150: 106 | D150: Timberlane Regional | E150: 100 | F150: 237 | G150: 1207 | H150: 717 | I150: 1028 | J150: 3289
A151: Unity | B151: 539 | C151: 6 | D151: Claremont | E151: 3 | F151: 11 | G151: 80 | H151: 0 | I151: 0 | J151: 94
A152: Wakefield | B152: 543 | C152: 101 | D152: Wakefield | E152: 19 | F152: 34 | G152: 412 | H152: 0 | I152: 0 | J152: 465
A153: Warren | B153: 549 | C153: 23 | D153: Haverhill Cooperative | E153: 6 | F153: 9 | G153: 52 | H153: 0 | I153: 0 | J153: 67
A154: Washington | B154: 551 | C154: 34 | D154: Hillsboro-Deering | E154: 0 | F154: 9 | G154: 43 | H154: 0 | I154: 0 | J154: 52
A155: Waterville Valley | B155: 553 | C155: 48 | D155: Plymouth | E155: 0 | F155: 1 | G155: 54 | H155: 0 | I155: 0 | J155: 55
A156: Weare | B156: 555 | C156: 24 | D156: Henniker | E156: 23 | F156: 71 | G156: 451 | H156: 337 | I156: 0 | J156: 882
A157: Wentworth | B157: 559 | C157: 48 | D157: Plymouth | E157: 0 | F157: 5 | G157: 63 | H157: 0 | I157: 0 | J157: 68
A158: Westmoreland | B158: 563 | C158: 29 | D158: Keene | E158: 0 | F158: 11 | G158: 99 | H158: 0 | I158: 0 | J158: 110
A159: White Mountains Regional | B159: 568 | C159: 36 | D159: White Mountains Regional | E159: 48 | F159: 56 | G159: 562 | H159: 0 | I159: 350 | J159: 1016
A160: Wilton-Lyndeborough Cooperative | B160: 572 | C160: 63 | D160: Wilton | E160: 13 | F160: 45 | G160: 229 | H160: 127 | I160: 156 | J160: 570
A161: Winchester | B161: 573 | C161: 94 | D161: Winchester | E161: 31 | F161: 36 | G161: 290 | H161: 0 | I161: 0 | J161: 357
A162: Windham | B162: 575 | C162: 95 | D162: Windham | E162: 57 | F162: 193 | G162: 1267 | H162: 452 | I162: 1058 | J162: 3027
A163: Winnacunnet Cooperative | B163: 581 | C163: 21 | D163: Winnacunnet | E163: 0 | F163: 0 | G163: 0 | H163: 0 | I163: 1091 | J163: 1091
A164: Winnisquam Regional | B164: 582 | C164: 59 | D164: Winnisquam Regional | E164: 15 | F164: 67 | G164: 478 | H164: 331 | I164: 449 | J164: 1340
A165: Public Acadamies and Joint Maintenance Agreements
A166: Coe-Brown Northwood Academy | E166: 0 | F166: 0 | G166: 0 | H166: 0 | I166: 695 | J166: 695
A167: Pinkerton Academy | E167: 0 | F167: 0 | G167: 0 | H167: 0 | I167: 3031 | J167: 3031
A168: Prospect Mountain JMA | E168: 0 | F168: 0 | G168: 0 | H168: 0 | I168: 414 | J168: 414
A169: Charter Schools
A170: Academy for Science and Design Charter School | E170: 0 | F170: 0 | G170: 0 | H170: 309 | I170: 223 | J170: 532
A171: Cocheco Academy for the Arts | E171: 0 | F171: 0 | G171: 0 | H171: 0 | I171: 37 | J171: 37
A172: Compass Classical Academy Charter School | E172: 0 | F172: 16 | G172: 87 | H172: 0 | I172: 19 | J172: 122
A173: CSI Charter School | E173: 0 | F173: 0 | G173: 0 | H173: 0 | I173: 24 | J173: 24
A174: Gate City Charter School For the Arts | E174: 0 | F174: 15 | G174: 140 | H174: 0 | I174: 0 | J174: 155
A175: Gathering Waters Charter School | E175: 0 | F175: 22 | G175: 184 | H175: 0 | I175: 22 | J175: 228
A176: Granite State Arts Academy Charter School | E176: 0 | F176: 0 | G176: 0 | H176: 0 | I176: 121 | J176: 121
A177: Great Bay Charter School | E177: 0 | F177: 0 | G177: 0 | H177: 51 | I177: 96 | J177: 147
A178: Kreiva Academy Public Charter School District | E178: 0 | F178: 0 | G178: 0 | H178: 63 | I178: 112 | J178: 175
A179: LEAF Charter School | E179: 0 | F179: 0 | G179: 0 | H179: 0 | I179: 82 | J179: 82
A180: Ledyard Charter School | E180: 0 | F180: 0 | G180: 0 | H180: 0 | I180: 44 | J180: 44
A181: Making Community Connections Charter School | E181: 0 | F181: 0 | G181: 0 | H181: 0 | I181: 49 | J181: 49
A182: MicroSociety Academy Charter School Foundation | E182: 0 | F182: 36 | G182: 212 | H182: 0 | I182: 0 | J182: 248
A183: Mill Falls Charter School | E183: 0 | F183: 24 | G183: 144 | H183: 0 | I183: 0 | J183: 168
A184: Mountain Village Charter School | E184: 0 | F184: 0 | G184: 103 | H184: 0 | I184: 0 | J184: 103
A185: Next Charter School | E185: 0 | F185: 0 | G185: 0 | H185: 0 | I185: 81 | J185: 81
A186: North Country Charter Academy | E186: 0 | F186: 0 | G186: 0 | H186: 0 | I186: 42 | J186: 42
A187: Northeast Woodland Chartered Public School | E187: 14 | F187: 18 | G187: 138 | H187: 0 | I187: 0 | J187: 170
A188: Polaris Charter School | E188: 0 | F188: 17 | G188: 101 | H188: 0 | I188: 0 | J188: 118
A189: Robert Frost Charter School | E189: 0 | F189: 11 | G189: 37 | H189: 0 | I189: 0 | J189: 48
A190: Seacoast Charter School | E190: 0 | F190: 34 | G190: 266 | H190: 0 | I190: 0 | J190: 300
A191: Spark Academy of Advanced Technologies | E191: 0 | F191: 0 | G191: 0 | H191: 0 | I191: 63 | J191: 63
A192: Strong Foundations Charter School | E192: 0 | F192: 0 | G192: 334 | H192: 0 | I192: 0 | J192: 334
A193: Surry Village Charter School | E193: 0 | F193: 10 | G193: 83 | H193: 0 | I193: 0 | J193: 93
A194: The Birches Academy of Academics & Art A Public Charter Sch | E194: 0 | F194: 22 | G194: 201 | H194: 0 | I194: 0 | J194: 223
A195: The Founders Academy Charter School | E195: 0 | F195: 0 | G195: 237 | H195: 0 | I195: 129 | J195: 366
A196: Virtual Learning Academy Charter School | E196: 0 | F196: 5 | G196: 187 | H196: 0 | I196: 375 | J196: 567
A197: Windham Academy Public Charter School | E197: 0 | F197: 44 | G197: 254 | H197: 0 | I197: 0 | J197: 298
A198: State Totals | E198: 3848 | F198: 11212 | G198: 68473 | H198: 30764 | I198: 54323 | J198: 168620

Sheet UEI's (hidden)
A1: LEA | B1: UEI (SAM #'s)
A2: - Please Select - | B2: - Please Select District -
A3: Albany | B3: HZBMM68QA2B1
A4: Allenstown | B4: CT37H57NQZW7
A5: Alton | B5: VNCRUEVWK2B5
A6: Amherst | B6: Z95QWQ3SQC95
A7: Andover | B7: ZCH3ENAUCEH7
A8: Ashland | B8: LQNRLZ2C5NW4
A9: Auburn | B9: N1DNXEEB16D6
A10: Barnstead | B10: VUT9QJ9NH3K7
A11: Barrington | B11: R1EAXSYLMXE1
A12: Bartlett | B12: EFY5WRED4S48
A13: Bath | B13: DJHQNKMYM7M8
A14: Bedford | B14: KNNETLDHMWS4
A15: Berlin | B15: LSU1QVJAD997
A16: Bethlehem | B16: LADBHHFCD8K1
A17: Bow | B17: RUCLFTGL26D3
A18: Brookline | B18: J4QEFH9ACQZ5
A19: Campton | B19: XCLUKHKRXE74
A20: Candia | B20: HNCNMAC9CVH5
A21: Chester | B21: XGKFCCMA2KQ7
A22: Chesterfield | B22: PSLZC846L147
A23: Chichester | B23: WE1JCGNJJG69
A24: Claremont | B24: N8WNMT7PLTR9
A25: Cocheco Academy for the Arts | B25: NCAYYJN2DWJ5
A26: Colebrook | B26: M1DZP3M658S6
A27: Compass Classical Academy Charter School | B27: KMEJQAA1E5L6
A28: Concord | B28: HEDNDHUBEKA7
A29: Contoocook Valley | B29: RMPMZ325F983
A30: Conway | B30: XN7JN3A7E1G9
A31: Cornish | B31: MUTCX64TAF43
A32: Croydon | B32: EHTKGLDDPH91
A33: Deerfield | B33: JJKAQMNNEVX1
A34: Derry Cooperative | B34: UT1ZKRN7F9F9
A35: Dover | B35: CSM7GMCDM795
A36: Dresden | B36: W9BDPQJF7CQ6
A37: Dunbarton | B37: T2CYQ1RU7EY9
A38: Epping | B38: NS8QF7KFF2Y4
A39: Epsom | B39: PF3LG56YCYH3
A40: Errol | B40: EM48CLE3AN87
A41: Exeter | B41: YJTDG8MNBT25
A42: Exeter Region Cooperative | B42: SM1KV68WLLF3
A43: Fall Mountain Regional | B43: M7WGGJ8WBLL3
A44: Farmington | B44: YNP1BS7K83Z9
A45: Franklin | B45: C19JBP4FGLD1
A46: Freedom | B46: KNVAAJAD6FM5
A47: Fremont | B47: CM3LVMN3MAS4
A48: Gate City Charter School For the Arts | B48: M9EUNGJJYY74
A49: Gilford | B49: Q3A4WMV1UW89
A50: Gilmanton | B50: ZF5SKBW7ZS49
A51: Goffstown | B51: UDMEX2PBKSB7
A52: Gorham Randolph Shelburne Cooperative | B52: LDAEHGLR8Q64
A53: Goshen | B53: UFGME8DFUBV5
A54: Governor Wentworth Regional | B54: L8P8KJLAR8L7
A55: Granite State Arts Academy Charter School | B55: W3B9KV2ST393
A56: Grantham | B56: XV8YNLZRLE86
A57: Great Bay Charter School | B57: LEN2J1VVWRL6
A58: Greenland | B58: ZYFQXYNL86K3
A59: Hale's Location (Carroll County) | B59: SE6GHF5KV4W1
A60: Hampstead | B60: C1LARN3MPEK5
A61: Hampton | B61: WUKLLNF5M375
A62: Hanover | B62: LZPEY8BVCUG7
A63: Harrisville | B63: LN4SM7JG6ZM7
A64: Haverhill Cooperative | B64: D76NCVDL5PK5
A65: Henniker | B65: KDZLMUL7UXF6
A66: Hill | B66: ZDRFZVKABBF6
A67: Hillsboro-Deering Cooperative | B67: JMTJGPDFBH14
A68: Hinsdale | B68: ME6SDGSMUNF7
A69: Holderness | B69: NFCHJRXU35H5
A70: Hollis | B70: TMATF1EC22K7
A71: Hollis-Brookline Cooperative | B71: JGRSNUVC8E87
A72: Hooksett | B72: CKRUXUER9Z58
A73: Hopkinton | B73: JCDMT5PR6D24
A74: Hudson | B74: PDKMM5D84XX1
A75: Inter-Lakes Cooperative | B75: TLPSCXFRK4H3
A76: Jaffrey-Rindge Cooperative | B76: SESGWE87CUW4
A77: John Stark Regional | B77: CGSLHGRVT8N7
A78: Kearsarge Regional | B78: GVKHBCNGAK27
A79: Keene | B79: JF1XWKKE4GK9
A80: Kensington | B80: JGLZD9MRPGF5
A81: Kreiva Academy Public Charter | B81: HXNMHSKAH7K6
A82: Laconia | B82: KAVNKZK2AXC7
A83: Lafayette Regional | B83: YHAHUNKHJ639
A84: LEAF Charter School | B84: NJGGYDPHHJE7
A85: Lebanon | B85: WQTWDLHCBLY1
A86: Ledyard Charter School | B86: F9KEHZBXSJM3
A87: Lempster | B87: E7P2JMH4GRS9
A88: Lincoln-Woodstock Cooperative | B88: DTMJD3AL7SR5
A89: Lisbon Regional | B89: LLPXSDJQQWJ9
A90: Litchfield | B90: YNUJWBXDUE83
A91: Littleton | B91: ZKX1CPHJ9PM5
A92: Londonderry | B92: X4WKB28VNCJ1
A93: Lyme | B93: LV79F8VGRYJ5
A94: Madison | B94: C8N5ZHNR5TM1
A95: Making Community Connections Charter School | B95: M2LWV4KMLTF4
A96: Manchester | B96: ENKJC5SK6826
A97: Marlborough | B97: SMY7LF6AFAG8
A98: Marlow | B98: RSPSNJNKF8L4
A99: Mascenic Regional | B99: QSFBJU4F2284
A100: Mascoma Valley Regional | B100: JKRUALLMD8B7
A101: Merrimack | B101: SUCFT16KA974
A102: Merrimack Valley | B102: XRZMGP8RFRC4
A103: MicroSociety Academy Charter School Foundation | B103: CLHSECME2935
A104: Middleton | B104: UU31LAMRJ2E5
A105: Milan | B105: RN74H2493WR8
A106: Milford | B106: ZPKNGXTC3TQ5
A107: Mill Falls Charter School | B107: T63HS77JFRV6
A108: Milton | B108: L4M4B42MNL69
A109: Monadnock Regional | B109: NQ2PU3KPHK45
A110: Monroe | B110: NXHFPQRSM3N4
A111: Mont Vernon | B111: J65UF4NH8L84
A112: Moultonborough | B112: VJ1SGWBLCKE9
A113: Mountain Village Charter School | B113: VJ8MLLDYDJH1
A114: Nashua | B114: GBNLXN2MDX41
A115: Nelson | B115: XK1HCLJLCAJ9
A116: New Boston | B116: SCW8CS7JTC44
A117: Newfound Area | B117: MGNKHN4MK9B8
A118: Newmarket | B118: D3JUPRHJEYP4
A119: Newport | B119: Z1JRKL4QLRD3
A120: Next Charter School | B120: WDNDLFJL5PC5
A121: North Country Charter Academy | B121: KNKAQK7Q8Z33
A122: North Hampton | B122: K68DJCKNUKK5
A123: Northeast Woodland Chartered Public School | B123: KG2ZUNNX2XE3
A124: Northumberland | B124: RMKCNZFAFK44
A125: Northwood | B125: SBPQG1P6M793
A126: Nottingham | B126: K9FYZSARPZC6
A127: Oyster River Coop | B127: RKLXG69GCCK6
A128: Pelham | B128: H1AER5BLS4U7
A129: Pembroke | B129: EEJEKR2H1696
A130: Pemi-Baker Regional | B130: K6KYFMPBDBJ4
A131: Pittsburg | B131: VDBMX77WLLD7
A132: Pittsfield | B132: FE5HDB5E9ME6
A133: Plainfield | B133: FJ6BVDFKY9U8
A134: Plymouth | B134: X9U3K5P7S9B8
A135: Polaris Charter School | B135: MC49HT397JG1
A136: Portsmouth | B136: XTL2C874AZN7
A137: Profile | B137: JGD6HA7EHRG7
A138: Prospect Mountain JMA | B138: S5FML6NG7TN1
A139: Raymond | B139: FCQBMK8BATJ3
A140: Rivendell | B140: CJVAPU1R46N1
A141: Robert Frost Charter School | B141: GEL2UM9JN4J6
A142: Rochester | B142: C9H4JGDBC8N7
A143: Rollinsford | B143: G4B9QP9CCMG4
A144: Rumney | B144: T1H2TKNBYWF9
A145: Rye | B145: E46LCPHMKR84
A146: Salem | B146: MCEFVKPFN5D8
A147: Sanborn Regional | B147: QKXEBAK8PKV3
A148: Seabrook | B148: LNTEEZAZQYL4
A149: Seacoast Charter School | B149: U3NWXNGHXF31
A150: Shaker Regional | B150: UTD1G7XJFBP5
A151: Somersworth | B151: KM8XCMHLGNL3
A152: Souhegan Cooperative | B152: ZCH1MCE2M345
A153: Stark | B153: G3YSKL61CU91
A154: Stewartstown | B154: N5XMMWSMDJJ6
A155: Stoddard | B155: V7KNLKFYJ351
A156: Strafford | B156: CGWMLLHWLER4
A157: Stratford | B157: G5EGHVYB86X8
A158: Stratham | B158: N9K6KLKF1N24
A159: Strong Foundations Charter School | B159: NZ5TCJYC6BP8
A160: Sunapee | B160: FG9AKK7TFLM6
A161: Surry Village Charter School | B161: QV5GRJBMSGD1
A162: Tamworth | B162: VA7TGC66JHG6
A163: The Birches Academy of Academics & Art A Public Charter Sch | B163: DNJQAJYM69Y3
A164: The Founders Academy Charter School | B164: PTC8KA9E1VU3
A165: Thornton | B165: JHAQLJ8K6ML3
A166: Timberlane Regional | B166: NQ91SEBJ6YK6
A167: Unity | B167: SNLLKL71GJ57
A168: Virtual Learning Academy Charter School | B168: MJU3RBYBRSR7
A169: Wakefield | B169: MSCWUSF783M6
A170: Warren | B170: UPLUF75QKN89
A171: Washington | B171: MAZ8LCAK2LN4
A172: Weare | B172: ULYWLXA6TAR4
A173: Wentworth | B173: MM9GDZ8XL7M9
A174: Westmoreland | B174: KGWLS4H2JPM5
A175: White Mountains Regional | B175: UYWBKJNYQYS8
A176: Wilton-Lyndeborough Cooperative | B176: UAR3L6AXYJL3
A177: Winchester | B177: UW7RA821AHJ5
A178: Windham | B178: DKJSTEF18ZG8
A179: Windham Academy Public Charter School | B179: FZEKES1D3K64
A180: Winnacunnet Cooperative | B180: R762ENS8J4J5
A181: Winnisquam Regional | B181: VZSGFK5SBK31

Sheet School ID (hidden)
A1: Dst ID | B1: District Name | C1: School ID | D1: School Name | G1: Dst ID | H1: - Please Select -
A2: 9 | B2: Allenstown | C2: 22580 | D2: Allenstown Elementary School | G2: 9 | H2: Allenstown
A3: 9 | B3: Allenstown | C3: 22575 | D3: Armand R. Dupont School | G3: 15 | H3: Alton
A4: 15 | B4: Alton | C4: 22480 | D4: Alton Central School (Elem) | G4: 17 | H4: Amherst
A5: 17 | B5: Amherst | C5: 21745 | D5: Amherst Middle School | G5: 19 | H5: Andover
A6: 17 | B6: Amherst | C6: 21750 | D6: Clark-Wilkins School | G6: 23 | H6: Ashland
A7: 19 | B7: Andover | C7: 22130 | D7: Andover Elementary School | G7: 29 | H7: Auburn
A8: 23 | B8: Ashland | C8: 20010 | D8: Ashland Elementary School | G8: 31 | H8: Barnstead
A9: 29 | B9: Auburn | C9: 20530 | D9: Auburn Village School | G9: 33 | H9: Barrington
A10: 31 | B10: Barnstead | C10: 22485 | D10: Barnstead Elementary School | G10: 35 | H10: Bartlett
A11: 33 | B11: Barrington | C11: 22045 | D11: Barrington Elementary School | G11: 39 | H11: Bath
A12: 33 | B12: Barrington | C12: 22030 | D12: Barrington Middle School | G12: 41 | H12: Bedford
A13: 33 | B13: Barrington | C13: 29010 | D13: Early Childhood Learning Center | G13: 51 | H13: Berlin
A14: 35 | B14: Bartlett | C14: 20325 | D14: Josiah Bartlett Elementary School | G14: 53 | H14: Bethlehem
A15: 39 | B15: Bath | C15: 20860 | D15: Bath Village School | G15: 57 | H15: Bow
A16: 41 | B16: Bedford | C16: 28555 | D16: Bedford High School | G16: 63 | H16: Brentwood
A17: 41 | B17: Bedford | C17: 21005 | D17: McKelvie Intermediate School | G17: 71 | H17: Brookline
A18: 41 | B18: Bedford | C18: 20990 | D18: Memorial School | G18: 75 | H18: Campton
A19: 41 | B19: Bedford | C19: 21000 | D19: Peter Woodbury School | G19: 79 | H19: Candia
A20: 41 | B20: Bedford | C20: 27680 | D20: Riddle Brook School | G20: 93 | H20: Chester
A21: 41 | B21: Bedford | C21: 28560 | D21: Ross A. Lurgio Middle School | G21: 95 | H21: Chesterfield
A22: 51 | B22: Berlin | C22: 20045 | D22: Berlin Middle School | G22: 99 | H22: Chichester
A23: 51 | B23: Berlin | C23: 20050 | D23: Berlin Senior High School | G23: 101 | H23: Claremont
A24: 51 | B24: Berlin | C24: 27035 | D24: Hillside Elementary School | G24: 105 | H24: Colebrook
A25: 53 | B25: Bethlehem | C25: 21400 | D25: Bethlehem Elementary School | G25: 111 | H25: Concord
A26: 57 | B26: Bow | C26: 20680 | D26: Bow Elementary School | G26: 112 | H26: Contoocook Valley
A27: 57 | B27: Bow | C27: 27375 | D27: Bow High School | G27: 113 | H27: Conway
A28: 57 | B28: Bow | C28: 20675 | D28: Bow Memorial School | G28: 115 | H28: Cornish
A29: 63 | B29: Brentwood | C29: 20555 | D29: Swasey Central School | G29: 117 | H29: Croydon
A30: 71 | B30: Brookline | C30: 27765 | D30: Captain Samuel Douglass Academy | G30: 127 | H30: Deerfield
A31: 71 | B31: Brookline | C31: 21800 | D31: Richard Maghakian Memorial School | G31: 131 | H31: Derry Cooperative
A32: 75 | B32: Campton | C32: 22335 | D32: Campton Elementary School | G32: 141 | H32: Dover
A33: 79 | B33: Candia | C33: 20535 | D33: Henry W. Moore School | G33: 142 | H33: Dresden
A34: 93 | B34: Chester | C34: 20500 | D34: Chester Academy | G34: 149 | H34: Dunbarton
A35: 95 | B35: Chesterfield | C35: 21140 | D35: Chesterfield Central School | G35: 153 | H35: East Kingston
A36: 99 | B36: Chichester | C36: 22590 | D36: Chichester Central School | G36: 165 | H36: Epping
A37: 101 | B37: Claremont | C37: 20145 | D37: Bluff School | G37: 167 | H37: Epsom
A38: 101 | B38: Claremont | C38: 20115 | D38: Claremont Middle School | G38: 171 | H38: Errol
A39: 101 | B39: Claremont | C39: 20165 | D39: Disnard Elementary School | G39: 172 | H39: Exeter Region Cooperative
A40: 101 | B40: Claremont | C40: 20160 | D40: Maple Avenue School | G40: 173 | H40: Exeter
A41: 101 | B41: Claremont | C41: 20140 | D41: Stevens High School | G41: 174 | H41: Fall Mountain Regional
A42: 105 | B42: Colebrook | C42: 20185 | D42: Colebrook Academy | G42: 175 | H42: Farmington
A43: 105 | B43: Colebrook | C43: 20195 | D43: Colebrook Elementary School | G43: 185 | H43: Franklin
A44: 111 | B44: Concord | C44: 20240 | D44: Abbot-Downing School | G44: 187 | H44: Freedom
A45: 111 | B45: Concord | C45: 26490 | D45: Beaver Meadow School | G45: 189 | H45: Fremont
A46: 111 | B46: Concord | C46: 20260 | D46: Broken Ground School | G46: 191 | H46: Gilford
A47: 111 | B47: Concord | C47: 20305 | D47: Christa McAuliffe School | G47: 195 | H47: Gilmanton
A48: 111 | B48: Concord | C48: 20285 | D48: Concord High School | G48: 199 | H48: Goffstown
A49: 111 | B49: Concord | C49: 20250 | D49: Mill Brook School | G49: 203 | H49: Gorham Randolph Shelburne Cooperative
A50: 111 | B50: Concord | C50: 20270 | D50: Rundlett Middle School | G50: 204 | H50: Goshen
A51: 112 | B51: Contoocook Valley | C51: 22215 | D51: Antrim Elementary School | G51: 208 | H51: Governor Wentworth Regional
A52: 112 | B52: Contoocook Valley | C52: 22290 | D52: Conval Regional High School | G52: 211 | H52: Grantham
A53: 112 | B53: Contoocook Valley | C53: 22230 | D53: Dublin Consolidated School | G53: 215 | H53: Greenland
A54: 112 | B54: Contoocook Valley | C54: 22245 | D54: Francestown Elementary School | G54: 223 | H54: Hampstead
A55: 112 | B55: Contoocook Valley | C55: 22210 | D55: Great Brook School | G55: 225 | H55: Hampton
A56: 112 | B56: Contoocook Valley | C56: 22250 | D56: Greenfield Elementary School | G56: 227 | H56: Hampton Falls
A57: 112 | B57: Contoocook Valley | C57: 22260 | D57: Hancock Elementary School | G57: 233 | H57: Hanover
A58: 112 | B58: Contoocook Valley | C58: 22310 | D58: Peterborough Elementary School | G58: 235 | H58: Harrisville
A59: 112 | B59: Contoocook Valley | C59: 22225 | D59: Pierce Elementary School | G59: 238 | H59: Haverhill Cooperative
A60: 112 | B60: Contoocook Valley | C60: 22295 | D60: South Meadow School | G60: 245 | H60: Henniker
A61: 112 | B61: Contoocook Valley | C61: 22330 | D61: Temple Elementary School | G61: 247 | H61: Hill
A62: 113 | B62: Conway | C62: 27010 | D62: A. Crosby Kennett Middle School | G62: 251 | H62: Hillsboro-Deering Cooperative
A63: 113 | B63: Conway | C63: 20340 | D63: Conway Elementary School | G63: 255 | H63: Hinsdale
A64: 113 | B64: Conway | C64: 20335 | D64: John H. Fuller School | G64: 257 | H64: Holderness
A65: 113 | B65: Conway | C65: 20345 | D65: Kennett High School | G65: 259 | H65: Hollis
A66: 113 | B66: Conway | C66: 20330 | D66: Pine Tree Elementary School | G66: 260 | H66: Hollis-Brookline Cooperative
A67: 115 | B67: Cornish | C67: 20175 | D67: Cornish Elementary School | G67: 261 | H67: Hooksett
A68: 117 | B68: Croydon | C68: 21960 | D68: Croydon Village School | G68: 263 | H68: Hopkinton
A69: 127 | B69: Deerfield | C69: 22595 | D69: Deerfield Community School | G69: 267 | H69: Hudson
A70: 131 | B70: Derry Cooperative | C70: 29156 | D70: Derry Early Education Program | G70: 269 | H70: Inter-Lakes Cooperative
A71: 131 | B71: Derry Cooperative | C71: 20380 | D71: Derry Village School | G71: 271 | H71: Jackson
A72: 131 | B72: Derry Cooperative | C72: 20370 | D72: East Derry Memorial Elementary School | G72: 274 | H72: Jaffrey-Rindge Cooperative
A73: 131 | B73: Derry Cooperative | C73: 28465 | D73: Ernest P. Barka Elementary School | G73: 275 | H73: John Stark Regional
A74: 131 | B74: Derry Cooperative | C74: 20420 | D74: Gilbert H. Hood Middle School | G74: 276 | H74: Kearsarge Regional
A75: 131 | B75: Derry Cooperative | C75: 20390 | D75: Grinnell School | G75: 279 | H75: Keene
A76: 131 | B76: Derry Cooperative | C76: 20405 | D76: South Range Elementary School | G76: 281 | H76: Kensington
A77: 131 | B77: Derry Cooperative | C77: 27065 | D77: West Running Brook Middle School | G77: 285 | H77: Laconia
A78: 141 | B78: Dover | C78: 20435 | D78: Dover Middle School | G78: 288 | H78: Lafayette Regional
A79: 141 | B79: Dover | C79: 20455 | D79: Dover Senior High School | G79: 291 | H79: Landaff
A80: 141 | B80: Dover | C80: 20430 | D80: Garrison School | G80: 295 | H80: Lebanon
A81: 141 | B81: Dover | C81: 20445 | D81: Horne Street School | G81: 299 | H81: Lempster
A82: 141 | B82: Dover | C82: 20460 | D82: Woodman Park School | G82: 305 | H82: Lincoln-Woodstock Cooperative
A83: 142 | B83: Dresden | C83: 20825 | D83: Frances C. Richmond School | G83: 306 | H83: Lisbon Regional
A84: 142 | B84: Dresden | C84: 20820 | D84: Hanover High School | G84: 315 | H84: Litchfield
A85: 149 | B85: Dunbarton | C85: 20685 | D85: Dunbarton Elementary School | G85: 317 | H85: Littleton
A86: 153 | B86: East Kingston | C86: 20565 | D86: East Kingston Elementary School | G86: 319 | H86: Londonderry
A87: 165 | B87: Epping | C87: 26510 | D87: Epping Elementary School | G87: 327 | H87: Lyme
A88: 165 | B88: Epping | C88: 20515 | D88: Epping High School | G88: 333 | H88: Madison
A89: 165 | B89: Epping | C89: 26505 | D89: Epping Middle School | G89: 335 | H89: Manchester
A90: 167 | B90: Epsom | C90: 22600 | D90: Epsom Central School | G90: 339 | H90: Marlborough
A91: 171 | B91: Errol | C91: 20735 | D91: Errol Consolidated Elementary School | G91: 341 | H91: Marlow
A92: 173 | B92: Exeter | C92: 20595 | D92: Lincoln Street Elementary School | G92: 342 | H92: Mascenic Regional
A93: 173 | B93: Exeter | C93: 20575 | D93: Main Street School | G93: 343 | H93: Mascoma Valley Regional
A94: 172 | B94: Exeter Region Cooperative | C94: 20590 | D94: Cooperative Middle School | G94: 345 | H94: Mason
A95: 172 | B95: Exeter Region Cooperative | C95: 20600 | D95: Exeter High School | G95: 351 | H95: Merrimack
A96: 174 | B96: Fall Mountain Regional | C96: 22960 | D96: Acworth Elementary School | G96: 352 | H96: Merrimack Valley
A97: 174 | B97: Fall Mountain Regional | C97: 22965 | D97: Alstead Primary School | G97: 353 | H97: Middleton
A98: 174 | B98: Fall Mountain Regional | C98: 22975 | D98: Charlestown Middle School | G98: 355 | H98: Milan
A99: 174 | B99: Fall Mountain Regional | C99: 22985 | D99: Charlestown Primary School | G99: 357 | H99: Milford
A100: 174 | B100: Fall Mountain Regional | C100: 22990 | D100: Fall Mountain Regional High School | G100: 359 | H100: Milton
A101: 174 | B101: Fall Mountain Regional | C101: 22980 | D101: N. Charlestown Community School | G101: 363 | H101: Monadnock Regional
A102: 174 | B102: Fall Mountain Regional | C102: 23005 | D102: North Walpole School | G102: 365 | H102: Monroe
A103: 174 | B103: Fall Mountain Regional | C103: 22995 | D103: Sarah Porter School | G103: 367 | H103: Mont Vernon
A104: 174 | B104: Fall Mountain Regional | C104: 22970 | D104: Vilas Elementary School | G104: 369 | H104: Moultonborough
A105: 174 | B105: Fall Mountain Regional | C105: 23015 | D105: Walpole Elementary School | G105: 371 | H105: Nashua
A106: 174 | B106: Fall Mountain Regional | C106: 23010 | D106: Walpole Primary School | G106: 375 | H106: Nelson
A107: 175 | B107: Farmington | C107: 22050 | D107: Farmington Senior High School | G107: 377 | H107: New Boston
A108: 175 | B108: Farmington | C108: 22055 | D108: Henry Wilson Memorial School | G108: 381 | H108: New Castle
A109: 175 | B109: Farmington | C109: 27980 | D109: Valley View Community School | G109: 387 | H109: Newfields
A110: 185 | B110: Franklin | C110: 20660 | D110: Franklin High School | G110: 388 | H110: Newfound Area
A111: 185 | B111: Franklin | C111: 26755 | D111: Franklin Middle School | G111: 391 | H111: Newington
A112: 185 | B112: Franklin | C112: 20650 | D112: Paul A. Smith School | G112: 399 | H112: Newmarket
A113: 187 | B113: Freedom | C113: 20350 | D113: Freedom Elementary School | G113: 401 | H113: Newport
A114: 189 | B114: Fremont | C114: 20525 | D114: Ellis School | G114: 405 | H114: North Hampton
A115: 191 | B115: Gilford | C115: 21245 | D115: Gilford Elementary School | G115: 407 | H115: Northumberland
A116: 191 | B116: Gilford | C116: 21240 | D116: Gilford High School | G116: 411 | H116: Northwood
A117: 191 | B117: Gilford | C117: 26995 | D117: Gilford Middle School | G117: 413 | H117: Nottingham
A118: 195 | B118: Gilmanton | C118: 21250 | D118: Gilmanton Elementary School | G118: 423 | H118: Oyster River Coop
A119: 199 | B119: Goffstown | C119: 20695 | D119: Bartlett Elementary School | G119: 425 | H119: Pelham
A120: 199 | B120: Goffstown | C120: 28525 | D120: Glen Lake School | G120: 427 | H120: Pembroke
A121: 199 | B121: Goffstown | C121: 20700 | D121: Goffstown High School | G121: 428 | H121: Pemi-Baker Regional
A122: 199 | B122: Goffstown | C122: 20690 | D122: Maple Avenue School | G122: 435 | H122: Piermont
A123: 199 | B123: Goffstown | C123: 26820 | D123: Mountain View Middle School | G123: 437 | H123: Pittsburg
A124: 203 | B124: Gorham Randolph Shelburne Cooperative | C124: 20745 | D124: Edward Fenn School | G124: 439 | H124: Pittsfield
A125: 203 | B125: Gorham Randolph Shelburne Cooperative | C125: 20750 | D125: Gorham High School | G125: 441 | H125: Plainfield
A126: 203 | B126: Gorham Randolph Shelburne Cooperative | C126: 27005 | D126: Gorham Middle School | G126: 447 | H126: Plymouth
A127: 204 | B127: Goshen | C127: - | D127: No School | G127: 449 | H127: Portsmouth
A128: 208 | B128: Governor Wentworth Regional | C128: 22430 | D128: Carpenter Elementary School | G128: 450 | H128: Profile
A129: 208 | B129: Governor Wentworth Regional | C129: 27515 | D129: Crescent Lake School | G129: 453 | H129: Raymond
A130: 208 | B130: Governor Wentworth Regional | C130: 22395 | D130: Effingham Elementary School | G130: 461 | H130: Rochester
A131: 208 | B131: Governor Wentworth Regional | C131: 22425 | D131: Kingswood Regional High School | G131: 463 | H131: Rollinsford
A132: 208 | B132: Governor Wentworth Regional | C132: 22440 | D132: Kingswood Regional Middle School | G132: 467 | H132: Rumney
A133: 208 | B133: Governor Wentworth Regional | C133: 22400 | D133: New Durham Elementary School | G133: 471 | H133: Rye
A134: 208 | B134: Governor Wentworth Regional | C134: 22405 | D134: Ossipee Central School | G134: 473 | H134: Salem
A135: 208 | B135: Governor Wentworth Regional | C135: 22410 | D135: Tuftonboro Central School | G135: 476 | H135: Sanborn Regional
A136: 211 | B136: Grantham | C136: 21330 | D136: Grantham Village School | G136: 485 | H136: Seabrook
A137: 215 | B137: Greenland | C137: 22450 | D137: Greenland Central School | G137: 486 | H137: Shaker Regional
A138: 223 | B138: Hampstead | C138: 22755 | D138: Hampstead Central School | G138: 491 | H138: Somersworth
A139: 223 | B139: Hampstead | C139: 22750 | D139: Hampstead Middle School | G139: 493 | H139: Souhegan Cooperative
A140: 225 | B140: Hampton | C140: 20795 | D140: Adeline C. Marston School | G140: 495 | H140: South Hampton
A141: 225 | B141: Hampton | C141: 20790 | D141: Hampton Academy | G141: 499 | H141: Stark
A142: 225 | B142: Hampton | C142: 20770 | D142: Hampton Centre School | G142: 501 | H142: Stewartstown
A143: 227 | B143: Hampton Falls | C143: 20800 | D143: Lincoln Akerman School | G143: 503 | H143: Stoddard
A144: 233 | B144: Hanover | C144: 20830 | D144: Bernice A. Ray School | G144: 507 | H144: Strafford
A145: 235 | B145: Harrisville | C145: 21155 | D145: Wells Memorial School | G145: 509 | H145: Stratford
A146: 238 | B146: Haverhill Cooperative | C146: 26875 | D146: Haverhill Cooperative Middle School | G146: 511 | H146: Stratham
A147: 238 | B147: Haverhill Cooperative | C147: 20905 | D147: Woodsville Elementary School | G147: 515 | H147: Sunapee
A148: 238 | B148: Haverhill Cooperative | C148: 20910 | D148: Woodsville High School | G148: 525 | H148: Tamworth
A149: 245 | B149: Henniker | C149: 20935 | D149: Henniker Community School | G149: 531 | H149: Thornton
A150: 247 | B150: Hill | C150: 20670 | D150: Jennie D. Blake School | G150: 534 | H150: Timberlane Regional
A151: 251 | B151: Hillsboro-Deering Cooperative | C151: 20955 | D151: Hillsboro-Deering Elementary School | G151: 539 | H151: Unity
A152: 251 | B152: Hillsboro-Deering Cooperative | C152: 20950 | D152: Hillsboro-Deering High School | G152: 543 | H152: Wakefield
A153: 251 | B153: Hillsboro-Deering Cooperative | C153: 20960 | D153: Hillsboro-Deering Middle School | G153: 549 | H153: Warren
A154: 255 | B154: Hinsdale | C154: 21680 | D154: Hinsdale Elementary School | G154: 551 | H154: Washington
A155: 255 | B155: Hinsdale | C155: 21675 | D155: Hinsdale High School | G155: 553 | H155: Waterville Valley
A156: 255 | B156: Hinsdale | C156: 26985 | D156: Hinsdale Middle High School | G156: 555 | H156: Weare
A157: 257 | B157: Holderness | C157: 22345 | D157: Holderness Central School | G157: 559 | H157: Wentworth
A158: 259 | B158: Hollis | C158: 21815 | D158: Hollis Primary School | G158: 563 | H158: Westmoreland
A159: 259 | B159: Hollis | C159: 27530 | D159: Hollis Upper Elementary School | G159: 568 | H159: White Mountains Regional
A160: 260 | B160: Hollis-Brookline Cooperative | C160: 21810 | D160: Hollis-Brookline High School | G160: 572 | H160: Wilton-Lyndeborough Cooperative
A161: 260 | B161: Hollis-Brookline Cooperative | C161: 21805 | D161: Hollis-Brookline Middle School | G161: 573 | H161: Winchester
A162: 261 | B162: Hooksett | C162: 28050 | D162: David R. Cawley Middle School | G162: 575 | H162: Windham
A163: 261 | B163: Hooksett | C163: 20550 | D163: Fred C. Underhill School | G163: 581 | H163: Winnacunnet Cooperative
A164: 261 | B164: Hooksett | C164: 20540 | D164: Hooksett Memorial School | G164: 582 | H164: Winnisquam Regional
A165: 263 | B165: Hopkinton | C165: 20975 | D165: Harold Martin School | G165: 702 | H165: Granite State Arts Academy Charter School
A166: 263 | B166: Hopkinton | C166: 20970 | D166: Hopkinton High School | G166: 703 | H166: North Country Charter Academy
A167: 263 | B167: Hopkinton | C167: 27000 | D167: Hopkinton Middle School | G167: 704 | H167: Mountain Village Charter School
A168: 263 | B168: Hopkinton | C168: 20965 | D168: Maple Street Elementary School | G168: 705 | H168: Seacoast Charter School
A169: 267 | B169: Hudson | C169: 21050 | D169: Alvirne High School | G169: 706 | H169: LEAF Charter School
A170: 267 | B170: Hudson | C170: 21045 | D170: Dr. H. O. Smith Elementary School | G170: 707 | H170: Cocheco Academy for the Arts
A171: 267 | B171: Hudson | C171: 27900 | D171: Hills Garrison Elementary School | G171: 708 | H171: Kreiva Academy Public Charter School
A172: 267 | B172: Hudson | C172: 21060 | D172: Hudson Memorial School | G172: 709 | H172: Great Bay Charter School
A173: 267 | B173: Hudson | C173: 26765 | D173: Nottingham West Elementary School | G173: 710 | H173: Capital City Public Charter School
A174: 269 | B174: Inter-Lakes Cooperative | C174: 29200 | D174: Inter-Lakes Elementary School | G174: 712 | H174: Windham Academy Public Charter School
A175: 269 | B175: Inter-Lakes Cooperative | C175: 20035 | D175: Inter-Lakes High School | G175: 714 | H175: Spark Academy of Advanced Technologies Charter School
A176: 269 | B176: Inter-Lakes Cooperative | C176: 29201 | D176: Inter-Lakes Middle School | G176: 717 | H176: Surry Village Charter School
A177: 269 | B177: Inter-Lakes Cooperative | C177: 20040 | D177: Sandwich Central School | G177: 719 | H177: Ledyard Charter School
A178: 271 | B178: Jackson | C178: 20355 | D178: Jackson Grammar School | G178: 721 | H178: Strong Foundations Charter School
A179: 274 | B179: Jaffrey-Rindge Cooperative | C179: 22265 | D179: Conant High School | G179: 723 | H179: CSI Charter School
A180: 274 | B180: Jaffrey-Rindge Cooperative | C180: 22275 | D180: Jaffrey Grade School | G180: 725 | H180: Academy for Science and Design Charter
A181: 274 | B181: Jaffrey-Rindge Cooperative | C181: 22280 | D181: Jaffrey-Rindge Middle School | G181: 727 | H181: Virtual Learning Academy
A182: 274 | B182: Jaffrey-Rindge Cooperative | C182: 22320 | D182: Rindge Memorial School | G182: 728 | H182: PACE Career Academy Charter School
A183: 275 | B183: John Stark Regional | C183: 26380 | D183: John Stark Regional High School | G183: 729 | H183: Mill Falls Charter School
A184: 276 | B184: Kearsarge Regional | C184: 21980 | D184: Kearsarge Reg. Elem. School at New London | G184: 731 | H184: The Birches Academy of Academics
A185: 276 | B185: Kearsarge Regional | C185: 26530 | D185: Kearsarge Reg. Elementary School - Bradford | G185: 733 | H185: Making Community Connections Charter School
A186: 276 | B186: Kearsarge Regional | C186: 22015 | D186: Kearsarge Regional High School | G186: 735 | H186: Polaris Charter School
A187: 276 | B187: Kearsarge Regional | C187: 26535 | D187: Kearsarge Regional Middle School | G187: 737 | H187: Robert Frost Charter School
A188: 276 | B188: Kearsarge Regional | C188: 22020 | D188: Simonds Elementary School | G188: 740 | H188: Next Charter School
A189: 276 | B189: Kearsarge Regional | C189: 22010 | D189: Sutton Central Elementary School | G189: 741 | H189: The Founders Academy Charter School
A190: 279 | B190: Keene | C190: 21190 | D190: Franklin Elementary School | G190: 742 | H190: Gate City Charter School for the Arts
A191: 279 | B191: Keene | C191: 21165 | D191: Fuller Elementary School | G191: 743 | H191: Compass Classical Academy Charter School
A192: 279 | B192: Keene | C192: 21195 | D192: Keene High School | G192: 744 | H192: MicroSociety Academy Charter School Foundation
A193: 279 | B193: Keene | C193: 21185 | D193: Keene Middle School | G193: 970 | H193: Prospect Mountain JMA
A194: 279 | B194: Keene | C194: 21170 | D194: Symonds Elementary School | G194: 998 | H194: Coe-Brown Northwood Academy
A195: 279 | B195: Keene | C195: 21200 | D195: Wheelock Elementary School | G195: 999 | H195: Pinkerton Academy
A196: 281 | B196: Kensington | C196: 20605 | D196: Kensington Elementary School
A197: 285 | B197: Laconia | C197: 21290 | D197: Elm Street School
A198: 285 | B198: Laconia | C198: 21255 | D198: Laconia High School
A199: 285 | B199: Laconia | C199: 21275 | D199: Laconia Middle School
A200: 285 | B200: Laconia | C200: 21260 | D200: Pleasant Street School
... 289 more rows

Sheet Cohort (hidden)
A1: 2020 - 2021 Cohort Graduation and Dropout Rate
C2: Graduation | F2: All Early Exit Non-Graduates | I2: Dropouts Only
C3: Class of 2021 Cohort (1) | D3: Graduated (2) | E3: Graduation Rate | F3: Earned GED (a) | G3: Droppedd Out (b) | H3: Total | I3: NESSC Dropouts Only Rate
B5: State Total | C5: 13631 | D5: 11890 | E5: 0.8722764287 | F5: 247 | G5: 416 | H5: 663 | I5: 0.03051867068
A6: District | B6: School
A7: Bedford | B7: Bedford High School | C7: 375 | D7: 365 | E7: 0.9733333333 | F7: 0 | G7: 2 | H7: 2 | I7: 0.005333333333
A8: Berlin | B8: Berlin Senior High School | C8: 86 | D8: 75 | E8: 0.8720930233 | F8: 0 | G8: 10 | H8: 10 | I8: 0.1162790698
A9: Bow | B9: Bow High School | C9: 149 | D9: 143 | E9: 0.9597315436 | F9: 1 | G9: 1 | H9: 2 | I9: 0.006711409396
A10: Claremont | B10: Stevens High School | C10: 117 | D10: 83 | E10: 0.7094017094 | F10: 1 | G10: 12 | H10: 13 | I10: 0.1025641026
A11: Colebrook | B11: Colebrook Academy and Elementary School (H) | C11: 23 | D11: 22 | E11: 0.9565217391 | F11: 0 | G11: 1 | H11: 1 | I11: 0.04347826087
A13: Concord | B13: Concord High School | C13: 394 | D13: 322 | E13: 0.8172588832 | F13: 3 | G13: 9 | H13: 12 | I13: 0.02284263959
A14: Contoocook Valley | B14: Conval Regional High School | C14: 183 | D14: 171 | E14: 0.9344262295 | F14: 0 | G14: 5 | H14: 5 | I14: 0.02732240437
A15: Conway | B15: Kennett High School | C15: 183 | D15: 179 | E15: 0.9781420765 | F15: 0 | G15: 1 | H15: 1 | I15: 0.005464480874
A16: Dover | B16: Dover Senior High School | C16: 336 | D16: 278 | E16: 0.8273809524 | F16: 13 | G16: 4 | H16: 17 | I16: 0.0119047619
A17: Dresden | B17: Hanover High School | C17: 172 | D17: 168 | E17: 0.976744186 | F17: 0 | G17: 0 | H17: 0 | I17: 0
A19: Epping | B19: Epping High School | C19: 64 | D19: 57 | E19: 0.890625 | F19: 1 | G19: 0 | H19: 1 | I19: 0
A20: Exeter Region Cooperative | B20: Exeter High School | C20: 417 | D20: 394 | E20: 0.9448441247 | F20: 5 | G20: 4 | H20: 9 | I20: 0.009592326139
A21: Fall Mountain Regional | B21: Fall Mountain Regional High School | C21: 119 | D21: 101 | E21: 0.8487394958 | F21: 0 | G21: 7 | H21: 7 | I21: 0.05882352941
A22: Farmington | B22: Farmington Senior High School | C22: 67 | D22: 54 | E22: 0.8059701493 | F22: 2 | G22: 2 | H22: 4 | I22: 0.02985074627
A23: Franklin | B23: Franklin High School | C23: 61 | D23: 52 | E23: 0.8524590164 | F23: 0 | G23: 3 | H23: 3 | I23: 0.04918032787
A25: Gilford | B25: Gilford High School | C25: 135 | D25: 120 | E25: 0.8888888889 | F25: 5 | G25: 6 | H25: 11 | I25: 0.04444444444
A26: Goffstown | B26: Goffstown High School | C26: 270 | D26: 249 | E26: 0.9222222222 | F26: 3 | G26: 5 | H26: 8 | I26: 0.01851851852
A27: Gorham Randolph Shelburne Cooperative | B27: Gorham High School | C27: 32 | D27: 31 | E27: 0.96875 | F27: 0 | G27: 0 | H27: 0 | I27: 0
A28: Governor Wentworth Regional | B28: Kingswood Regional High School | C28: 185 | D28: 168 | E28: 0.9081081081 | F28: 0 | G28: 5 | H28: 5 | I28: 0.02702702703
A29: Haverhill Cooperative | B29: Woodsville High School | C29: 44 | D29: 41 | E29: 0.9318181818 | F29: 0 | G29: 0 | H29: 0 | I29: 0
A31: Hillsboro-Deering Cooperative | B31: Hillsboro-Deering High School | C31: 98 | D31: 80 | E31: 0.8163265306 | F31: 1 | G31: 3 | H31: 4 | I31: 0.0306122449
A32: Hinsdale | B32: Hinsdale High School | C32: 31 | D32: 31 | E32: 1 | F32: 0 | G32: 0 | H32: 0 | I32: 0
A33: Hollis-Brookline Cooperative | B33: Hollis-Brookline High School | C33: 220 | D33: 204 | E33: 0.9272727273 | F33: 1 | G33: 0 | H33: 1 | I33: 0
A34: Hopkinton | B34: Hopkinton High School | C34: 71 | D34: 68 | E34: 0.9577464789 | F34: 0 | G34: 1 | H34: 1 | I34: 0.01408450704
A35: Hudson | B35: Alvirne High School | C35: 263 | D35: 219 | E35: 0.8326996198 | F35: 19 | G35: 6 | H35: 25 | I35: 0.02281368821
A37: Inter-Lakes Cooperative | B37: Inter-Lakes High School | C37: 71 | D37: 62 | E37: 0.8732394366 | F37: 2 | G37: 5 | H37: 7 | I37: 0.07042253521
A38: Jaffrey-Rindge Cooperative | B38: Conant High School | C38: 64 | D38: 54 | E38: 0.84375 | F38: 8 | G38: 1 | H38: 9 | I38: 0.015625
A39: John Stark Regional | B39: John Stark Regional High School | C39: 166 | D39: 154 | E39: 0.9277108434 | F39: 0 | G39: 2 | H39: 2 | I39: 0.01204819277
A40: Kearsarge Regional | B40: Kearsarge Regional High School | C40: 120 | D40: 114 | E40: 0.95 | F40: 1 | G40: 1 | H40: 2 | I40: 0.008333333333
A41: Keene | B41: Keene High School | C41: 319 | D41: 276 | E41: 0.8652037618 | F41: 2 | G41: 15 | H41: 17 | I41: 0.04702194357
A43: Laconia | B43: Laconia High School | C43: 132 | D43: 111 | E43: 0.8409090909 | F43: 3 | G43: 3 | H43: 6 | I43: 0.02272727273
A44: Lebanon | B44: Lebanon High School | C44: 142 | D44: 135 | E44: 0.9507042254 | F44: 4 | G44: 2 | H44: 6 | I44: 0.01408450704
A45: Lincoln-Woodstock Cooperative | B45: Lin-Wood Public School (High) | C45: 24 | D45: 24 | E45: 1 | F45: 0 | G45: 0 | H45: 0 | I45: 0
A46: Lisbon Regional | B46: Lisbon Regional School (High) | C46: 24 | D46: 20 | E46: 0.8333333333 | F46: 0 | G46: 2 | H46: 2 | I46: 0.08333333333
A47: Litchfield | B47: Campbell High School | C47: 107 | D47: 106 | E47: 0.9906542056 | F47: 1 | G47: 0 | H47: 1 | I47: 0
A49: Littleton | B49: Littleton High School | C49: 63 | D49: 61 | E49: 0.9682539683 | F49: 0 | G49: 0 | H49: 0 | I49: 0
A50: Londonderry | B50: Londonderry Senior High School | C50: 374 | D50: 347 | E50: 0.9278074866 | F50: 12 | G50: 0 | H50: 12 | I50: 0
A51: Manchester | B51: Manchester Memorial High School | C51: 306 | D51: 216 | E51: 0.7058823529 | F51: 5 | G51: 27 | H51: 32 | I51: 0.08823529412
A52: Manchester | B52: Manchester Central High School | C52: 323 | D52: 225 | E52: 0.6965944272 | F52: 3 | G52: 44 | H52: 47 | I52: 0.1362229102
A53: Manchester | B53: Manchester West High School | C53: 204 | D53: 115 | E53: 0.5637254902 | F53: 3 | G53: 41 | H53: 44 | I53: 0.2009803922
A54: Manchester | B54: Manchester School of Technology (High School) | C54: 72 | D54: 58 | E54: 0.8055555556 | F54: 1 | G54: 8 | H54: 9 | I54: 0.1111111111
B55: Manchester District Total | C55: 905 | D55: 614 | E55: 0.6784530387 | F55: 12 | G55: 120 | H55: 132 | I55: 0.1325966851
A56: Mascenic Regional | B56: Mascenic Regional High School | C56: 57 | D56: 50 | E56: 0.8771929825 | F56: 0 | G56: 4 | H56: 4 | I56: 0.0701754386
A57: Mascoma Valley Regional | B57: Mascoma Valley Regional High School | C57: 98 | D57: 89 | E57: 0.9081632653 | F57: 2 | G57: 4 | H57: 6 | I57: 0.04081632653
A58: Merrimack | B58: Merrimack High School | C58: 299 | D58: 255 | E58: 0.8528428094 | F58: 3 | G58: 4 | H58: 7 | I58: 0.01337792642
A59: Merrimack Valley | B59: Merrimack Valley High School | C59: 173 | D59: 156 | E59: 0.901734104 | F59: 2 | G59: 4 | H59: 6 | I59: 0.02312138728
A61: Milford | B61: Milford High School | C61: 187 | D61: 183 | E61: 0.9786096257 | F61: 0 | G61: 1 | H61: 1 | I61: 0.005347593583
A62: Milton | B62: Nute High School | C62: 32 | D62: 20 | E62: 0.625 | F62: 2 | G62: 1 | H62: 3 | I62: 0.03125
A63: Monadnock Regional | B63: Monadnock Regional High School | C63: 128 | D63: 111 | E63: 0.8671875 | F63: 2 | G63: 7 | H63: 9 | I63: 0.0546875
A64: Moultonborough | B64: Moultonborough Academy | C64: 29 | D64: 22 | E64: 0.7586206897 | F64: 3 | G64: 1 | H64: 4 | I64: 0.03448275862
A65: Nashua | B65: Nashua High School South | C65: 442 | D65: 385 | E65: 0.871040724 | F65: 1 | G65: 9 | H65: 10 | I65: 0.02036199095
A66: Nashua | B66: Nashua High School North | C66: 395 | D66: 337 | E66: 0.853164557 | F66: 0 | G66: 20 | H66: 20 | I66: 0.05063291139
B67: Nashua District Total | C67: 837 | D67: 722 | E67: 0.86260454 | F67: 1 | G67: 29 | H67: 30 | I67: 0.03464755078
A68: Newfound Area | B68: Newfound Regional High School | C68: 80 | D68: 66 | E68: 0.825 | F68: 6 | G68: 6 | H68: 12 | I68: 0.075
A69: Newmarket | B69: Newmarket Jr.-Sr. High School | C69: 79 | D69: 75 | E69: 0.9493670886 | F69: 0 | G69: 2 | H69: 2 | I69: 0.0253164557
A70: Newport | B70: Newport Middle High School (High) | C70: 89 | D70: 64 | E70: 0.7191011236 | F70: 1 | G70: 3 | H70: 4 | I70: 0.03370786517
A71: Northumberland | B71: Groveton High School | C71: 28 | D71: 24 | E71: 0.8571428571 | F71: 0 | G71: 1 | H71: 1 | I71: 0.03571428571
A73: Oyster River Coop | B73: Oyster River High School | C73: 206 | D73: 198 | E73: 0.9611650485 | F73: 2 | G73: 1 | H73: 3 | I73: 0.004854368932
A74: Pelham | B74: Pelham High School | C74: 170 | D74: 158 | E74: 0.9294117647 | F74: 2 | G74: 4 | H74: 6 | I74: 0.02352941176
A75: Pembroke | B75: Pembroke Academy | C75: 185 | D75: 169 | E75: 0.9135135135 | F75: 0 | G75: 9 | H75: 9 | I75: 0.04864864865
A76: Pemi-Baker Regional | B76: Plymouth Regional High School | C76: 163 | D76: 140 | E76: 0.8588957055 | F76: 11 | G76: 5 | H76: 16 | I76: 0.03067484663
A77: Pittsburg | B77: Pittsburg School (High) | C77: 7 | D77: 6 | E77: 0.8571428571 | F77: 0 | G77: 0 | H77: 0 | I77: 0
A79: Pittsfield | B79: Pittsfield High School | C79: 33 | D79: 21 | E79: 0.6363636364 | F79: 2 | G79: 4 | H79: 6 | I79: 0.1212121212
A80: Portsmouth | B80: Portsmouth High School | C80: 266 | D80: 256 | E80: 0.962406015 | F80: 4 | G80: 2 | H80: 6 | I80: 0.007518796992
A81: Profile | B81: Profile Senior High School | C81: 32 | D81: 29 | E81: 0.90625 | F81: 0 | G81: 1 | H81: 1 | I81: 0.03125
A82: Raymond | B82: Raymond High School | C82: 79 | D82: 68 | E82: 0.8607594937 | F82: 1 | G82: 4 | H82: 5 | I82: 0.05063291139
A83: Rivendell | B83: Rivendell Academy (H) | C83: 18 | D83: 17 | E83: 0.9444444444 | F83: 0 | G83: 0 | H83: 0 | I83: 0
A85: Rochester | B85: Bud Carlson Academy | C85: 28 | D85: 3 | E85: 0.1071428571 | F85: 9 | G85: 6 | H85: 15 | I85: 0.2142857143
A86: Rochester | B86: Spaulding High School | C86: 319 | D86: 287 | E86: 0.8996865204 | F86: 0 | G86: 1 | H86: 1 | I86: 0.003134796238
B87: Rochester District Total | C87: 347 | D87: 290 | E87: 0.8357348703 | F87: 9 | G87: 7 | H87: 16 | I87: 0.02017291066
A88: Salem | B88: Salem High School | C88: 299 | D88: 281 | E88: 0.9397993311 | F88: 6 | G88: 1 | H88: 7 | I88: 0.003344481605
A89: Sanborn Regional | B89: Sanborn Regional High School | C89: 173 | D89: 165 | E89: 0.9537572254 | F89: 3 | G89: 1 | H89: 4 | I89: 0.005780346821
A90: Shaker Regional | B90: Belmont High School | C90: 83 | D90: 70 | E90: 0.843373494 | F90: 1 | G90: 2 | H90: 3 | I90: 0.02409638554
A92: Somersworth | B92: Somersworth High School | C92: 100 | D92: 82 | E92: 0.82 | F92: 3 | G92: 1 | H92: 4 | I92: 0.01
A93: Souhegan Cooperative | B93: Souhegan Coop High School | C93: 174 | D93: 170 | E93: 0.9770114943 | F93: 0 | G93: 2 | H93: 2 | I93: 0.01149425287
A94: Sunapee | B94: Sunapee Sr. High School | C94: 42 | D94: 39 | E94: 0.9285714286 | F94: 0 | G94: 0 | H94: 0 | I94: 0
A95: Timberlane Regional | B95: Timberlane Regional High School | C95: 282 | D95: 250 | E95: 0.8865248227 | F95: 4 | G95: 5 | H95: 9 | I95: 0.01773049645
A96: White Mountains Regional | B96: White Mountains Regional High School | C96: 75 | D96: 64 | E96: 0.8533333333 | F96: 0 | G96: 2 | H96: 2 | I96: 0.02666666667
A98: Wilton-Lyndeborough Cooperative | B98: Wilton-Lyndeboro Senior High School | C98: 46 | D98: 43 | E98: 0.9347826087 | F98: 1 | G98: 2 | H98: 3 | I98: 0.04347826087
A99: Windham | B99: Windham High School | C99: 230 | D99: 220 | E99: 0.9565217391 | F99: 3 | G99: 0 | H99: 3 | I99: 0
A100: Winnacunnet Cooperative | B100: Winnacunnet High School | C100: 292 | D100: 260 | E100: 0.8904109589 | F100: 12 | G100: 7 | H100: 19 | I100: 0.02397260274
A101: Winnisquam Regional | B101: Winnisquam Regional High School | C101: 112 | D101: 95 | E101: 0.8482142857 | F101: 3 | G101: 6 | H101: 9 | I101: 0.05357142857
A102: Public Academies and Joint Maintenance Agreement
A103: Prospect Mountain High School | C103: 101 | D103: 92 | E103: 0.9108910891 | F103: 0 | G103: 2 | H103: 2 | I103: 0.0198019802
A104: Coe-Brown Northwood Academy | C104: 159 | D104: 153 | E104: 0.9622641509 | F104: 0 | G104: 2 | H104: 2 | I104: 0.01257861635
A105: Pinkerton Academy | C105: 828 | D105: 696 | E105: 0.8405797101 | F105: 49 | G105: 17 | H105: 66 | I105: 0.02053140097
A106: Public Charter Schools
A107: Granite State Arts Academy Charter School | C107: 24 | D107: 18 | E107: 0.75 | F107: 1 | G107: 1 | H107: 2 | I107: 0.04166666667
A108: North Country Charter Academy (H) | C108: 35 | D108: 23 | E108: 0.6571428571 | F108: 0 | G108: 4 | H108: 4 | I108: 0.1142857143
A109: LEAF Charter School | C109: 22 | D109: 18 | E109: 0.8181818182 | F109: 0 | G109: 1 | H109: 1 | I109: 0.04545454545
A110: Cocheco Academy for the Arts | C110: 5 | D110: 3 | E110: 0.6 | F110: 1 | G110: 0 | H110: 1 | I110: 0
A111: Kreiva Academy Public Charter School (H) | C111: 10 | D111: 1 | E111: 0.1 | F111: 0 | G111: 1 | H111: 1 | I111: 0.1
A112: Great Bay Charter School (H) | C112: 28 | D112: 24 | E112: 0.8571428571 | F112: 2 | G112: 1 | H112: 3 | I112: 0.03571428571
A113: Ledyard Charter School | C113: 9 | D113: 2 | E113: 0.2222222222 | F113: 0 | G113: 1 | H113: 1 | I113: 0.1111111111
A114: CSI Charter School | C114: 11 | D114: 3 | E114: 0.2727272727 | F114: 0 | G114: 1 | H114: 1 | I114: 0.09090909091
A115: Academy for Science and Design Charter (H) | C115: 46 | D115: 36 | E115: 0.7826086957 | F115: 0 | G115: 0 | H115: 0 | I115: 0
A116: Virtual Learning Academy (H) | C116: 160 | D116: 107 | E116: 0.66875 | F116: 1 | G116: 7 | H116: 8 | I116: 0.04375
A117: Making Community Connections Charter School - Monadnock | C117: 13 | D117: 1 | E117: 0.07692307692 | F117: 3 | G117: 2 | H117: 5 | I117: 0.1538461538
A118: Next Charter School | C118: 23 | D118: 14 | E118: 0.6086956522 | F118: 1 | G118: 3 | H118: 4 | I118: 0.1304347826
A119: The Founders Academy Charter School (H) | C119: 21 | D119: 18 | E119: 0.8571428571 | F119: 0 | G119: 2 | H119: 2 | I119: 0.09523809524

Sheet Assessments (hidden)
A1: DenominatorType | B1: yearid | C1: Level of Data | D1: Subject | E1: District | F1: School | G1: Grade | H1: Subgroup | I1: Total FAY Students | J1: level1% | K1: level2% | L1: level3% | M1: level4% | N1: Above prof% (lvl 3&4) | O1: Participate% | P1: Avg Score | Q1: Report Date | T1: Count of Total FAY Students
A2: Regular | B2: 2021 | C2: District Level | D2: mat | E2: Allenstown | F2: District Data | G2: All grades | H2: All students | I2: 200 - 205 | J2: 39 | K2: 31 | L2: 21 | M2: < 10 % | N2: 30 | O2: 92 | P2: Not available | Q2: 2021-10-04T15:44:35 | T2: Subgroup | U2: District | V2: Total
A3: Regular | B3: 2021 | C3: District Level | D3: mat | E3: Allenstown | F3: District Data | G3: All grades | H3: Male | I3: 95 - 100 | J3: 31 | K3: 35 | L3: 22 | M3: 12 | N3: 35 | O3: 94 | P3: Not available | Q3: 2021-10-04T15:44:35 | T3: All students | U3: Academy for Science and Design Charter School | V3: 29
A4: Regular | B4: 2021 | C4: District Level | D4: mat | E4: Allenstown | F4: District Data | G4: All grades | H4: Female | I4: 105 - 110 | J4: 47 | K4: 28 | L4: 19 | M4: < 10 % | N4: 26 | O4: 91 | P4: Not available | Q4: 2021-10-04T15:44:35 | U4: Allenstown | V4: 36
A5: Regular | B5: 2021 | C5: District Level | D5: mat | E5: Allenstown | F5: District Data | G5: All grades | H5: Hispanic | I5: 0 - 10 | J5: * n < 11 | K5: * n < 11 | L5: * n < 11 | M5: * n < 11 | N5: * n < 11 | O5: * n< 11 | P5: Not available | Q5: 2021-10-04T15:44:35 | U5: Alton | V5: 34
A6: Regular | B6: 2021 | C6: District Level | D6: mat | E6: Allenstown | F6: District Data | G6: All grades | H6: Black | I6: 0 - 10 | J6: * n < 11 | K6: * n < 11 | L6: * n < 11 | M6: * n < 11 | N6: * n < 11 | O6: * n< 11 | P6: Not available | Q6: 2021-10-04T15:44:35 | U6: Amherst | V6: 36
A7: Regular | B7: 2021 | C7: District Level | D7: mat | E7: Allenstown | F7: District Data | G7: All grades | H7: White | I7: 180 - 185 | J7: 38 | K7: 32 | L7: 21 | M7: 10 | N7: 31 | O7: 92 | P7: Not available | Q7: 2021-10-04T15:44:35 | U7: Andover | V7: 34
A8: Regular | B8: 2021 | C8: District Level | D8: mat | E8: Allenstown | F8: District Data | G8: All grades | H8: Two or More races | I8: 0 - 10 | J8: * n < 11 | K8: * n < 11 | L8: * n < 11 | M8: * n < 11 | N8: * n < 11 | O8: 91 | P8: Not available | Q8: 2021-10-04T15:44:35 | U8: Ashland | V8: 34
A9: Regular | B9: 2021 | C9: District Level | D9: mat | E9: Allenstown | F9: District Data | G9: All grades | H9: EL - Current | I9: 0 - 10 | J9: * n < 11 | K9: * n < 11 | L9: * n < 11 | M9: * n < 11 | N9: * n < 11 | O9: * n< 11 | P9: Not available | Q9: 2021-10-04T15:44:35 | U9: Auburn | V9: 34
A10: Regular | B10: 2021 | C10: District Level | D10: mat | E10: Allenstown | F10: District Data | G10: All grades | H10: IEP/SWD | I10: 30 - 35 | J10: 74 | K10: 18 | L10: < 10 % | M10: < 10 % | N10: < 10 % | O10: 81 | P10: Not available | Q10: 2021-10-04T15:44:35 | U10: Barnstead | V10: 34
A11: Regular | B11: 2021 | C11: District Level | D11: mat | E11: Allenstown | F11: District Data | G11: All grades | H11: SES | I11: 100 - 105 | J11: 47 | K11: 33 | L11: 14 | M11: < 10 % | N11: 20 | O11: 90 | P11: Not available | Q11: 2021-10-04T15:44:35 | U11: Barrington | V11: 36
A12: Regular | B12: 2021 | C12: District Level | D12: mat | E12: Allenstown | F12: District Data | G12: All grades | H12: Asian+PI+Hawaiian | I12: 0 - 10 | J12: * n < 11 | K12: * n < 11 | L12: * n < 11 | M12: * n < 11 | N12: * n < 11 | O12: * n< 11 | P12: Not available | Q12: 2021-10-04T15:44:35 | U12: Bartlett | V12: 34
A13: Regular | B13: 2021 | C13: District Level | D13: mat | E13: Allenstown | F13: District Data | G13: All grades | H13: EL - Curr + Monitor Yr1-4 | I13: 0 - 10 | J13: * n < 11 | K13: * n < 11 | L13: * n < 11 | M13: * n < 11 | N13: * n < 11 | O13: * n< 11 | P13: Not available | Q13: 2021-10-04T15:44:35 | U13: Bath | V13: 27
A14: Regular | B14: 2021 | C14: District Level | D14: mat | E14: Allenstown | F14: District Data | G14: All grades | H14: Homeless | I14: 0 - 10 | J14: * n < 11 | K14: * n < 11 | L14: * n < 11 | M14: * n < 11 | N14: * n < 11 | O14: * n< 11 | P14: Not available | Q14: 2021-10-04T15:44:35 | U14: Bedford | V14: 60
A15: Regular | B15: 2021 | C15: District Level | D15: mat | E15: Alton | F15: District Data | G15: All grades | H15: All students | I15: 180 - 185 | J15: 36 | K15: 33 | L15: 24 | M15: < 10 % | N15: 32 | O15: 73 | P15: Not available | Q15: 2021-10-04T15:44:35 | U15: Benton | V15: 4
A16: Regular | B16: 2021 | C16: District Level | D16: mat | E16: Alton | F16: District Data | G16: All grades | H16: Male | I16: 90 - 95 | J16: 35 | K16: 36 | L16: 18 | M16: 11 | N16: 29 | O16: 71 | P16: Not available | Q16: 2021-10-04T15:44:35 | U16: Berlin | V16: 46
A17: Regular | B17: 2021 | C17: District Level | D17: mat | E17: Alton | F17: District Data | G17: All grades | H17: Female | I17: 85 - 90 | J17: 36 | K17: 30 | L17: 31 | M17: < 10 % | N17: 34 | O17: 74 | P17: Not available | Q17: 2021-10-04T15:44:35 | U17: Bethlehem | V17: 24
A18: Regular | B18: 2021 | C18: District Level | D18: mat | E18: Alton | F18: District Data | G18: All grades | H18: Hispanic | I18: 0 - 10 | J18: * n < 11 | K18: * n < 11 | L18: * n < 11 | M18: * n < 11 | N18: * n < 11 | O18: * n< 11 | P18: Not available | Q18: 2021-10-04T15:44:35 | U18: Bow | V18: 45
A19: Regular | B19: 2021 | C19: District Level | D19: mat | E19: Alton | F19: District Data | G19: All grades | H19: White | I19: 165 - 170 | J19: 35 | K19: 33 | L19: 24 | M19: < 10 % | N19: 32 | O19: 72 | P19: Not available | Q19: 2021-10-04T15:44:35 | U19: Brentwood | V19: 20
A20: Regular | B20: 2021 | C20: District Level | D20: mat | E20: Alton | F20: District Data | G20: All grades | H20: Two or More races | I20: 0 - 10 | J20: * n < 11 | K20: * n < 11 | L20: * n < 11 | M20: * n < 11 | N20: * n < 11 | O20: * n< 11 | P20: Not available | Q20: 2021-10-04T15:44:35 | U20: Brookline | V20: 26
A21: Regular | B21: 2021 | C21: District Level | D21: mat | E21: Alton | F21: District Data | G21: All grades | H21: IEP/SWD | I21: 30 - 35 | J21: 63 | K21: 30 | L21: < 10 % | M21: < 10 % | N21: < 10 % | O21: 63 | P21: Not available | Q21: 2021-10-04T15:44:35 | U21: Campton | V21: 34
A22: Regular | B22: 2021 | C22: District Level | D22: mat | E22: Alton | F22: District Data | G22: All grades | H22: SES | I22: 35 - 40 | J22: 51 | K22: 29 | L22: 17 | M22: < 10 % | N22: 20 | O22: 67 | P22: Not available | Q22: 2021-10-04T15:44:35 | U22: Candia | V22: 34
A23: Regular | B23: 2021 | C23: District Level | D23: mat | E23: Alton | F23: District Data | G23: All grades | H23: Asian+PI+Hawaiian | I23: 0 - 10 | J23: * n < 11 | K23: * n < 11 | L23: * n < 11 | M23: * n < 11 | N23: * n < 11 | O23: * n< 11 | P23: Not available | Q23: 2021-10-04T15:44:35 | U23: Chester | V23: 34
A24: Regular | B24: 2021 | C24: District Level | D24: mat | E24: Alton | F24: District Data | G24: All grades | H24: Homeless | I24: 0 - 10 | J24: * n < 11 | K24: * n < 11 | L24: * n < 11 | M24: * n < 11 | N24: * n < 11 | O24: 73 | P24: Not available | Q24: 2021-10-04T15:44:35 | U24: Chesterfield | V24: 34
A25: Regular | B25: 2021 | C25: District Level | D25: mat | E25: Alton | F25: District Data | G25: All grades | H25: Military | I25: 0 - 10 | J25: * n < 11 | K25: * n < 11 | L25: * n < 11 | M25: * n < 11 | N25: * n < 11 | O25: * n< 11 | P25: Not available | Q25: 2021-10-04T15:44:35 | U25: Chichester | V25: 34
A26: Regular | B26: 2021 | C26: District Level | D26: mat | E26: Amherst | F26: District Data | G26: All grades | H26: All students | I26: 630 - 635 | J26: 19 | K26: 31 | L26: 27 | M26: 23 | N26: 51 | O26: 74 | P26: Not available | Q26: 2021-10-04T15:44:35 | U26: Claremont | V26: 66
A27: Regular | B27: 2021 | C27: District Level | D27: mat | E27: Amherst | F27: District Data | G27: All grades | H27: Male | I27: 320 - 325 | J27: 19 | K27: 29 | L27: 24 | M27: 27 | N27: 51 | O27: 74 | P27: Not available | Q27: 2021-10-04T15:44:35 | U27: Cocheco Academy for the Arts | V27: 8
A28: Regular | B28: 2021 | C28: District Level | D28: mat | E28: Amherst | F28: District Data | G28: All grades | H28: Female | I28: 305 - 310 | J28: 18 | K28: 32 | L28: 30 | M28: 20 | N28: 50 | O28: 74 | P28: Not available | Q28: 2021-10-04T15:44:35 | U28: Coe-Brown Northwood Academy | V28: 12
A29: Regular | B29: 2021 | C29: District Level | D29: mat | E29: Amherst | F29: District Data | G29: All grades | H29: Hispanic | I29: 0 - 10 | J29: * n < 11 | K29: * n < 11 | L29: * n < 11 | M29: * n < 11 | N29: * n < 11 | O29: * n< 11 | P29: Not available | Q29: 2021-10-04T15:44:35 | U29: Colebrook | V29: 43
A30: Regular | B30: 2021 | C30: District Level | D30: mat | E30: Amherst | F30: District Data | G30: All grades | H30: black | I30: 0 - 10 | J30: * n < 11 | K30: * n < 11 | L30: * n < 11 | M30: * n < 11 | N30: * n < 11 | O30: * n< 11 | P30: Not available | Q30: 2021-10-04T15:44:35 | U30: Compass Classical Academy Charter School | V30: 34
A31: Regular | B31: 2021 | C31: District Level | D31: mat | E31: Amherst | F31: District Data | G31: All grades | H31: Black | I31: 0 - 10 | J31: * n < 11 | K31: * n < 11 | L31: * n < 11 | M31: * n < 11 | N31: * n < 11 | O31: * n< 11 | P31: Not available | Q31: 2021-10-04T15:44:35 | U31: Concord | V31: 76
A32: Regular | B32: 2021 | C32: District Level | D32: mat | E32: Amherst | F32: District Data | G32: All grades | H32: White | I32: 600 - 605 | J32: 19 | K32: 31 | L32: 27 | M32: 23 | N32: 50 | O32: 74 | P32: Not available | Q32: 2021-10-04T15:44:35 | U32: Contoocook Valley | V32: 104
A33: Regular | B33: 2021 | C33: District Level | D33: mat | E33: Amherst | F33: District Data | G33: All grades | H33: EL - Current | I33: 0 - 10 | J33: * n < 11 | K33: * n < 11 | L33: * n < 11 | M33: * n < 11 | N33: * n < 11 | O33: * n< 11 | P33: Not available | Q33: 2021-10-04T15:44:35 | U33: Conway | V33: 70
A34: Regular | B34: 2021 | C34: District Level | D34: mat | E34: Amherst | F34: District Data | G34: All grades | H34: IEP/SWD | I34: 100 - 105 | J34: 56 | K34: 26 | L34: 11 | M34: < 10 % | N34: 18 | O34: 67 | P34: Not available | Q34: 2021-10-04T15:44:35 | U34: Cornish | V34: 34
A35: Regular | B35: 2021 | C35: District Level | D35: mat | E35: Amherst | F35: District Data | G35: All grades | H35: SES | I35: 25 - 30 | J35: 43 | K35: 50 | L35: < 10 % | M35: < 10 % | N35: < 10 % | O35: 58 | P35: Not available | Q35: 2021-10-04T15:44:35 | U35: Croydon | V35: 12
A36: Regular | B36: 2021 | C36: District Level | D36: mat | E36: Amherst | F36: District Data | G36: All grades | H36: Asian+PI+Hawaiian | I36: 15 - 20 | J36: 13 | K36: 20 | L36: 20 | M36: 47 | N36: 67 | O36: 63 | P36: Not available | Q36: 2021-10-04T15:44:35 | U36: CSI Charter School | V36: 8
A37: Regular | B37: 2021 | C37: District Level | D37: mat | E37: Amherst | F37: District Data | G37: All grades | H37: EL - Curr + Monitor Yr1-4 | I37: 0 - 10 | J37: * n < 11 | K37: * n < 11 | L37: * n < 11 | M37: * n < 11 | N37: * n < 11 | O37: 69 | P37: Not available | Q37: 2021-10-04T15:44:35 | U37: Deerfield | V37: 34
A38: Regular | B38: 2021 | C38: District Level | D38: mat | E38: Amherst | F38: District Data | G38: All grades | H38: Military | I38: 10 - 15 | J38: < 10 % | K38: 42 | L38: 17 | M38: 33 | N38: 50 | O38: 80 | P38: Not available | Q38: 2021-10-04T15:44:35 | U38: Derry Cooperative | V38: 87
A39: Regular | B39: 2021 | C39: District Level | D39: mat | E39: Andover | F39: District Data | G39: All grades | H39: All students | I39: 155 - 160 | J39: 32 | K39: 45 | L39: 19 | M39: < 10 % | N39: 23 | O39: 98 | P39: Not available | Q39: 2021-10-04T15:44:35 | U39: Dover | V39: 57
A40: Regular | B40: 2021 | C40: District Level | D40: mat | E40: Andover | F40: District Data | G40: All grades | H40: Male | I40: 85 - 90 | J40: 26 | K40: 51 | L40: 18 | M40: < 10 % | N40: 24 | O40: 98 | P40: Not available | Q40: 2021-10-04T15:44:35 | U40: Dresden | V40: 29
A41: Regular | B41: 2021 | C41: District Level | D41: mat | E41: Andover | F41: District Data | G41: All grades | H41: Female | I41: 70 - 75 | J41: 40 | K41: 37 | L41: 20 | M41: < 10 % | N41: 23 | O41: 97 | P41: Not available | Q41: 2021-10-04T15:44:35 | U41: Dunbarton | V41: 24
A42: Regular | B42: 2021 | C42: District Level | D42: mat | E42: Andover | F42: District Data | G42: All grades | H42: Hispanic | I42: 0 - 10 | J42: * n < 11 | K42: * n < 11 | L42: * n < 11 | M42: * n < 11 | N42: * n < 11 | O42: * n< 11 | P42: Not available | Q42: 2021-10-04T15:44:35 | U42: East Kingston | V42: 20
A43: Regular | B43: 2021 | C43: District Level | D43: mat | E43: Andover | F43: District Data | G43: All grades | H43: Black | I43: 0 - 10 | J43: * n < 11 | K43: * n < 11 | L43: * n < 11 | M43: * n < 11 | N43: * n < 11 | O43: * n< 11 | P43: Not available | Q43: 2021-10-04T15:44:35 | U43: Epping | V43: 46
A44: Regular | B44: 2021 | C44: District Level | D44: mat | E44: Andover | F44: District Data | G44: All grades | H44: White | I44: 145 - 150 | J44: 32 | K44: 44 | L44: 20 | M44: < 10 % | N44: 24 | O44: 97 | P44: Not available | Q44: 2021-10-04T15:44:35 | U44: Epsom | V44: 34
A45: Regular | B45: 2021 | C45: District Level | D45: mat | E45: Andover | F45: District Data | G45: All grades | H45: Two or More races | I45: 0 - 10 | J45: * n < 11 | K45: * n < 11 | L45: * n < 11 | M45: * n < 11 | N45: * n < 11 | O45: * n< 11 | P45: Not available | Q45: 2021-10-04T15:44:35 | U45: Errol | V45: 26
A46: Regular | B46: 2021 | C46: District Level | D46: mat | E46: Andover | F46: District Data | G46: All grades | H46: IEP/SWD | I46: 30 - 35 | J46: 67 | K46: 27 | L46: < 10 % | M46: < 10 % | N46: < 10 % | O46: 91 | P46: Not available | Q46: 2021-10-04T15:44:35 | U46: Exeter | V46: 20
A47: Regular | B47: 2021 | C47: District Level | D47: mat | E47: Andover | F47: District Data | G47: All grades | H47: SES | I47: 35 - 40 | J47: 27 | K47: 49 | L47: 19 | M47: < 10 % | N47: 24 | O47: 97 | P47: Not available | Q47: 2021-10-04T15:44:35 | U47: Exeter Region Cooperative | V47: 29
A48: Regular | B48: 2021 | C48: District Level | D48: mat | E48: Andover | F48: District Data | G48: All grades | H48: Homeless | I48: 0 - 10 | J48: * n < 11 | K48: * n < 11 | L48: * n < 11 | M48: * n < 11 | N48: * n < 11 | O48: * n< 11 | P48: Not available | Q48: 2021-10-04T15:44:35 | U48: Fall Mountain Regional | V48: 106
A49: Regular | B49: 2021 | C49: District Level | D49: mat | E49: Andover | F49: District Data | G49: All grades | H49: Military | I49: 0 - 10 | J49: * n < 11 | K49: * n < 11 | L49: * n < 11 | M49: * n < 11 | N49: * n < 11 | O49: * n< 11 | P49: Not available | Q49: 2021-10-04T15:44:35 | U49: Farmington | V49: 45
A50: Regular | B50: 2021 | C50: District Level | D50: mat | E50: Ashland | F50: District Data | G50: All grades | H50: All students | I50: 70 - 75 | J50: 29 | K50: 31 | L50: 26 | M50: 14 | N50: 40 | O50: 74 | P50: Not available | Q50: 2021-10-04T15:44:35 | U50: Franklin | V50: 45
A51: Regular | B51: 2021 | C51: District Level | D51: mat | E51: Ashland | F51: District Data | G51: All grades | H51: Male | I51: 35 - 40 | J51: 24 | K51: 30 | L51: 27 | M51: 19 | N51: 46 | O51: 76 | P51: Not available | Q51: 2021-10-04T15:44:35 | U51: Freedom | V51: 24
A52: Regular | B52: 2021 | C52: District Level | D52: mat | E52: Ashland | F52: District Data | G52: All grades | H52: Female | I52: 30 - 35 | J52: 33 | K52: 33 | L52: 24 | M52: < 10 % | N52: 33 | O52: 72 | P52: Not available | Q52: 2021-10-04T15:44:35 | U52: Fremont | V52: 34
A53: Regular | B53: 2021 | C53: District Level | D53: mat | E53: Ashland | F53: District Data | G53: All grades | H53: White | I53: 65 - 70 | J53: 29 | K53: 32 | L53: 26 | M53: 13 | N53: 39 | O53: 74 | P53: Not available | Q53: 2021-10-04T15:44:35 | U53: Gate City Charter School For the Arts | V53: 30
A54: Regular | B54: 2021 | C54: District Level | D54: mat | E54: Ashland | F54: District Data | G54: All grades | H54: IEP/SWD | I54: 0 - 10 | J54: * n < 11 | K54: * n < 11 | L54: * n < 11 | M54: * n < 11 | N54: * n < 11 | O54: 44 | P54: Not available | Q54: 2021-10-04T15:44:35 | U54: Gilford | V54: 45
A55: Regular | B55: 2021 | C55: District Level | D55: mat | E55: Ashland | F55: District Data | G55: All grades | H55: SES | I55: 20 - 25 | J55: 42 | K55: 46 | L55: < 10 % | M55: < 10 % | N55: 13 | O55: 75 | P55: Not available | Q55: 2021-10-04T15:44:35 | U55: Gilmanton | V55: 34
A56: Regular | B56: 2021 | C56: District Level | D56: mat | E56: Ashland | F56: District Data | G56: All grades | H56: Asian+PI+Hawaiian | I56: 0 - 10 | J56: * n < 11 | K56: * n < 11 | L56: * n < 11 | M56: * n < 11 | N56: * n < 11 | O56: * n< 11 | P56: Not available | Q56: 2021-10-04T15:44:35 | U56: Goffstown | V56: 51
A57: Regular | B57: 2021 | C57: District Level | D57: mat | E57: Ashland | F57: District Data | G57: All grades | H57: EL - Curr + Monitor Yr1-4 | I57: 0 - 10 | J57: * n < 11 | K57: * n < 11 | L57: * n < 11 | M57: * n < 11 | N57: * n < 11 | O57: * n< 11 | P57: Not available | Q57: 2021-10-04T15:44:35 | U57: Gorham Randolph Shelburne Cooperative | V57: 46
A58: Regular | B58: 2021 | C58: District Level | D58: mat | E58: Ashland | F58: District Data | G58: All grades | H58: Homeless | I58: 0 - 10 | J58: * n < 11 | K58: * n < 11 | L58: * n < 11 | M58: * n < 11 | N58: * n < 11 | O58: * n< 11 | P58: Not available | Q58: 2021-10-04T15:44:35 | U58: Governor Wentworth Regional | V58: 96
A59: Regular | B59: 2021 | C59: District Level | D59: mat | E59: Auburn | F59: District Data | G59: All grades | H59: All students | I59: 380 - 385 | J59: 23 | K59: 32 | L59: 29 | M59: 17 | N59: 46 | O59: 92 | P59: Not available | Q59: 2021-10-04T15:44:35 | U59: Granite State Arts Academy Charter School | V59: 12
A60: Regular | B60: 2021 | C60: District Level | D60: mat | E60: Auburn | F60: District Data | G60: All grades | H60: Male | I60: 195 - 200 | J60: 22 | K60: 30 | L60: 28 | M60: 20 | N60: 48 | O60: 93 | P60: Not available | Q60: 2021-10-04T15:44:35 | U60: Grantham | V60: 24
A61: Regular | B61: 2021 | C61: District Level | D61: mat | E61: Auburn | F61: District Data | G61: All grades | H61: Female | I61: 180 - 185 | J61: 24 | K61: 34 | L61: 29 | M61: 13 | N61: 43 | O61: 91 | P61: Not available | Q61: 2021-10-04T15:44:35 | U61: Great Bay Charter School | V61: 26
A62: Regular | B62: 2021 | C62: District Level | D62: mat | E62: Auburn | F62: District Data | G62: All grades | H62: Hispanic | I62: 0 - 10 | J62: * n < 11 | K62: * n < 11 | L62: * n < 11 | M62: * n < 11 | N62: * n < 11 | O62: * n< 11 | P62: Not available | Q62: 2021-10-04T15:44:35 | U62: Greenland | V62: 34
A63: Regular | B63: 2021 | C63: District Level | D63: mat | E63: Auburn | F63: District Data | G63: All grades | H63: Black | I63: 0 - 10 | J63: * n < 11 | K63: * n < 11 | L63: * n < 11 | M63: * n < 11 | N63: * n < 11 | O63: * n< 11 | P63: Not available | Q63: 2021-10-04T15:44:35 | U63: Hampstead | V63: 39
A64: Regular | B64: 2021 | C64: District Level | D64: mat | E64: Auburn | F64: District Data | G64: All grades | H64: White | I64: 355 - 360 | J64: 24 | K64: 32 | L64: 28 | M64: 16 | N64: 44 | O64: 93 | P64: Not available | Q64: 2021-10-04T15:44:35 | U64: Hampton | V64: 37
A65: Regular | B65: 2021 | C65: District Level | D65: mat | E65: Auburn | F65: District Data | G65: All grades | H65: Two or More races | I65: 0 - 10 | J65: * n < 11 | K65: * n < 11 | L65: * n < 11 | M65: * n < 11 | N65: * n < 11 | O65: * n< 11 | P65: Not available | Q65: 2021-10-04T15:44:35 | U65: Hampton Falls | V65: 34
A66: Regular | B66: 2021 | C66: District Level | D66: mat | E66: Auburn | F66: District Data | G66: All grades | H66: EL - Current | I66: 0 - 10 | J66: * n < 11 | K66: * n < 11 | L66: * n < 11 | M66: * n < 11 | N66: * n < 11 | O66: * n< 11 | P66: Not available | Q66: 2021-10-04T15:44:35 | U66: Hanover | V66: 20
A67: Regular | B67: 2021 | C67: District Level | D67: mat | E67: Auburn | F67: District Data | G67: All grades | H67: IEP/SWD | I67: 55 - 60 | J67: 71 | K67: 21 | L67: < 10 % | M67: < 10 % | N67: < 10 % | O67: 95 | P67: Not available | Q67: 2021-10-04T15:44:35 | U67: Harrisville | V67: 20
A68: Regular | B68: 2021 | C68: District Level | D68: mat | E68: Auburn | F68: District Data | G68: All grades | H68: SES | I68: 25 - 30 | J68: 39 | K68: 39 | L68: 21 | M68: < 10 % | N68: 21 | O68: 97 | P68: Not available | Q68: 2021-10-04T15:44:35 | U68: Haverhill Cooperative | V68: 45
A69: Regular | B69: 2021 | C69: District Level | D69: mat | E69: Auburn | F69: District Data | G69: All grades | H69: Asian+PI+Hawaiian | I69: 0 - 10 | J69: * n < 11 | K69: * n < 11 | L69: * n < 11 | M69: * n < 11 | N69: * n < 11 | O69: * n< 11 | P69: Not available | Q69: 2021-10-04T15:44:35 | U69: Henniker | V69: 34
A70: Regular | B70: 2021 | C70: District Level | D70: mat | E70: Auburn | F70: District Data | G70: All grades | H70: EL - Curr + Monitor Yr1-4 | I70: 0 - 10 | J70: * n < 11 | K70: * n < 11 | L70: * n < 11 | M70: * n < 11 | N70: * n < 11 | O70: * n< 11 | P70: Not available | Q70: 2021-10-04T15:44:35 | U70: Hill | V70: 24
A71: Regular | B71: 2021 | C71: District Level | D71: mat | E71: Auburn | F71: District Data | G71: All grades | H71: Homeless | I71: 0 - 10 | J71: * n < 11 | K71: * n < 11 | L71: * n < 11 | M71: * n < 11 | N71: * n < 11 | O71: * n< 11 | P71: Not available | Q71: 2021-10-04T15:44:35 | U71: Hillsboro-Deering Cooperative | V71: 46
A72: Regular | B72: 2021 | C72: District Level | D72: mat | E72: Auburn | F72: District Data | G72: All grades | H72: Military | I72: 0 - 10 | J72: * n < 11 | K72: * n < 11 | L72: * n < 11 | M72: * n < 11 | N72: * n < 11 | O72: * n< 11 | P72: Not available | Q72: 2021-10-04T15:44:35 | U72: Hinsdale | V72: 46
A73: Regular | B73: 2021 | C73: District Level | D73: mat | E73: Barnstead | F73: District Data | G73: All grades | H73: All students | I73: 210 - 215 | J73: 33 | K73: 38 | L73: 22 | M73: < 10 % | N73: 28 | O73: 73 | P73: Not available | Q73: 2021-10-04T15:44:35 | U73: Holderness | V73: 34
A74: Regular | B74: 2021 | C74: District Level | D74: mat | E74: Barnstead | F74: District Data | G74: All grades | H74: Male | I74: 100 - 105 | J74: 37 | K74: 36 | L74: 21 | M74: < 10 % | N74: 27 | O74: 71 | P74: Not available | Q74: 2021-10-04T15:44:35 | U74: Hollis | V74: 26
A75: Regular | B75: 2021 | C75: District Level | D75: mat | E75: Barnstead | F75: District Data | G75: All grades | H75: Female | I75: 110 - 115 | J75: 30 | K75: 41 | L75: 22 | M75: < 10 % | N75: 29 | O75: 75 | P75: Not available | Q75: 2021-10-04T15:44:35 | U75: Hollis-Brookline Cooperative | V75: 25
A76: Regular | B76: 2021 | C76: District Level | D76: mat | E76: Barnstead | F76: District Data | G76: All grades | H76: Hispanic | I76: 0 - 10 | J76: * n < 11 | K76: * n < 11 | L76: * n < 11 | M76: * n < 11 | N76: * n < 11 | O76: * n< 11 | P76: Not available | Q76: 2021-10-04T15:44:35 | U76: Hooksett | V76: 40
A77: Regular | B77: 2021 | C77: District Level | D77: mat | E77: Barnstead | F77: District Data | G77: All grades | H77: Black | I77: 0 - 10 | J77: * n < 11 | K77: * n < 11 | L77: * n < 11 | M77: * n < 11 | N77: * n < 11 | O77: * n< 11 | P77: Not available | Q77: 2021-10-04T15:44:35 | U77: Hopkinton | V77: 48
A78: Regular | B78: 2021 | C78: District Level | D78: mat | E78: Barnstead | F78: District Data | G78: All grades | H78: White | I78: 205 - 210 | J78: 33 | K78: 39 | L78: 22 | M78: < 10 % | N78: 28 | O78: 73 | P78: Not available | Q78: 2021-10-04T15:44:35 | U78: Hudson | V78: 56
A79: Regular | B79: 2021 | C79: District Level | D79: mat | E79: Barnstead | F79: District Data | G79: All grades | H79: Two or More races | I79: 0 - 10 | J79: * n < 11 | K79: * n < 11 | L79: * n < 11 | M79: * n < 11 | N79: * n < 11 | O79: * n< 11 | P79: Not available | Q79: 2021-10-04T15:44:35 | U79: Inter-Lakes Cooperative | V79: 58
A80: Regular | B80: 2021 | C80: District Level | D80: mat | E80: Barnstead | F80: District Data | G80: All grades | H80: IEP/SWD | I80: 45 - 50 | J80: 76 | K80: 15 | L80: < 10 % | M80: < 10 % | N80: < 10 % | O80: 65 | P80: Not available | Q80: 2021-10-04T15:44:35 | U80: Jackson | V80: 24
A81: Regular | B81: 2021 | C81: District Level | D81: mat | E81: Barnstead | F81: District Data | G81: All grades | H81: SES | I81: 50 - 55 | J81: 49 | K81: 24 | L81: 22 | M81: < 10 % | N81: 27 | O81: 73 | P81: Not available | Q81: 2021-10-04T15:44:35 | U81: Jaffrey-Rindge Cooperative | V81: 56
A82: Regular | B82: 2021 | C82: District Level | D82: mat | E82: Barnstead | F82: District Data | G82: All grades | H82: Asian+PI+Hawaiian | I82: 0 - 10 | J82: * n < 11 | K82: * n < 11 | L82: * n < 11 | M82: * n < 11 | N82: * n < 11 | O82: * n< 11 | P82: Not available | Q82: 2021-10-04T15:44:35 | U82: John Stark Regional | V82: 12
A83: Regular | B83: 2021 | C83: District Level | D83: mat | E83: Barnstead | F83: District Data | G83: All grades | H83: Homeless | I83: 0 - 10 | J83: * n < 11 | K83: * n < 11 | L83: * n < 11 | M83: * n < 11 | N83: * n < 11 | O83: * n< 11 | P83: Not available | Q83: 2021-10-04T15:44:35 | U83: Kearsarge Regional | V83: 76
A84: Regular | B84: 2021 | C84: District Level | D84: mat | E84: Barnstead | F84: District Data | G84: All grades | H84: Military | I84: 0 - 10 | J84: * n < 11 | K84: * n < 11 | L84: * n < 11 | M84: * n < 11 | N84: * n < 11 | O84: * n< 11 | P84: Not available | Q84: 2021-10-04T15:44:35 | U84: Keene | V84: 76
A85: Regular | B85: 2021 | C85: District Level | D85: mat | E85: Barrington | F85: District Data | G85: All grades | H85: All students | I85: 510 - 515 | J85: 26 | K85: 29 | L85: 27 | M85: 18 | N85: 45 | O85: 90 | P85: Not available | Q85: 2021-10-04T15:44:35 | U85: Kensington | V85: 20
A86: Regular | B86: 2021 | C86: District Level | D86: mat | E86: Barrington | F86: District Data | G86: All grades | H86: Male | I86: 260 - 265 | J86: 26 | K86: 30 | L86: 23 | M86: 20 | N86: 44 | O86: 93 | P86: Not available | Q86: 2021-10-04T15:44:35 | U86: Kreiva Academy Public Charter School District | V86: 29
A87: Regular | B87: 2021 | C87: District Level | D87: mat | E87: Barrington | F87: District Data | G87: All grades | H87: Female | I87: 245 - 250 | J87: 26 | K87: 28 | L87: 31 | M87: 15 | N87: 46 | O87: 86 | P87: Not available | Q87: 2021-10-04T15:44:35 | U87: Laconia | V87: 66
A88: Regular | B88: 2021 | C88: District Level | D88: mat | E88: Barrington | F88: District Data | G88: All grades | H88: Hispanic | I88: 20 - 25 | J88: 29 | K88: 38 | L88: 24 | M88: 10 | N88: 33 | O88: 100 | P88: Not available | Q88: 2021-10-04T15:44:35 | U88: Lafayette Regional | V88: 24
A89: Regular | B89: 2021 | C89: District Level | D89: mat | E89: Barrington | F89: District Data | G89: All grades | H89: Black | I89: 0 - 10 | J89: * n < 11 | K89: * n < 11 | L89: * n < 11 | M89: * n < 11 | N89: * n < 11 | O89: * n< 11 | P89: Not available | Q89: 2021-10-04T15:44:35 | U89: LEAF Charter School | V89: 8
A90: Regular | B90: 2021 | C90: District Level | D90: mat | E90: Barrington | F90: District Data | G90: All grades | H90: White | I90: 465 - 470 | J90: 27 | K90: 29 | L90: 27 | M90: 18 | N90: 45 | O90: 89 | P90: Not available | Q90: 2021-10-04T15:44:35 | U90: Lebanon | V90: 51
A91: Regular | B91: 2021 | C91: District Level | D91: mat | E91: Barrington | F91: District Data | G91: All grades | H91: Two or More races | I91: 20 - 25 | J91: 10 | K91: 33 | L91: 29 | M91: 29 | N91: 57 | O91: 84 | P91: Not available | Q91: 2021-10-04T15:44:35 | U91: Ledyard Charter School | V91: 12
A92: Regular | B92: 2021 | C92: District Level | D92: mat | E92: Barrington | F92: District Data | G92: All grades | H92: EL - Current | I92: 0 - 10 | J92: * n < 11 | K92: * n < 11 | L92: * n < 11 | M92: * n < 11 | N92: * n < 11 | O92: * n< 11 | P92: Not available | Q92: 2021-10-04T15:44:35 | U92: Lempster | V92: 34
A93: Regular | B93: 2021 | C93: District Level | D93: mat | E93: Barrington | F93: District Data | G93: All grades | H93: IEP/SWD | I93: 115 - 120 | J93: 69 | K93: 21 | L93: < 10 % | M93: < 10 % | N93: 10 | O93: 84 | P93: Not available | Q93: 2021-10-04T15:44:35 | U93: Lincoln-Woodstock Cooperative | V93: 46
A94: Regular | B94: 2021 | C94: District Level | D94: mat | E94: Barrington | F94: District Data | G94: All grades | H94: SES | I94: 75 - 80 | J94: 45 | K94: 32 | L94: 11 | M94: 13 | N94: 24 | O94: 85 | P94: Not available | Q94: 2021-10-04T15:44:35 | U94: Lisbon Regional | V94: 46
A95: Regular | B95: 2021 | C95: District Level | D95: mat | E95: Barrington | F95: District Data | G95: All grades | H95: Asian+PI+Hawaiian | I95: 0 - 10 | J95: * n < 11 | K95: * n < 11 | L95: * n < 11 | M95: * n < 11 | N95: * n < 11 | O95: * n< 11 | P95: Not available | Q95: 2021-10-04T15:44:35 | U95: Litchfield | V95: 45
A96: Regular | B96: 2021 | C96: District Level | D96: mat | E96: Barrington | F96: District Data | G96: All grades | H96: EL - Curr + Monitor Yr1-4 | I96: 0 - 10 | J96: * n < 11 | K96: * n < 11 | L96: * n < 11 | M96: * n < 11 | N96: * n < 11 | O96: * n< 11 | P96: Not available | Q96: 2021-10-04T15:44:35 | U96: Littleton | V96: 46
A97: Regular | B97: 2021 | C97: District Level | D97: mat | E97: Barrington | F97: District Data | G97: All grades | H97: Homeless | I97: 15 - 20 | J97: 37 | K97: 42 | L97: 16 | M97: < 10 % | N97: 21 | O97: 86 | P97: Not available | Q97: 2021-10-04T15:44:35 | U97: Londonderry | V97: 66
A98: Regular | B98: 2021 | C98: District Level | D98: mat | E98: Barrington | F98: District Data | G98: All grades | H98: Foster | I98: 0 - 10 | J98: * n < 11 | K98: * n < 11 | L98: * n < 11 | M98: * n < 11 | N98: * n < 11 | O98: * n< 11 | P98: Not available | Q98: 2021-10-04T15:44:35 | U98: Lyme | V98: 34
A99: Regular | B99: 2021 | C99: District Level | D99: mat | E99: Barrington | F99: District Data | G99: All grades | H99: Military | I99: 35 - 40 | J99: 14 | K99: 30 | L99: 49 | M99: < 10 % | N99: 57 | O99: 86 | P99: Not available | Q99: 2021-10-04T15:44:35 | U99: Madison | V99: 27
A100: Regular | B100: 2021 | C100: District Level | D100: mat | E100: Bartlett | F100: District Data | G100: All grades | H100: All students | I100: 90 - 95 | J100: 31 | K100: 37 | L100: 20 | M100: 12 | N100: 32 | O100: 85 | P100: Not available | Q100: 2021-10-04T15:44:35 | U100: Making Community Connections Charter School | V100: 14
A101: Regular | B101: 2021 | C101: District Level | D101: mat | E101: Bartlett | F101: District Data | G101: All grades | H101: Male | I101: 45 - 50 | J101: 19 | K101: 36 | L101: 28 | M101: 17 | N101: 45 | O101: 82 | P101: Not available | Q101: 2021-10-04T15:44:35 | U101: Manchester | V101: 215
A102: Regular | B102: 2021 | C102: District Level | D102: mat | E102: Bartlett | F102: District Data | G102: All grades | H102: Female | I102: 45 - 50 | J102: 43 | K102: 38 | L102: 13 | M102: < 10 % | N102: 19 | O102: 89 | P102: Not available | Q102: 2021-10-04T15:44:35 | U102: Marlborough | V102: 34
A103: Regular | B103: 2021 | C103: District Level | D103: mat | E103: Bartlett | F103: District Data | G103: All grades | H103: Hispanic | I103: 0 - 10 | J103: * n < 11 | K103: * n < 11 | L103: * n < 11 | M103: * n < 11 | N103: * n < 11 | O103: * n< 11 | P103: Not available | Q103: 2021-10-04T15:44:35 | U103: Marlow | V103: 24
A104: Regular | B104: 2021 | C104: District Level | D104: mat | E104: Bartlett | F104: District Data | G104: All grades | H104: White | I104: 85 - 90 | J104: 33 | K104: 36 | L104: 18 | M104: 13 | N104: 31 | O104: 85 | P104: Not available | Q104: 2021-10-04T15:44:35 | U104: Mascenic Regional | V104: 45
A105: Regular | B105: 2021 | C105: District Level | D105: mat | E105: Bartlett | F105: District Data | G105: All grades | H105: Two or More races | I105: 0 - 10 | J105: * n < 11 | K105: * n < 11 | L105: * n < 11 | M105: * n < 11 | N105: * n < 11 | O105: * n< 11 | P105: Not available | Q105: 2021-10-04T15:44:35 | U105: Mascoma Valley Regional | V105: 51
A106: Regular | B106: 2021 | C106: District Level | D106: mat | E106: Bartlett | F106: District Data | G106: All grades | H106: IEP/SWD | I106: 20 - 25 | J106: 73 | K106: 23 | L106: < 10 % | M106: < 10 % | N106: < 10 % | O106: 85 | P106: Not available | Q106: 2021-10-04T15:44:35 | U106: Mason | V106: 20
A107: Regular | B107: 2021 | C107: District Level | D107: mat | E107: Bartlett | F107: District Data | G107: All grades | H107: SES | I107: 20 - 25 | J107: 40 | K107: 40 | L107: 10 | M107: 10 | N107: 20 | O107: 77 | P107: Not available | Q107: 2021-10-04T15:44:35 | U107: Merrimack | V107: 60
A108: Regular | B108: 2021 | C108: District Level | D108: mat | E108: Bartlett | F108: District Data | G108: All grades | H108: Asian+PI+Hawaiian | I108: 0 - 10 | J108: * n < 11 | K108: * n < 11 | L108: * n < 11 | M108: * n < 11 | N108: * n < 11 | O108: * n< 11 | P108: Not available | Q108: 2021-10-04T15:44:35 | U108: Merrimack Valley | V108: 86
A109: Regular | B109: 2021 | C109: District Level | D109: mat | E109: Bartlett | F109: District Data | G109: All grades | H109: Foster | I109: 0 - 10 | J109: * n < 11 | K109: * n < 11 | L109: * n < 11 | M109: * n < 11 | N109: * n < 11 | O109: * n< 11 | P109: Not available | Q109: 2021-10-04T15:44:35 | U109: MicroSociety Academy Charter School Foundation | V109: 34
A110: Regular | B110: 2021 | C110: District Level | D110: mat | E110: Bath | F110: District Data | G110: All grades | H110: All students | I110: 40 - 45 | J110: < 10 % | K110: 27 | L110: 44 | M110: 22 | N110: 66 | O110: 93 | P110: Not available | Q110: 2021-10-04T15:44:35 | U110: Middleton | V110: 24
A111: Regular | B111: 2021 | C111: District Level | D111: mat | E111: Bath | F111: District Data | G111: All grades | H111: Male | I111: 20 - 25 | J111: 10 | K111: 29 | L111: 43 | M111: 19 | N111: 62 | O111: 91 | P111: Not available | Q111: 2021-10-04T15:44:35 | U111: Milan | V111: 24
A112: Regular | B112: 2021 | C112: District Level | D112: mat | E112: Bath | F112: District Data | G112: All grades | H112: Female | I112: 20 - 25 | J112: < 10 % | K112: 25 | L112: 45 | M112: 25 | N112: 70 | O112: 95 | P112: Not available | Q112: 2021-10-04T15:44:35 | U112: Milford | V112: 46
A113: Regular | B113: 2021 | C113: District Level | D113: mat | E113: Bath | F113: District Data | G113: All grades | H113: White | I113: 40 - 45 | J113: < 10 % | K113: 27 | L113: 44 | M113: 22 | N113: 66 | O113: 93 | P113: Not available | Q113: 2021-10-04T15:44:35 | U113: Mill Falls Charter School | V113: 24
A114: Regular | B114: 2021 | C114: District Level | D114: mat | E114: Bath | F114: District Data | G114: All grades | H114: IEP/SWD | I114: 0 - 10 | J114: * n < 11 | K114: * n < 11 | L114: * n < 11 | M114: * n < 11 | N114: * n < 11 | O114: * n< 11 | P114: Not available | Q114: 2021-10-04T15:44:35 | U114: Milton | V114: 46
A115: Regular | B115: 2021 | C115: District Level | D115: mat | E115: Bath | F115: District Data | G115: All grades | H115: SES | I115: 10 - 15 | J115: 21 | K115: 36 | L115: 29 | M115: 14 | N115: 43 | O115: 93 | P115: Not available | Q115: 2021-10-04T15:44:35 | U115: Monadnock Regional | V115: 82
A116: Regular | B116: 2021 | C116: District Level | D116: mat | E116: Bedford | F116: District Data | G116: All grades | H116: All students | I116: 2,205 - 2,210 | J116: < 10 % | K116: 23 | L116: 33 | M116: 37 | N116: 70 | O116: 94 | P116: Not available | Q116: 2021-10-04T15:44:35 | U116: Monroe | V116: 32
A117: Regular | B117: 2021 | C117: District Level | D117: mat | E117: Bedford | F117: District Data | G117: All grades | H117: Male | I117: 1,085 - 1,090 | J117: < 10 % | K117: 20 | L117: 31 | M117: 43 | N117: 73 | O117: 93 | P117: Not available | Q117: 2021-10-04T15:44:35 | U117: Mont Vernon | V117: 24
A118: Regular | B118: 2021 | C118: District Level | D118: mat | E118: Bedford | F118: District Data | G118: All grades | H118: Female | I118: 1,120 - 1,125 | J118: < 10 % | K118: 25 | L118: 35 | M118: 32 | N118: 67 | O118: 94 | P118: Not available | Q118: 2021-10-04T15:44:35 | U118: Moultonborough | V118: 45
A119: Regular | B119: 2021 | C119: District Level | D119: mat | E119: Bedford | F119: District Data | G119: All grades | H119: Hispanic | I119: 90 - 95 | J119: 16 | K119: 22 | L119: 37 | M119: 24 | N119: 62 | O119: 92 | P119: Not available | Q119: 2021-10-04T15:44:35 | U119: Mountain Village Charter School | V119: 34
A120: Regular | B120: 2021 | C120: District Level | D120: mat | E120: Bedford | F120: District Data | G120: All grades | H120: Am. Indian | I120: 0 - 10 | J120: * n < 11 | K120: * n < 11 | L120: * n < 11 | M120: * n < 11 | N120: * n < 11 | O120: * n< 11 | P120: Not available | Q120: 2021-10-04T15:44:35 | U120: Nashua | V120: 182
A121: Regular | B121: 2021 | C121: District Level | D121: mat | E121: Bedford | F121: District Data | G121: All grades | H121: Black | I121: 20 - 25 | J121: < 10 % | K121: 43 | L121: 22 | M121: 26 | N121: 48 | O121: 96 | P121: Not available | Q121: 2021-10-04T15:44:35 | U121: Nelson | V121: 20
A122: Regular | B122: 2021 | C122: District Level | D122: mat | E122: Bedford | F122: District Data | G122: All grades | H122: White | I122: 1,785 - 1,790 | J122: < 10 % | K122: 24 | L122: 34 | M122: 35 | N122: 69 | O122: 94 | P122: Not available | Q122: 2021-10-04T15:44:35 | U122: New Boston | V122: 24
A123: Regular | B123: 2021 | C123: District Level | D123: mat | E123: Bedford | F123: District Data | G123: All grades | H123: Two or More races | I123: 115 - 120 | J123: < 10 % | K123: 22 | L123: 22 | M123: 50 | N123: 73 | O123: 93 | P123: Not available | Q123: 2021-10-04T15:44:35 | U123: New Castle | V123: 24
A124: Regular | B124: 2021 | C124: District Level | D124: mat | E124: Bedford | F124: District Data | G124: All grades | H124: EL - Current | I124: 25 - 30 | J124: 40 | K124: 28 | L124: 28 | M124: < 10 % | N124: 32 | O124: 81 | P124: Not available | Q124: 2021-10-04T15:44:35 | U124: Newfields | V124: 20
A125: Regular | B125: 2021 | C125: District Level | D125: mat | E125: Bedford | F125: District Data | G125: All grades | H125: IEP/SWD | I125: 275 - 280 | J125: 36 | K125: 37 | L125: 19 | M125: < 10 % | N125: 27 | O125: 84 | P125: Not available | Q125: 2021-10-04T15:44:35 | U125: Newfound Area | V125: 76
A126: Regular | B126: 2021 | C126: District Level | D126: mat | E126: Bedford | F126: District Data | G126: All grades | H126: SES | I126: 110 - 115 | J126: 16 | K126: 35 | L126: 35 | M126: 14 | N126: 49 | O126: 86 | P126: Not available | Q126: 2021-10-04T15:44:35 | U126: Newington | V126: 24
A127: Regular | B127: 2021 | C127: District Level | D127: mat | E127: Bedford | F127: District Data | G127: All grades | H127: Asian+PI+Hawaiian | I127: 180 - 185 | J127: < 10 % | K127: 11 | L127: 25 | M127: 62 | N127: 87 | O127: 91 | P127: Not available | Q127: 2021-10-04T15:44:35 | U127: Newmarket | V127: 46
A128: Regular | B128: 2021 | C128: District Level | D128: mat | E128: Bedford | F128: District Data | G128: All grades | H128: EL - Curr + Monitor Yr1-4 | I128: 50 - 55 | J128: 27 | K128: 27 | L128: 29 | M128: 16 | N128: 45 | O128: 86 | P128: Not available | Q128: 2021-10-04T15:44:35 | U128: Newport | V128: 46
A129: Regular | B129: 2021 | C129: District Level | D129: mat | E129: Bedford | F129: District Data | G129: All grades | H129: Homeless | I129: 0 - 10 | J129: * n < 11 | K129: * n < 11 | L129: * n < 11 | M129: * n < 11 | N129: * n < 11 | O129: * n< 11 | P129: Not available | Q129: 2021-10-04T15:44:35 | U129: Next Charter School | V129: 12
A130: Regular | B130: 2021 | C130: District Level | D130: mat | E130: Bedford | F130: District Data | G130: All grades | H130: Foster | I130: 0 - 10 | J130: * n < 11 | K130: * n < 11 | L130: * n < 11 | M130: * n < 11 | N130: * n < 11 | O130: * n< 11 | P130: Not available | Q130: 2021-10-04T15:44:35 | U130: North Country Charter Academy | V130: 12
A131: Regular | B131: 2021 | C131: District Level | D131: mat | E131: Bedford | F131: District Data | G131: All grades | H131: Military | I131: 10 - 15 | J131: < 10 % | K131: 18 | L131: 45 | M131: 36 | N131: 82 | O131: 100 | P131: Not available | Q131: 2021-10-04T15:44:35 | U131: North Hampton | V131: 34
A132: Regular | B132: 2021 | C132: District Level | D132: mat | E132: Benton | F132: District Data | G132: All grades | H132: All students | I132: 0 - 10 | J132: * n < 11 | K132: * n < 11 | L132: * n < 11 | M132: * n < 11 | N132: * n < 11 | O132: * n< 11 | P132: Not available | Q132: 2021-10-04T15:44:35 | U132: Northeast Woodland Chartered Public School | V132: 28
A133: Regular | B133: 2021 | C133: District Level | D133: mat | E133: Benton | F133: District Data | G133: All grades | H133: Male | I133: 0 - 10 | J133: * n < 11 | K133: * n < 11 | L133: * n < 11 | M133: * n < 11 | N133: * n < 11 | O133: * n< 11 | P133: Not available | Q133: 2021-10-04T15:44:35 | U133: Northumberland | V133: 46
A134: Regular | B134: 2021 | C134: District Level | D134: mat | E134: Benton | F134: District Data | G134: All grades | H134: White | I134: 0 - 10 | J134: * n < 11 | K134: * n < 11 | L134: * n < 11 | M134: * n < 11 | N134: * n < 11 | O134: * n< 11 | P134: Not available | Q134: 2021-10-04T15:44:35 | U134: Northwood | V134: 34
A135: Regular | B135: 2021 | C135: District Level | D135: mat | E135: Benton | F135: District Data | G135: All grades | H135: IEP/SWD | I135: 0 - 10 | J135: * n < 11 | K135: * n < 11 | L135: * n < 11 | M135: * n < 11 | N135: * n < 11 | O135: * n< 11 | P135: Not available | Q135: 2021-10-04T15:44:35 | U135: Nottingham | V135: 34
A136: Regular | B136: 2021 | C136: District Level | D136: mat | E136: Berlin | F136: District Data | G136: All grades | H136: All students | I136: 490 - 495 | J136: 43 | K136: 32 | L136: 19 | M136: < 10 % | N136: 25 | O136: 89 | P136: Not available | Q136: 2021-10-04T15:44:35 | U136: Oyster River Coop | V136: 51
A137: Regular | B137: 2021 | C137: District Level | D137: mat | E137: Berlin | F137: District Data | G137: All grades | H137: Male | I137: 245 - 250 | J137: 47 | K137: 28 | L137: 19 | M137: < 10 % | N137: 26 | O137: 88 | P137: Not available | Q137: 2021-10-04T15:44:35 | U137: Pelham | V137: 46
A138: Regular | B138: 2021 | C138: District Level | D138: mat | E138: Berlin | F138: District Data | G138: All grades | H138: Female | I138: 240 - 245 | J138: 40 | K138: 36 | L138: 20 | M138: < 10 % | N138: 24 | O138: 91 | P138: Not available | Q138: 2021-10-04T15:44:35 | U138: Pembroke | V138: 45
A139: Regular | B139: 2021 | C139: District Level | D139: mat | E139: Berlin | F139: District Data | G139: All grades | H139: Hispanic | I139: 15 - 20 | J139: 47 | K139: 20 | L139: 33 | M139: < 10 % | N139: 33 | O139: 79 | P139: Not available | Q139: 2021-10-04T15:44:35 | U139: Pemi-Baker Regional | V139: 12
A140: Regular | B140: 2021 | C140: District Level | D140: mat | E140: Berlin | F140: District Data | G140: All grades | H140: Black | I140: 0 - 10 | J140: * n < 11 | K140: * n < 11 | L140: * n < 11 | M140: * n < 11 | N140: * n < 11 | O140: * n< 11 | P140: Not available | Q140: 2021-10-04T15:44:35 | U140: Piermont | V140: 34
A141: Regular | B141: 2021 | C141: District Level | D141: mat | E141: Berlin | F141: District Data | G141: All grades | H141: White | I141: 455 - 460 | J141: 44 | K141: 32 | L141: 19 | M141: < 10 % | N141: 24 | O141: 90 | P141: Not available | Q141: 2021-10-04T15:44:35 | U141: Pinkerton Academy | V141: 12
A142: Regular | B142: 2021 | C142: District Level | D142: mat | E142: Berlin | F142: District Data | G142: All grades | H142: Two or More races | I142: 10 - 15 | J142: 29 | K142: 36 | L142: 21 | M142: 14 | N142: 36 | O142: 93 | P142: Not available | Q142: 2021-10-04T15:44:35 | U142: Pittsburg | V142: 43
A143: Regular | B143: 2021 | C143: District Level | D143: mat | E143: Berlin | F143: District Data | G143: All grades | H143: EL - Current | I143: 0 - 10 | J143: * n < 11 | K143: * n < 11 | L143: * n < 11 | M143: * n < 11 | N143: * n < 11 | O143: * n< 11 | P143: Not available | Q143: 2021-10-04T15:44:35 | U143: Pittsfield | V143: 46
A144: Regular | B144: 2021 | C144: District Level | D144: mat | E144: Berlin | F144: District Data | G144: All grades | H144: IEP/SWD | I144: 105 - 110 | J144: 80 | K144: 13 | L144: < 10 % | M144: < 10 % | N144: < 10 % | O144: 85 | P144: Not available | Q144: 2021-10-04T15:44:35 | U144: Plainfield | V144: 34
A145: Regular | B145: 2021 | C145: District Level | D145: mat | E145: Berlin | F145: District Data | G145: All grades | H145: SES | I145: 230 - 235 | J145: 48 | K145: 35 | L145: 14 | M145: < 10 % | N145: 18 | O145: 89 | P145: Not available | Q145: 2021-10-04T15:44:35 | U145: Plymouth | V145: 34
A146: Regular | B146: 2021 | C146: District Level | D146: mat | E146: Berlin | F146: District Data | G146: All grades | H146: Asian+PI+Hawaiian | I146: 0 - 10 | J146: * n < 11 | K146: * n < 11 | L146: * n < 11 | M146: * n < 11 | N146: * n < 11 | O146: * n< 11 | P146: Not available | Q146: 2021-10-04T15:44:35 | U146: Polaris Charter School | V146: 20
A147: Regular | B147: 2021 | C147: District Level | D147: mat | E147: Berlin | F147: District Data | G147: All grades | H147: EL - Curr + Monitor Yr1-4 | I147: 0 - 10 | J147: * n < 11 | K147: * n < 11 | L147: * n < 11 | M147: * n < 11 | N147: * n < 11 | O147: * n< 11 | P147: Not available | Q147: 2021-10-04T15:44:35 | U147: Portsmouth | V147: 66
A148: Regular | B148: 2021 | C148: District Level | D148: mat | E148: Berlin | F148: District Data | G148: All grades | H148: Homeless | I148: 0 - 10 | J148: * n < 11 | K148: * n < 11 | L148: * n < 11 | M148: * n < 11 | N148: * n < 11 | O148: * n< 11 | P148: Not available | Q148: 2021-10-04T15:44:35 | U148: Profile | V148: 25
A149: Regular | B149: 2021 | C149: District Level | D149: mat | E149: Berlin | F149: District Data | G149: All grades | H149: Foster | I149: 0 - 10 | J149: * n < 11 | K149: * n < 11 | L149: * n < 11 | M149: * n < 11 | N149: * n < 11 | O149: * n< 11 | P149: Not available | Q149: 2021-10-04T15:44:35 | U149: Prospect Mountain JMA | V149: 8
A150: Regular | B150: 2021 | C150: District Level | D150: mat | E150: Berlin | F150: District Data | G150: All grades | H150: Military | I150: 15 - 20 | J150: 40 | K150: 20 | L150: 40 | M150: < 10 % | N150: 40 | O150: 94 | P150: Not available | Q150: 2021-10-04T15:44:35 | U150: Raymond | V150: 45
A151: Regular | B151: 2021 | C151: District Level | D151: mat | E151: Bethlehem | F151: District Data | G151: All grades | H151: All students | I151: 65 - 70 | J151: 22 | K151: 32 | L151: 35 | M151: 11 | N151: 46 | O151: 88 | P151: Not available | Q151: 2021-10-04T15:44:35 | U151: Rivendell | V151: 8
A152: Regular | B152: 2021 | C152: District Level | D152: mat | E152: Bethlehem | F152: District Data | G152: All grades | H152: Male | I152: 30 - 35 | J152: 12 | K152: 41 | L152: 32 | M152: 15 | N152: 47 | O152: 83 | P152: Not available | Q152: 2021-10-04T15:44:35 | U152: Robert Frost Charter School | V152: 32
A153: Regular | B153: 2021 | C153: District Level | D153: mat | E153: Bethlehem | F153: District Data | G153: All grades | H153: Female | I153: 30 - 35 | J153: 32 | K153: 23 | L153: 39 | M153: < 10 % | N153: 45 | O153: 94 | P153: Not available | Q153: 2021-10-04T15:44:35 | U153: Rochester | V153: 107
A154: Regular | B154: 2021 | C154: District Level | D154: mat | E154: Bethlehem | F154: District Data | G154: All grades | H154: Hispanic | I154: 0 - 10 | J154: * n < 11 | K154: * n < 11 | L154: * n < 11 | M154: * n < 11 | N154: * n < 11 | O154: * n< 11 | P154: Not available | Q154: 2021-10-04T15:44:35 | U154: Rollinsford | V154: 24
A155: Regular | B155: 2021 | C155: District Level | D155: mat | E155: Bethlehem | F155: District Data | G155: All grades | H155: White | I155: 55 - 60 | J155: 21 | K155: 33 | L155: 38 | M155: < 10 % | N155: 47 | O155: 88 | P155: Not available | Q155: 2021-10-04T15:44:35 | U155: Rumney | V155: 34
A156: Regular | B156: 2021 | C156: District Level | D156: mat | E156: Bethlehem | F156: District Data | G156: All grades | H156: Two or More races | I156: 0 - 10 | J156: * n < 11 | K156: * n < 11 | L156: * n < 11 | M156: * n < 11 | N156: * n < 11 | O156: * n< 11 | P156: Not available | Q156: 2021-10-04T15:44:35 | U156: Rye | V156: 36
A157: Regular | B157: 2021 | C157: District Level | D157: mat | E157: Bethlehem | F157: District Data | G157: All grades | H157: EL - Current | I157: 0 - 10 | J157: * n < 11 | K157: * n < 11 | L157: * n < 11 | M157: * n < 11 | N157: * n < 11 | O157: * n< 11 | P157: Not available | Q157: 2021-10-04T15:44:35 | U157: Salem | V157: 86
A158: Regular | B158: 2021 | C158: District Level | D158: mat | E158: Bethlehem | F158: District Data | G158: All grades | H158: IEP/SWD | I158: 0 - 10 | J158: * n < 11 | K158: * n < 11 | L158: * n < 11 | M158: * n < 11 | N158: * n < 11 | O158: 83 | P158: Not available | Q158: 2021-10-04T15:44:35 | U158: Sanborn Regional | V158: 48
A159: Regular | B159: 2021 | C159: District Level | D159: mat | E159: Bethlehem | F159: District Data | G159: All grades | H159: SES | I159: 20 - 25 | J159: 30 | K159: 25 | L159: 45 | M159: < 10 % | N159: 45 | O159: 87 | P159: Not available | Q159: 2021-10-04T15:44:35 | U159: Seabrook | V159: 36
A160: Regular | B160: 2021 | C160: District Level | D160: mat | E160: Bethlehem | F160: District Data | G160: All grades | H160: Asian+PI+Hawaiian | I160: 0 - 10 | J160: * n < 11 | K160: * n < 11 | L160: * n < 11 | M160: * n < 11 | N160: * n < 11 | O160: * n< 11 | P160: Not available | Q160: 2021-10-04T15:44:35 | U160: Seacoast Charter School | V160: 34
A161: Regular | B161: 2021 | C161: District Level | D161: mat | E161: Bethlehem | F161: District Data | G161: All grades | H161: EL - Curr + Monitor Yr1-4 | I161: 0 - 10 | J161: * n < 11 | K161: * n < 11 | L161: * n < 11 | M161: * n < 11 | N161: * n < 11 | O161: * n< 11 | P161: Not available | Q161: 2021-10-04T15:44:35 | U161: Shaker Regional | V161: 55
A162: Regular | B162: 2021 | C162: District Level | D162: mat | E162: Bow | F162: District Data | G162: All grades | H162: All students | I162: 810 - 815 | J162: 23 | K162: 33 | L162: 28 | M162: 16 | N162: 44 | O162: 91 | P162: Not available | Q162: 2021-10-04T15:44:35 | U162: Somersworth | V162: 46
A163: Regular | B163: 2021 | C163: District Level | D163: mat | E163: Bow | F163: District Data | G163: All grades | H163: Male | I163: 400 - 405 | J163: 20 | K163: 36 | L163: 27 | M163: 18 | N163: 45 | O163: 92 | P163: Not available | Q163: 2021-10-04T15:44:35 | U163: Souhegan Cooperative | V163: 12
A164: Regular | B164: 2021 | C164: District Level | D164: mat | E164: Bow | F164: District Data | G164: All grades | H164: Female | I164: 410 - 415 | J164: 27 | K164: 30 | L164: 29 | M164: 14 | N164: 43 | O164: 90 | P164: Not available | Q164: 2021-10-04T15:44:35 | U164: South Hampton | V164: 34
A165: Regular | B165: 2021 | C165: District Level | D165: mat | E165: Bow | F165: District Data | G165: All grades | H165: Hispanic | I165: 20 - 25 | J165: 38 | K165: 21 | L165: 29 | M165: 13 | N165: 42 | O165: 96 | P165: Not available | Q165: 2021-10-04T15:44:35 | U165: Stark | V165: 24
A166: Regular | B166: 2021 | C166: District Level | D166: mat | E166: Bow | F166: District Data | G166: All grades | H166: Black | I166: 0 - 10 | J166: * n < 11 | K166: * n < 11 | L166: * n < 11 | M166: * n < 11 | N166: * n < 11 | O166: * n< 11 | P166: Not available | Q166: 2021-10-04T15:44:35 | U166: State Data | V166: 20
A167: Regular | B167: 2021 | C167: District Level | D167: mat | E167: Bow | F167: District Data | G167: All grades | H167: White | I167: 755 - 760 | J167: 23 | K167: 34 | L167: 28 | M167: 16 | N167: 43 | O167: 91 | P167: Not available | Q167: 2021-10-04T15:44:35 | U167: Stewartstown | V167: 34
A168: Regular | B168: 2021 | C168: District Level | D168: mat | E168: Bow | F168: District Data | G168: All grades | H168: Two or More races | I168: 20 - 25 | J168: 20 | K168: 25 | L168: 45 | M168: 10 | N168: 55 | O168: 87 | P168: Not available | Q168: 2021-10-04T15:44:35 | U168: Stoddard | V168: 20
A169: Regular | B169: 2021 | C169: District Level | D169: mat | E169: Bow | F169: District Data | G169: All grades | H169: EL - Current | I169: 0 - 10 | J169: * n < 11 | K169: * n < 11 | L169: * n < 11 | M169: * n < 11 | N169: * n < 11 | O169: * n< 11 | P169: Not available | Q169: 2021-10-04T15:44:35 | U169: Strafford | V169: 34
A170: Regular | B170: 2021 | C170: District Level | D170: mat | E170: Bow | F170: District Data | G170: All grades | H170: IEP/SWD | I170: 110 - 115 | J170: 67 | K170: 20 | L170: < 10 % | M170: < 10 % | N170: 12 | O170: 76 | P170: Not available | Q170: 2021-10-04T15:44:35 | U170: Stratford | V170: 34
A171: Regular | B171: 2021 | C171: District Level | D171: mat | E171: Bow | F171: District Data | G171: All grades | H171: SES | I171: 35 - 40 | J171: 51 | K171: 27 | L171: < 10 % | M171: 14 | N171: 22 | O171: 80 | P171: Not available | Q171: 2021-10-04T15:44:35 | U171: Stratham | V171: 20
A172: Regular | B172: 2021 | C172: District Level | D172: mat | E172: Bow | F172: District Data | G172: All grades | H172: Asian+PI+Hawaiian | I172: 10 - 15 | J172: < 10 % | K172: 33 | L172: < 10 % | M172: 50 | N172: 58 | O172: 80 | P172: Not available | Q172: 2021-10-04T15:44:35 | U172: Strong Foundations Charter School | V172: 34
A173: Regular | B173: 2021 | C173: District Level | D173: mat | E173: Bow | F173: District Data | G173: All grades | H173: EL - Curr + Monitor Yr1-4 | I173: 0 - 10 | J173: * n < 11 | K173: * n < 11 | L173: * n < 11 | M173: * n < 11 | N173: * n < 11 | O173: * n< 11 | P173: Not available | Q173: 2021-10-04T15:44:35 | U173: Sullivan | V173: 6
A174: Regular | B174: 2021 | C174: District Level | D174: mat | E174: Bow | F174: District Data | G174: All grades | H174: Homeless | I174: 0 - 10 | J174: * n < 11 | K174: * n < 11 | L174: * n < 11 | M174: * n < 11 | N174: * n < 11 | O174: * n< 11 | P174: Not available | Q174: 2021-10-04T15:44:35 | U174: Sunapee | V174: 46
A175: Regular | B175: 2021 | C175: District Level | D175: mat | E175: Bow | F175: District Data | G175: All grades | H175: Foster | I175: 0 - 10 | J175: * n < 11 | K175: * n < 11 | L175: * n < 11 | M175: * n < 11 | N175: * n < 11 | O175: * n< 11 | P175: Not available | Q175: 2021-10-04T15:44:35 | U175: Surry Village Charter School | V175: 34
A176: Regular | B176: 2021 | C176: District Level | D176: mat | E176: Bow | F176: District Data | G176: All grades | H176: Military | I176: 0 - 10 | J176: * n < 11 | K176: * n < 11 | L176: * n < 11 | M176: * n < 11 | N176: * n < 11 | O176: * n< 11 | P176: Not available | Q176: 2021-10-04T15:44:35 | U176: Tamworth | V176: 34
A177: Regular | B177: 2021 | C177: District Level | D177: mat | E177: Brentwood | F177: District Data | G177: All grades | H177: All students | I177: 135 - 140 | J177: 13 | K177: 34 | L177: 35 | M177: 18 | N177: 53 | O177: 94 | P177: Not available | Q177: 2021-10-04T15:44:35 | U177: The Birches Academy of Academics & Art A Public Charter Sch | V177: 33
A178: Regular | B178: 2021 | C178: District Level | D178: mat | E178: Brentwood | F178: District Data | G178: All grades | H178: Male | I178: 70 - 75 | J178: 13 | K178: 26 | L178: 36 | M178: 26 | N178: 61 | O178: 92 | P178: Not available | Q178: 2021-10-04T15:44:35 | U178: The Founders Academy Charter School | V178: 29
A179: Regular | B179: 2021 | C179: District Level | D179: mat | E179: Brentwood | F179: District Data | G179: All grades | H179: Female | I179: 65 - 70 | J179: 14 | K179: 42 | L179: 33 | M179: 11 | N179: 44 | O179: 96 | P179: Not available | Q179: 2021-10-04T15:44:35 | U179: Thornton | V179: 34
A180: Regular | B180: 2021 | C180: District Level | D180: mat | E180: Brentwood | F180: District Data | G180: All grades | H180: Hispanic | I180: 0 - 10 | J180: * n < 11 | K180: * n < 11 | L180: * n < 11 | M180: * n < 11 | N180: * n < 11 | O180: * n< 11 | P180: Not available | Q180: 2021-10-04T15:44:35 | U180: Timberlane Regional | V180: 76
A181: Regular | B181: 2021 | C181: District Level | D181: mat | E181: Brentwood | F181: District Data | G181: All grades | H181: White | I181: 120 - 125 | J181: 14 | K181: 37 | L181: 34 | M181: 15 | N181: 49 | O181: 95 | P181: Not available | Q181: 2021-10-04T15:44:35 | U181: Unity | V181: 34
A182: Regular | B182: 2021 | C182: District Level | D182: mat | E182: Brentwood | F182: District Data | G182: All grades | H182: Two or More races | I182: 0 - 10 | J182: * n < 11 | K182: * n < 11 | L182: * n < 11 | M182: * n < 11 | N182: * n < 11 | O182: * n< 11 | P182: Not available | Q182: 2021-10-04T15:44:35 | U182: Virtual Learning Academy Charter School | V182: 29
A183: Regular | B183: 2021 | C183: District Level | D183: mat | E183: Brentwood | F183: District Data | G183: All grades | H183: IEP/SWD | I183: 25 - 30 | J183: 54 | K183: 31 | L183: 12 | M183: < 10 % | N183: 15 | O183: 90 | P183: Not available | Q183: 2021-10-04T15:44:35 | U183: Wakefield | V183: 34
A184: Regular | B184: 2021 | C184: District Level | D184: mat | E184: Brentwood | F184: District Data | G184: All grades | H184: SES | I184: 0 - 10 | J184: * n < 11 | K184: * n < 11 | L184: * n < 11 | M184: * n < 11 | N184: * n < 11 | O184: * n< 11 | P184: Not available | Q184: 2021-10-04T15:44:35 | U184: Warren | V184: 34
A185: Regular | B185: 2021 | C185: District Level | D185: mat | E185: Brentwood | F185: District Data | G185: All grades | H185: Asian+PI+Hawaiian | I185: 0 - 10 | J185: * n < 11 | K185: * n < 11 | L185: * n < 11 | M185: * n < 11 | N185: * n < 11 | O185: * n< 11 | P185: Not available | Q185: 2021-10-04T15:44:35 | U185: Washington | V185: 20
A186: Regular | B186: 2021 | C186: District Level | D186: mat | E186: Brentwood | F186: District Data | G186: All grades | H186: EL - Curr + Monitor Yr1-4 | I186: 0 - 10 | J186: * n < 11 | K186: * n < 11 | L186: * n < 11 | M186: * n < 11 | N186: * n < 11 | O186: * n< 11 | P186: Not available | Q186: 2021-10-04T15:44:35 | U186: Waterville Valley | V186: 34
A187: Regular | B187: 2021 | C187: District Level | D187: mat | E187: Brentwood | F187: District Data | G187: All grades | H187: Military | I187: 0 - 10 | J187: * n < 11 | K187: * n < 11 | L187: * n < 11 | M187: * n < 11 | N187: * n < 11 | O187: * n< 11 | P187: Not available | Q187: 2021-10-04T15:44:35 | U187: Weare | V187: 37
A188: Regular | B188: 2021 | C188: District Level | D188: mat | E188: Brookline | F188: District Data | G188: All grades | H188: All students | I188: 295 - 300 | J188: 14 | K188: 25 | L188: 40 | M188: 21 | N188: 62 | O188: 89 | P188: Not available | Q188: 2021-10-04T15:44:35 | U188: Wentworth | V188: 34
A189: Regular | B189: 2021 | C189: District Level | D189: mat | E189: Brookline | F189: District Data | G189: All grades | H189: Male | I189: 150 - 155 | J189: 11 | K189: 23 | L189: 38 | M189: 27 | N189: 66 | O189: 89 | P189: Not available | Q189: 2021-10-04T15:44:35 | U189: Westmoreland | V189: 34
A190: Regular | B190: 2021 | C190: District Level | D190: mat | E190: Brookline | F190: District Data | G190: All grades | H190: Female | I190: 140 - 145 | J190: 17 | K190: 26 | L190: 43 | M190: 15 | N190: 57 | O190: 91 | P190: Not available | Q190: 2021-10-04T15:44:35 | U190: White Mountains Regional | V190: 60
A191: Regular | B191: 2021 | C191: District Level | D191: mat | E191: Brookline | F191: District Data | G191: All grades | H191: Hispanic | I191: 0 - 10 | J191: * n < 11 | K191: * n < 11 | L191: * n < 11 | M191: * n < 11 | N191: * n < 11 | O191: 69 | P191: Not available | Q191: 2021-10-04T15:44:35 | U191: Wilton-Lyndeborough Cooperative | V191: 46
A192: Regular | B192: 2021 | C192: District Level | D192: mat | E192: Brookline | F192: District Data | G192: All grades | H192: Black | I192: 0 - 10 | J192: * n < 11 | K192: * n < 11 | L192: * n < 11 | M192: * n < 11 | N192: * n < 11 | O192: * n< 11 | P192: Not available | Q192: 2021-10-04T15:44:35 | U192: Winchester | V192: 34
A193: Regular | B193: 2021 | C193: District Level | D193: mat | E193: Brookline | F193: District Data | G193: All grades | H193: White | I193: 265 - 270 | J193: 13 | K193: 25 | L193: 41 | M193: 22 | N193: 62 | O193: 90 | P193: Not available | Q193: 2021-10-04T15:44:35 | U193: Windham | V193: 48
A194: Regular | B194: 2021 | C194: District Level | D194: mat | E194: Brookline | F194: District Data | G194: All grades | H194: Two or More races | I194: 0 - 10 | J194: * n < 11 | K194: * n < 11 | L194: * n < 11 | M194: * n < 11 | N194: * n < 11 | O194: * n< 11 | P194: Not available | Q194: 2021-10-04T15:44:35 | U194: Windham Academy Public Charter School | V194: 20
A195: Regular | B195: 2021 | C195: District Level | D195: mat | E195: Brookline | F195: District Data | G195: All grades | H195: EL - Current | I195: 0 - 10 | J195: * n < 11 | K195: * n < 11 | L195: * n < 11 | M195: * n < 11 | N195: * n < 11 | O195: * n< 11 | P195: Not available | Q195: 2021-10-04T15:44:35 | U195: Winnacunnet Cooperative | V195: 12
A196: Regular | B196: 2021 | C196: District Level | D196: mat | E196: Brookline | F196: District Data | G196: All grades | H196: IEP/SWD | I196: 40 - 45 | J196: 45 | K196: 29 | L196: 19 | M196: < 10 % | N196: 26 | O196: 78 | P196: Not available | Q196: 2021-10-04T15:44:35 | U196: Winnisquam Regional | V196: 56
A197: Regular | B197: 2021 | C197: District Level | D197: mat | E197: Brookline | F197: District Data | G197: All grades | H197: SES | I197: 15 - 20 | J197: 56 | K197: < 10 % | L197: 38 | M197: < 10 % | N197: 44 | O197: 89 | P197: Not available | Q197: 2021-10-04T15:44:35 | U197: The Birches Academy of Academics | V197: 1
A198: Regular | B198: 2021 | C198: District Level | D198: mat | E198: Brookline | F198: District Data | G198: All grades | H198: Asian+PI+Hawaiian | I198: 0 - 10 | J198: * n < 11 | K198: * n < 11 | L198: * n < 11 | M198: * n < 11 | N198: * n < 11 | O198: * n< 11 | P198: Not available | Q198: 2021-10-04T15:44:35 | T198: Am. Indian | U198: Academy for Science and Design Charter School | V198: 4
A199: Regular | B199: 2021 | C199: District Level | D199: mat | E199: Brookline | F199: District Data | G199: All grades | H199: EL - Curr + Monitor Yr1-4 | I199: 0 - 10 | J199: * n < 11 | K199: * n < 11 | L199: * n < 11 | M199: * n < 11 | N199: * n < 11 | O199: * n< 11 | P199: Not available | Q199: 2021-10-04T15:44:35 | U199: Amherst | V199: 13
A200: Regular | B200: 2021 | C200: District Level | D200: mat | E200: Brookline | F200: District Data | G200: All grades | H200: Foster | I200: 0 - 10 | J200: * n < 11 | K200: * n < 11 | L200: * n < 11 | M200: * n < 11 | N200: * n < 11 | O200: * n< 11 | P200: Not available | Q200: 2021-10-04T15:44:35 | U200: Bedford | V200: 22
... 4300 more rows

Sheet FAR (hidden)
E3: ADM-A | I3: Free & Reduced Eligible | M3: % Eligible
E4: Pre-School | F4: Kindergarten | G4: Grades 1-12 | H4: ADM-A Total | I4: Pre-School | J4: Kindergarten | K4: Grades 1-12 | L4: ADM-A Total | M4: All Grades %
E5: =SUM(E7:E507) -> 1328.2084 | F5: =SUM(F7:F507) -> 9591.4104 | G5: 153887.1611 | H5: 164806.7799 | I5: =SUM(I7:I507) -> 351.749 | J5: =SUM(J7:J507) -> 2581.9185 | K5: 36499.8986 | L5: 39433.5661 | M5: =L5/H5 -> 0.239271504
A6: District ID | B6: District Name | C6: School ID | D6: School Name
A7: 9 | B7: Allenstown | C7: 22575 | D7: Armand R. Dupont School | E7: 0 | F7: 0 | G7: 151.3199 | H7: =E7+F7+G7 -> 151.3199 | I7: 0 | J7: 0 | K7: 80.1617 | L7: =I7+J7+K7 -> 80.1617 | M7: =L7/H7 -> 0.5297498875
A8: 9 | B8: Allenstown | C8: 22580 | D8: Allenstown Elementary School | E8: 0 | F8: 43.9706 | G8: 143.2146 | H8: =E8+F8+G8 -> 187.1852 | I8: 0 | J8: 16.2243 | K8: 64.9657 | L8: =I8+J8+K8 -> 81.19 | M8: 0.4337415565
A9: 15 | B9: Alton | C9: 22480 | D9: Alton Central School (Elem) | E9: 16.5714 | F9: 38.411 | G9: 332.4266 | H9: 387.409 | I9: 1.8179 | J9: 3.9166 | K9: 72.0394 | L9: 77.7739 | M9: 0.2007539835
A10: 17 | B10: Amherst | C10: 21750 | D10: Clark-Wilkins School | E10: 8.7612 | F10: 107.9059 | G10: 515.9904 | H10: 632.6575 | I10: 0 | J10: 4 | K10: 21.3118 | L10: 25.3118 | M10: 0.04000869349
A11: 17 | B11: Amherst | C11: 21745 | D11: Amherst Middle School | E11: 0 | F11: 0 | G11: 613.0533 | H11: 613.0533 | I11: 0 | J11: 0 | K11: 43.4412 | L11: 43.4412 | M11: 0.07086039664
A12: 19 | B12: Andover | C12: 22130 | D12: Andover Elementary School | E12: 0 | F12: 16.7779 | G12: 207.2922 | H12: 224.0701 | I12: 0 | J12: 0 | K12: 51.1011 | L12: 51.1011 | M12: 0.2280585406
A13: 23 | B13: Ashland | C13: 20010 | D13: Ashland Elementary School | E13: 0 | F13: 18.967 | G13: 147.6848 | H13: 166.6518 | I13: 0 | J13: 4.967 | K13: 52.6433 | L13: 57.6103 | M13: 0.3456926358
A14: 29 | B14: Auburn | C14: 20530 | D14: Auburn Village School | E14: 0 | F14: 25 | G14: 554.2325 | H14: 579.2325 | I14: 0 | J14: 2.5 | K14: 33.1932 | L14: 35.6932 | M14: 0.0616215423
A15: 31 | B15: Barnstead | C15: 22485 | D15: Barnstead Elementary School | E15: 5.3296 | F15: 50.7735 | G15: 391.869 | H15: 447.9721 | I15: 1.3582 | J15: 12.3407 | K15: 105.216 | L15: 118.9149 | M15: 0.2654515761
A16: 33 | B16: Barrington | C16: 22030 | D16: Barrington Middle School | E16: 0 | F16: 0 | G16: 389.8573 | H16: 389.8573 | I16: 0 | J16: 0 | K16: 62.3992 | L16: 62.3992 | M16: 0.160056513
A17: 33 | B17: Barrington | C17: 29010 | D17: Early Childhood Learning Center | E17: 18.1619 | F17: 100.4623 | G17: 0 | H17: 118.6242 | I17: 0.9919 | J17: 10.5954 | K17: 0 | L17: 11.5873 | M17: 0.09768074305
A18: 33 | B18: Barrington | C18: 22045 | D18: Barrington Elementary School | E18: 0 | F18: 0 | G18: 379.0342 | H18: 379.0342 | I18: 0 | J18: 0 | K18: 41.8951 | L18: 41.8951 | M18: 0.1105311869
A19: 35 | B19: Bartlett | C19: 20325 | D19: Josiah Bartlett Elementary School | E19: 7.4279 | F19: 12.9611 | G19: 146.3333 | H19: 166.7223 | I19: 3 | J19: 1.9611 | K19: 38.1111 | L19: 43.0722 | M19: 0.2583469638
A20: 39 | B20: Bath | C20: 20860 | D20: Bath Village School | E20: 0 | F20: 7 | G20: 61.8556 | H20: 68.8556 | I20: 0 | J20: 1 | K20: 23 | L20: 24 | M20: 0.3485555278
A21: 41 | B21: Bedford | C21: 20990 | D21: Memorial School | E21: 18.063 | F21: 27.7796 | G21: 300.3208 | H21: 346.1634 | I21: 1.066 | J21: 4.6592 | K21: 28.3097 | L21: 34.0349 | M21: 0.0983203308
A22: 41 | B22: Bedford | C22: 28555 | D22: Bedford High School | E22: 0 | F22: 0 | G22: 1470.0321 | H22: 1470.0321 | I22: 0 | J22: 0 | K22: 73.5552 | L22: 73.5552 | M22: 0.05003645839
A23: 41 | B23: Bedford | C23: 27680 | D23: Riddle Brook School | E23: 0 | F23: 34.089 | G23: 448.4498 | H23: 482.5388 | I23: 0 | J23: 1.5 | K23: 10.1412 | L23: 11.6412 | M23: 0.02412489939
A24: 41 | B24: Bedford | C24: 28560 | D24: Ross A. Lurgio Middle School | E24: 0 | F24: 0 | G24: 703.8993 | H24: 703.8993 | I24: 0 | J24: 0 | K24: 46.5196 | L24: 46.5196 | M24: 0.06608843055
A25: 41 | B25: Bedford | C25: 21000 | D25: Peter Woodbury School | E25: 0 | F25: 31.0337 | G25: 422.9092 | H25: 453.9429 | I25: 0 | J25: 1.4916 | K25: 23.4024 | L25: 24.894 | M25: 0.05483949633
A26: 41 | B26: Bedford | C26: 21005 | D26: McKelvie Intermediate School | E26: 0 | F26: 0 | G26: 690.5099 | H26: 690.5099 | I26: 0 | J26: 0 | K26: 39.514 | L26: 39.514 | M26: 0.05722437868
A27: 51 | B27: Berlin | C27: 27035 | D27: Berlin Elementary School | E27: 11.1724 | F27: 82.8623 | G27: 386.4315 | H27: 480.4662 | I27: 7.2168 | J27: 53.5733 | K27: 224.0202 | L27: 284.8103 | M27: 0.592779055
A28: 51 | B28: Berlin | C28: 20045 | D28: Berlin Middle School | E28: 0 | F28: 0 | G28: 241.4295 | H28: 241.4295 | I28: 0 | J28: 0 | K28: 116.9631 | L28: 116.9631 | M28: 0.4844606811
A29: 51 | B29: Berlin | C29: 20050 | D29: Berlin Senior High School | E29: 0 | F29: 0 | G29: 364.8997 | H29: 364.8997 | I29: 0 | J29: 0 | K29: 128.6467 | L29: 128.6467 | M29: 0.3525535921
A30: 53 | B30: Bethlehem | C30: 21400 | D30: Bethlehem Elementary School | E30: 3.3722 | F30: 21.1 | G30: 110.5277 | H30: 134.9999 | I30: 1.2389 | J30: 5.7778 | K30: 35.0388 | L30: 42.0555 | M30: 0.311522453
A31: 57 | B31: Bow | C31: 20680 | D31: Bow Elementary School | E31: 9.0311 | F31: 84.6333 | G31: 421.8027 | H31: 515.4671 | I31: 0.8489 | J31: 6.6444 | K31: 21.7166 | L31: 29.2099 | M31: 0.05666685614
A32: 57 | B32: Bow | C32: 27375 | D32: Bow High School | E32: 0 | F32: 0 | G32: 619.7463 | H32: 619.7463 | I32: 0 | J32: 0 | K32: 26.9444 | L32: 26.9444 | M32: 0.04347649998
A33: 57 | B33: Bow | C33: 20675 | D33: Bow Memorial School | E33: 0 | F33: 0 | G33: 527.6249 | H33: 527.6249 | I33: 0 | J33: 0 | K33: 30.8202 | L33: 30.8202 | M33: 0.05841308854
A34: 63 | B34: Brentwood | C34: 20555 | D34: Swasey Central School | E34: 1.9598 | F34: 32.1954 | G34: 242.5264 | H34: 276.6816 | I34: 0.2 | J34: 0 | K34: 12.1954 | L34: 12.3954 | M34: 0.04480023247
A35: 71 | B35: Brookline | C35: 21800 | D35: Richard Maghakian Memorial School | E35: 6.3429 | F35: 72.6228 | G35: 234.336 | H35: 313.3017 | I35: 0.4 | J35: 3 | K35: 10.7131 | L35: 14.1131 | M35: 0.04504635628
A36: 71 | B36: Brookline | C36: 27765 | D36: Captain Samuel Douglass Academy | E36: 0 | F36: 0 | G36: 247.9657 | H36: 247.9657 | I36: 0 | J36: 0 | K36: 13 | L36: 13 | M36: 0.05242660578
A37: 75 | B37: Campton | C37: 22335 | D37: Campton Elementary School | E37: 7.2333 | F37: 25.5532 | G37: 257.9457 | H37: 290.7322 | I37: 1.6 | J37: 11.65 | K37: 87.3538 | L37: 100.6038 | M37: 0.346035974
A38: 79 | B38: Candia | C38: 20535 | D38: Henry W. Moore School | E38: 0 | F38: 31.6011 | G38: 239.7724 | H38: 271.3735 | I38: 0 | J38: 4.0578 | K38: 33.0624 | L38: 37.1202 | M38: 0.1367863848
A39: 93 | B39: Chester | C39: 20500 | D39: Chester Academy | E39: 3.8724 | F39: 55.0441 | G39: 417.6752 | H39: 476.5917 | I39: 0 | J39: 1.9513 | K39: 27.1165 | L39: 29.0678 | M39: 0.06099099082
A40: 95 | B40: Chesterfield | C40: 21140 | D40: Chesterfield Central School | E40: 0 | F40: 26.2721 | G40: 235.2298 | H40: 261.5019 | I40: 0 | J40: 2.7833 | K40: 45.6608 | L40: 48.4441 | M40: 0.1852533385
A41: 99 | B41: Chichester | C41: 22590 | D41: Chichester Central School | E41: 0 | F41: 19.3501 | G41: 179.1266 | H41: 198.4767 | I41: 0 | J41: 3.9 | K41: 26.8336 | L41: 30.7336 | M41: 0.1548473952
A42: 101 | B42: Claremont | C42: 20140 | D42: Stevens High School | E42: 0 | F42: 0 | G42: 508.54 | H42: 508.54 | I42: 0 | J42: 0 | K42: 203.5834 | L42: 203.5834 | M42: 0.4003291776
A43: 101 | B43: Claremont | C43: 20145 | D43: Bluff School | E43: 0 | F43: 27.787 | G43: 116.9724 | H43: 144.7594 | I43: 0 | J43: 17.787 | K43: 76.8458 | L43: 94.6328 | M43: 0.6537247322
A44: 101 | B44: Claremont | C44: 20160 | D44: Maple Avenue School | E44: 0 | F44: 47.7314 | G44: 248.4857 | H44: 296.2171 | I44: 0 | J44: 29.3863 | K44: 115.8424 | L44: 145.2287 | M44: 0.4902779077
A45: 101 | B45: Claremont | C45: 20115 | D45: Claremont Middle School | E45: 0 | F45: 0 | G45: 390.7888 | H45: 390.7888 | I45: 0 | J45: 0 | K45: 200.2786 | L45: 200.2786 | M45: 0.5124983111
A46: 101 | B46: Claremont | C46: 20165 | D46: Disnard Elementary School | E46: 0 | F46: 33.8046 | G46: 203.0895 | H46: 236.8941 | I46: 0 | J46: 23.4023 | K46: 120.6799 | L46: 144.0822 | M46: 0.6082135435
A47: 101 | B47: Claremont | C47: 29184 | D47: Claremont Preschool Center | E47: 20.0766 | F47: 0 | G47: 0 | H47: 20.0766 | I47: 13.1617 | J47: 0 | K47: 0 | L47: 13.1617 | M47: 0.655574151
A48: 105 | B48: Colebrook | C48: 20185 | D48: Colebrook Academy and Elementary School (H) | E48: 0 | F48: 0 | G48: 97.7642 | H48: 97.7642 | I48: 0 | J48: 0 | K48: 22.9694 | L48: 22.9694 | M48: 0.2349469438
A49: 105 | B49: Colebrook | C49: 20195 | D49: Colebrook Academy and Elementary School (E) | E49: 2.8557 | F49: 19.7334 | G49: 171.5224 | H49: 194.1115 | I49: 1.5403 | J49: 9.241 | K49: 72.1288 | L49: 82.9101 | M49: 0.427126162
A50: 111 | B50: Concord | C50: 20305 | D50: Christa McAuliffe School | E50: 0 | F50: 60.2221 | G50: 302.5442 | H50: 362.7663 | I50: 0 | J50: 18.5664 | K50: 111.146 | L50: 129.7124 | M50: 0.357564636
A51: 111 | B51: Concord | C51: 20250 | D51: Mill Brook School | E51: 13.4709 | F51: 95.0702 | G51: 207.7499 | H51: 316.291 | I51: 5.3018 | J51: 41.8613 | K51: 81.6491 | L51: 128.8122 | M51: 0.4072585056
A52: 111 | B52: Concord | C52: 20285 | D52: Concord High School | E52: 0 | F52: 0 | G52: 1491.7261 | H52: 1491.7261 | I52: 0 | J52: 0 | K52: 468.7777 | L52: 468.7777 | M52: 0.314251859
A53: 111 | B53: Concord | C53: 20240 | D53: Abbot-Downing School | E53: 0 | F53: 40.6652 | G53: 249.3162 | H53: 289.9814 | I53: 0 | J53: 11.6128 | K53: 84.5079 | L53: 96.1207 | M53: 0.3314719496
A54: 111 | B54: Concord | C54: 20270 | D54: Rundlett Middle School | E54: 0 | F54: 0 | G54: 896.7565 | H54: 896.7565 | I54: 0 | J54: 0 | K54: 374.1746 | L54: 374.1746 | M54: 0.4172532901
A55: 111 | B55: Concord | C55: 26490 | D55: Beaver Meadow School | E55: 17.514 | F55: 43.997 | G55: 253.9852 | H55: 315.4962 | I55: 4.3589 | J55: 19.0515 | K55: 100.9862 | L55: 124.3966 | M55: 0.3942887426
A56: 111 | B56: Concord | C56: 20260 | D56: Broken Ground School | E56: 0 | F56: 0 | G56: 312.5571 | H56: 312.5571 | I56: 0 | J56: 0 | K56: 151.3544 | L56: 151.3544 | M56: 0.4842455986
A57: 112 | B57: Contoocook Valley | C57: 22210 | D57: Great Brook School | E57: 0 | F57: 0 | G57: 258.2985 | H57: 258.2985 | I57: 0 | J57: 0 | K57: 73.1533 | L57: 73.1533 | M57: 0.2832122525
A58: 112 | B58: Contoocook Valley | C58: 22310 | D58: Peterborough Elementary School | E58: 7.6347 | F58: 50.1648 | G58: 186.5248 | H58: 244.3243 | I58: 4.1574 | J58: 11.0682 | K58: 61.8751 | L58: 77.1007 | M58: 0.3155670558
A59: 112 | B59: Contoocook Valley | C59: 22215 | D59: Antrim Elementary School | E59: 15.6466 | F59: 20.1876 | G59: 79.881 | H59: 115.7152 | I59: 3.6568 | J59: 9.8921 | K59: 22.4464 | L59: 35.9953 | M59: 0.311068036
A60: 112 | B60: Contoocook Valley | C60: 22330 | D60: Temple Elementary School | E60: 0 | F60: 6.4375 | G60: 41.3694 | H60: 47.8069 | I60: 0 | J60: 1.4375 | K60: 11 | L60: 12.4375 | M60: 0.2601611901
A61: 112 | B61: Contoocook Valley | C61: 22260 | D61: Hancock Elementary School | E61: 0 | F61: 7.4356 | G61: 40.9261 | H61: 48.3617 | I61: 0 | J61: 2.4356 | K61: 8 | L61: 10.4356 | M61: 0.2157823236
A62: 112 | B62: Contoocook Valley | C62: 22225 | D62: Pierce Elementary School | E62: 0 | F62: 11.9489 | G62: 53.6058 | H62: 65.5547 | I62: 0 | J62: 4 | K62: 22.6058 | L62: 26.6058 | M62: 0.4058564832
A63: 112 | B63: Contoocook Valley | C63: 22230 | D63: Dublin Consolidated School | E63: 0 | F63: 9.5852 | G63: 40.1193 | H63: 49.7045 | I63: 0 | J63: 2 | K63: 10.3636 | L63: 12.3636 | M63: 0.2487420656
A64: 112 | B64: Contoocook Valley | C64: 22250 | D64: Greenfield Elementary School | E64: 7.5 | F64: 17.142 | G64: 55.1875 | H64: 79.8295 | I64: 2.1307 | J64: 5.142 | K64: 14.1307 | L64: 21.4034 | M64: 0.2681139178
A65: 112 | B65: Contoocook Valley | C65: 22295 | D65: South Meadow School | E65: 0 | F65: 0 | G65: 356.1292 | H65: 356.1292 | I65: 0 | J65: 0 | K65: 102.2218 | L65: 102.2218 | M65: 0.2870357163
A66: 112 | B66: Contoocook Valley | C66: 22245 | D66: Francestown Elementary School | E66: 0 | F66: 14.6249 | G66: 30.4375 | H66: 45.0624 | I66: 0 | J66: 0.7443 | K66: 9.4375 | L66: 10.1818 | M66: 0.2259489064
A67: 112 | B67: Contoocook Valley | C67: 22290 | D67: Conval Regional High School | E67: 0 | F67: 0 | G67: 698.262 | H67: 698.262 | I67: 0 | J67: 0 | K67: 171.7481 | L67: 171.7481 | M67: 0.2459651248
A68: 113 | B68: Conway | C68: 20335 | D68: John H. Fuller School | E68: 0 | F68: 22.4382 | G68: 157.3668 | H68: 179.805 | I68: 0 | J68: 7.8778 | K68: 45.4669 | L68: 53.3447 | M68: 0.2966808487
A69: 113 | B69: Conway | C69: 20330 | D69: Pine Tree Elementary School | E69: 0 | F69: 27.7889 | G69: 210.4246 | H69: 238.2135 | I69: 0 | J69: 4.8833 | K69: 63.2524 | L69: 68.1357 | M69: 0.28602787
A70: 113 | B70: Conway | C70: 20345 | D70: Kennett High School | E70: 0 | F70: 0 | G70: 721.4603 | H70: 721.4603 | I70: 0 | J70: 0 | K70: 154.0714 | L70: 154.0714 | M70: 0.2135549246
A71: 113 | B71: Conway | C71: 27010 | D71: A. Crosby Kennett Middle School | E71: 0 | F71: 0 | G71: 239.2733 | H71: 239.2733 | I71: 0 | J71: 0 | K71: 95.7166 | L71: 95.7166 | M71: =L71/H71 -> 0.4000304255
A72: 113 | B72: Conway | C72: 20340 | D72: Conway Elementary School | E72: 0 | F72: 23.1167 | G72: 181.4893 | H72: =E72+F72+G72 -> 204.606 | I72: 0 | J72: 12.1167 | K72: 82.7338 | L72: =I72+J72+K72 -> 94.8505 | M72: 0.463576337
A73: 115 | B73: Cornish | C73: 20175 | D73: Cornish Elementary School | E73: 8.528 | F73: 10.3807 | G73: 84.9831 | H73: 103.8918 | I73: 1.664 | J73: 1.1584 | K73: 21.2333 | L73: 24.0557 | M73: 0.2315457043
A74: 117 | B74: Croydon | C74: 21960 | D74: Croydon Village School | E74: 0 | F74: 2 | G74: 24.2127 | H74: 26.2127 | I74: 0 | J74: 0 | K74: 6.8196 | L74: 6.8196 | M74: 0.2601639663
A75: 127 | B75: Deerfield | C75: 22595 | D75: Deerfield Community School | E75: 0 | F75: 48.7978 | G75: 439.5602 | H75: 488.358 | I75: 0 | J75: 3.289 | K75: 53.0256 | L75: 56.3146 | M75: 0.1153141753
A76: 131 | B76: Derry Cooperative | C76: 27065 | D76: West Running Brook Middle School | E76: 0 | F76: 0 | G76: 564.3576 | H76: 564.3576 | I76: 0 | J76: 0 | K76: 120.743 | L76: 120.743 | M76: 0.2139476814
A77: 131 | B77: Derry Cooperative | C77: 20390 | D77: Grinnell School | E77: 0 | F77: 48.9943 | G77: 283.9357 | H77: 332.93 | I77: 0 | J77: 20.3143 | K77: 115.0119 | L77: 135.3262 | M77: 0.4064704292
A78: 131 | B78: Derry Cooperative | C78: 20405 | D78: South Range Elementary School | E78: 0 | F78: 49.0286 | G78: 263.9474 | H78: 312.976 | I78: 0 | J78: 9.6171 | K78: 65.0972 | L78: 74.7143 | M78: 0.2387221384
A79: 131 | B79: Derry Cooperative | C79: 20370 | D79: East Derry Memorial Elementary School | E79: 0 | F79: 43.04 | G79: 340.1865 | H79: 383.2265 | I79: 0 | J79: 4.6 | K79: 63.6457 | L79: 68.2457 | M79: 0.1780818915
A80: 131 | B80: Derry Cooperative | C80: 28465 | D80: Ernest P. Barka Elementary School | E80: 0 | F80: 71.3714 | G80: 418.9014 | H80: 490.2728 | I80: 0 | J80: 14.1428 | K80: 124.5442 | L80: 138.687 | M80: 0.2828772063
A81: 131 | B81: Derry Cooperative | C81: 29156 | D81: Derry Early Education Program | E81: 25.0026 | F81: 0 | G81: 0 | H81: 25.0026 | I81: 3.2172 | J81: 0 | K81: 0 | L81: 3.2172 | M81: 0.1286746178
A82: 131 | B82: Derry Cooperative | C82: 20380 | D82: Derry Village School | E82: 0 | F82: 62.177 | G82: 316.9685 | H82: 379.1455 | I82: 0 | J82: 11 | K82: 83.9908 | L82: 94.9908 | M82: 0.250539173
A83: 131 | B83: Derry Cooperative | C83: 20420 | D83: Gilbert H. Hood Middle School | E83: 0 | F83: 0 | G83: 573.3115 | H83: 573.3115 | I83: 0 | J83: 0 | K83: 166.6015 | L83: 166.6015 | M83: 0.2905950779
A84: 141 | B84: Dover | C84: 20430 | D84: Garrison School | E84: 0 | F84: 52.6977 | G84: 315.8738 | H84: 368.5715 | I84: 0 | J84: 6.5371 | K84: 37.8314 | L84: 44.3685 | M84: 0.1203796278
A85: 141 | B85: Dover | C85: 20460 | D85: Woodman Park School | E85: 12.057 | F85: 66.7794 | G85: 338.7906 | H85: 417.627 | I85: 3.2568 | J85: 39.3018 | K85: 155.5884 | L85: 198.147 | M85: 0.4744592663
A86: 141 | B86: Dover | C86: 20435 | D86: Dover Middle School | E86: 0 | F86: 0 | G86: 1073.8078 | H86: 1073.8078 | I86: 0 | J86: 0 | K86: 313.5845 | L86: 313.5845 | M86: 0.2920303801
A87: 141 | B87: Dover | C87: 20445 | D87: Horne Street School | E87: 0 | F87: 61.9907 | G87: 324.5777 | H87: 386.5684 | I87: 0 | J87: 11.4438 | K87: 84.622 | L87: 96.0658 | M87: 0.2485091901
A88: 141 | B88: Dover | C88: 20455 | D88: Dover Senior High School | E88: 0 | F88: 0 | G88: 1516.4079 | H88: 1516.4079 | I88: 0 | J88: 0 | K88: 316.955 | L88: 316.955 | M88: 0.2090169802
A89: 142 | B89: Dresden | C89: 20820 | D89: Hanover High School | E89: 0 | F89: 0 | G89: 692.4424 | H89: 692.4424 | I89: 0 | J89: 0 | K89: 36.1131 | L89: 36.1131 | M89: 0.05215321881
A90: 142 | B90: Dresden | C90: 20825 | D90: Frances C. Richmond School | E90: 0 | F90: 0 | G90: 358.3588 | H90: 358.3588 | I90: 0 | J90: 0 | K90: 18 | L90: 18 | M90: 0.05022898838
A91: 149 | B91: Dunbarton | C91: 20685 | D91: Dunbarton Elementary School | E91: 0 | F91: 27.7891 | G91: 213.9842 | H91: 241.7733 | I91: 0 | J91: 3.6668 | K91: 17.9064 | L91: 21.5732 | M91: 0.08922904225
A92: 153 | B92: East Kingston | C92: 20565 | D92: East Kingston Elementary School | E92: 0 | F92: 9 | G92: 114.4081 | H92: 123.4081 | I92: 0 | J92: 0 | K92: 6.6207 | L92: 6.6207 | M92: 0.05364882856
A93: 165 | B93: Epping | C93: 20515 | D93: Epping High School | E93: 0 | F93: 0 | G93: 247.215 | H93: 247.215 | I93: 0 | J93: 0 | K93: 38.1031 | L93: 38.1031 | M93: 0.1541294015
A94: 165 | B94: Epping | C94: 26505 | D94: Epping Middle School | E94: 0 | F94: 0 | G94: 190.7543 | H94: 190.7543 | I94: 0 | J94: 0 | K94: 54.3918 | L94: 54.3918 | M94: 0.2851406233
A95: 165 | B95: Epping | C95: 26510 | D95: Epping Elementary School | E95: 11.9904 | F95: 84.4431 | G95: 340.9689 | H95: 437.4024 | I95: 2.2361 | J95: 13 | K95: 71.5966 | L95: 86.8327 | M95: 0.1985190296
A96: 167 | B96: Epsom | C96: 22600 | D96: Epsom Central School | E96: 0 | F96: 31.3859 | G96: 343.398 | H96: 374.7839 | I96: 0 | J96: 4 | K96: 68.7123 | L96: 72.7123 | M96: 0.1940112689
A97: 171 | B97: Errol | C97: 20735 | D97: Errol Consolidated Elementary School | E97: 0 | F97: 1.4068 | G97: 9.9266 | H97: 11.3334 | I97: 0 | J97: 1.4068 | K97: 3.0339 | L97: 4.4407 | M97: 0.3918241657
A98: 172 | B98: Exeter Region Cooperative | C98: 20590 | D98: Cooperative Middle School | E98: 0 | F98: 0 | G98: 1059.16 | H98: 1059.16 | I98: 0 | J98: 0 | K98: 63.302 | L98: 63.302 | M98: 0.05976622984
A99: 172 | B99: Exeter Region Cooperative | C99: 20600 | D99: Exeter High School | E99: 0 | F99: 0 | G99: 1565.3629 | H99: 1565.3629 | I99: 0 | J99: 0 | K99: 75.0357 | L99: 75.0357 | M99: 0.04793501877
A100: 173 | B100: Exeter | C100: 20575 | D100: Main Street School | E100: 4.0692 | F100: 110.6169 | G100: 274.0806 | H100: 388.7667 | I100: 0.6845 | J100: 11.9411 | K100: 25.9597 | L100: 38.5853 | M100: 0.09925052737
A101: 173 | B101: Exeter | C101: 20595 | D101: Lincoln Street Elementary School | E101: 0 | F101: 0 | G101: 436.6322 | H101: 436.6322 | I101: 0 | J101: 0 | K101: 39.9885 | L101: 39.9885 | M101: 0.0915839464
A102: 174 | B102: Fall Mountain Regional | C102: 22965 | D102: Alstead Primary School | E102: 6.1057 | F102: 22.5119 | G102: 47.7813 | H102: 76.3989 | I102: 2.4556 | J102: 8 | K102: 21.1278 | L102: 31.5834 | M102: 0.4134012401
A103: 174 | B103: Fall Mountain Regional | C103: 22995 | D103: Sarah Porter School | E103: 0 | F103: 0 | G103: 16.2166 | H103: 16.2166 | I103: 0 | J103: 0 | K103: 5.9833 | L103: 5.9833 | M103: 0.3689614346
A104: 174 | B104: Fall Mountain Regional | C104: 23010 | D104: Walpole Primary School | E104: 7.1223 | F104: 30.1222 | G104: 38.0108 | H104: 75.2553 | I104: 2.1722 | J104: 11.9833 | K104: 13.1386 | L104: 27.2941 | M104: 0.3626867476
A105: 174 | B105: Fall Mountain Regional | C105: 22975 | D105: Charlestown Middle School | E105: 0 | F105: 0 | G105: 146.4457 | H105: 146.4457 | I105: 0 | J105: 0 | K105: 70.6447 | L105: 70.6447 | M105: 0.4823951813
A106: 174 | B106: Fall Mountain Regional | C106: 22970 | D106: Vilas Elementary School | E106: 0 | F106: 0 | G106: 98.2279 | H106: 98.2279 | I106: 0 | J106: 0 | K106: 36.7778 | L106: 36.7778 | M106: 0.3744129723
A107: 174 | B107: Fall Mountain Regional | C107: 22980 | D107: N. Charlestown Community School | E107: 0 | F107: 0 | G107: 66.6556 | H107: 66.6556 | I107: 0 | J107: 0 | K107: 41.1889 | L107: 41.1889 | M107: 0.6179360774
A108: 174 | B108: Fall Mountain Regional | C108: 22960 | D108: Acworth Elementary School | E108: 0 | F108: 0 | G108: 23.0443 | H108: 23.0443 | I108: 0 | J108: 0 | K108: 11.0221 | L108: 11.0221 | M108: 0.4783004908
A109: 174 | B109: Fall Mountain Regional | C109: 22985 | D109: Charlestown Primary School | E109: 12.0418 | F109: 40.0555 | G109: 158.607 | H109: 210.7043 | I109: 7.1056 | J109: 19.4722 | K109: 72.4733 | L109: 99.0511 | M109: 0.4700952947
A110: 174 | B110: Fall Mountain Regional | C110: 22990 | D110: Fall Mountain Regional High School | E110: 0 | F110: 0 | G110: 488.8953 | H110: 488.8953 | I110: 0 | J110: 0 | K110: 149.4322 | L110: 149.4322 | M110: 0.3056527645
A111: 174 | B111: Fall Mountain Regional | C111: 27395 | D111: Fall Mountain Regional -Pre School Program | E111: 3.515 | F111: 0 | G111: 0 | H111: 3.515 | I111: 1.9467 | J111: 0 | K111: 0 | L111: 1.9467 | M111: 0.553826458
A112: 174 | B112: Fall Mountain Regional | C112: 23005 | D112: North Walpole School | E112: 0 | F112: 0 | G112: 82.4667 | H112: 82.4667 | I112: 0 | J112: 0 | K112: 31.0389 | L112: 31.0389 | M112: 0.376381012
A113: 174 | B113: Fall Mountain Regional | C113: 23015 | D113: Walpole Elementary School | E113: 0 | F113: 0 | G113: 123.9303 | H113: 123.9303 | I113: 0 | J113: 0 | K113: 39.3001 | L113: 39.3001 | M113: 0.3171145394
A114: 175 | B114: Farmington | C114: 22050 | D114: Farmington Senior High School | E114: 0 | F114: 0 | G114: 241.5172 | H114: 241.5172 | I114: 0 | J114: 0 | K114: 87.6019 | L114: 87.6019 | M114: 0.3627149536
A115: 175 | B115: Farmington | C115: 27980 | D115: Valley View Community School | E115: 9.2351 | F115: 48.5889 | G115: 160.1584 | H115: 217.9824 | I115: 5.112 | J115: 19.0098 | K115: 67.6109 | L115: 91.7327 | M115: 0.4208261768
A116: 175 | B116: Farmington | C116: 22055 | D116: Henry Wilson Memorial School | E116: 0 | F116: 0 | G116: 296.616 | H116: 296.616 | I116: 0 | J116: 0 | K116: 118.2495 | L116: 118.2495 | M116: 0.3986619063
A117: 185 | B117: Franklin | C117: 20660 | D117: Franklin High School | E117: 0 | F117: 0 | G117: 259.4926 | H117: 259.4926 | I117: 0 | J117: 0 | K117: 110.3057 | L117: 110.3057 | M117: 0.4250822567
A118: 185 | B118: Franklin | C118: 20650 | D118: Paul A. Smith School | E118: 8.1932 | F118: 60.6285 | G118: 209.8256 | H118: 278.6473 | I118: 3.8199 | J118: 36.9762 | K118: 106.686 | L118: 147.4821 | M118: 0.5292787693
A119: 185 | B119: Franklin | C119: 26755 | D119: Franklin Middle School | E119: 0 | F119: 0 | G119: 358.4913 | H119: 358.4913 | I119: 0 | J119: 0 | K119: 175.9856 | L119: 175.9856 | M119: 0.4909061949
A120: 187 | B120: Freedom | C120: 20350 | D120: Freedom Elementary School | E120: 0 | F120: 2 | G120: 46.1236 | H120: 48.1236 | I120: 0 | J120: 1 | K120: 23.1236 | L120: 24.1236 | M120: 0.5012841932
A121: 189 | B121: Fremont | C121: 20525 | D121: Ellis School | E121: 6.6607 | F121: 36.2379 | G121: 319.0775 | H121: 361.9761 | I121: 1.1986 | J121: 5 | K121: 44.9425 | L121: 51.1411 | M121: 0.1412830847
A122: 191 | B122: Gilford | C122: 21245 | D122: Gilford Elementary School | E122: 0 | F122: 62.436 | G122: 241.9381 | H122: 304.3741 | I122: 0 | J122: 9.2151 | K122: 44.3765 | L122: 53.5916 | M122: 0.1760714857
A123: 191 | B123: Gilford | C123: 21240 | D123: Gilford High School | E123: 0 | F123: 0 | G123: 488.232 | H123: 488.232 | I123: 0 | J123: 0 | K123: 48.0806 | L123: 48.0806 | M123: 0.09847900179
A124: 191 | B124: Gilford | C124: 26995 | D124: Gilford Middle School | E124: 0 | F124: 0 | G124: 327.1798 | H124: 327.1798 | I124: 0 | J124: 0 | K124: 55.7697 | L124: 55.7697 | M124: 0.1704558166
A125: 195 | B125: Gilmanton | C125: 21250 | D125: Gilmanton Elementary School | E125: 0 | F125: 26.0833 | G125: 359.2396 | H125: 385.3229 | I125: 0 | J125: 6.0833 | K125: 71.0615 | L125: 77.1448 | M125: 0.200208189
A126: 199 | B126: Goffstown | C126: 20700 | D126: Goffstown High School | E126: 0 | F126: 0 | G126: 1034.7901 | H126: 1034.7901 | I126: 0 | J126: 0 | K126: 124.7546 | L126: 124.7546 | M126: 0.1205602953
A127: 199 | B127: Goffstown | C127: 28525 | D127: Glen Lake School | E127: 15.9127 | F127: 61.5363 | G127: 0 | H127: 77.449 | I127: 3.6065 | J127: 7.9223 | K127: 0 | L127: 11.5288 | M127: 0.148856667
A128: 199 | B128: Goffstown | C128: 26820 | D128: Mountain View Middle School | E128: 0 | F128: 0 | G128: 858.2064 | H128: 858.2064 | I128: 0 | J128: 0 | K128: 119.6601 | L128: 119.6601 | M128: 0.1394304447
A129: 199 | B129: Goffstown | C129: 20690 | D129: Maple Avenue School | E129: 0 | F129: 0 | G129: 483.9767 | H129: 483.9767 | I129: 0 | J129: 0 | K129: 58.3035 | L129: 58.3035 | M129: 0.1204675762
A130: 199 | B130: Goffstown | C130: 20695 | D130: Bartlett Elementary School | E130: 0 | F130: 0 | G130: 195.6944 | H130: 195.6944 | I130: 0 | J130: 0 | K130: 50.9104 | L130: 50.9104 | M130: 0.2601525644
A131: 203 | B131: Gorham Randolph Shelburne Cooperative | C131: 27005 | D131: Gorham Middle School | E131: 0 | F131: 0 | G131: 103.5673 | H131: 103.5673 | I131: 0 | J131: 0 | K131: 18.1704 | L131: 18.1704 | M131: 0.1754453384
A132: 203 | B132: Gorham Randolph Shelburne Cooperative | C132: 20750 | D132: Gorham High School | E132: 0 | F132: 0 | G132: 139.1419 | H132: 139.1419 | I132: 0 | J132: 0 | K132: 21.9364 | L132: 21.9364 | M132: 0.1576548833
A133: 203 | B133: Gorham Randolph Shelburne Cooperative | C133: 20745 | D133: Edward Fenn School | E133: 0 | F133: 23.3694 | G133: 121.8155 | H133: 145.1849 | I133: 0 | J133: 9.4205 | K133: 35.1818 | L133: 44.6023 | M133: 0.3072103228
A134: 208 | B134: Governor Wentworth Regional | C134: 22410 | D134: Tuftonboro Central School | E134: 0 | F134: 13 | G134: 90.0169 | H134: 103.0169 | I134: 0 | J134: 5 | K134: 32.9851 | L134: 37.9851 | M134: 0.3687268788
A135: 208 | B135: Governor Wentworth Regional | C135: 22395 | D135: Effingham Elementary School | E135: 0 | F135: 15.8314 | G135: 82.653 | H135: 98.4844 | I135: 0 | J135: 6.9277 | K135: 44.6511 | L135: 51.5788 | M135: =L135/H135 -> 0.523725585
A136: 208 | B136: Governor Wentworth Regional | C136: 22405 | D136: Ossipee Central School | E136: 3.4041 | F136: 25.167 | G136: 220.0449 | H136: =E136+F136+G136 -> 248.616 | I136: 1.1939 | J136: 12.6272 | K136: 142.5174 | L136: =I136+J136+K136 -> 156.3385 | M136: 0.6288352318
A137: 208 | B137: Governor Wentworth Regional | C137: 22430 | D137: Carpenter Elementary School | E137: 0 | F137: 45.1951 | G137: 158.568 | H137: 203.7631 | I137: 0 | J137: 7.8164 | K137: 46.4043 | L137: 54.2207 | M137: 0.2660967565
A138: 208 | B138: Governor Wentworth Regional | C138: 22425 | D138: Kingswood Regional High School | E138: 0 | F138: 0 | G138: 745.6044 | H138: 745.6044 | I138: 0 | J138: 0 | K138: 232.0025 | L138: 232.0025 | M138: 0.311160315
A139: 208 | B139: Governor Wentworth Regional | C139: 22440 | D139: Kingswood Regional Middle School | E139: 0 | F139: 0 | G139: 354.3342 | H139: 354.3342 | I139: 0 | J139: 0 | K139: 123.4862 | L139: 123.4862 | M139: 0.3485020639
A140: 208 | B140: Governor Wentworth Regional | C140: 22400 | D140: New Durham Elementary School | E140: 1.6689 | F140: 20.3118 | G140: 109.9948 | H140: 131.9755 | I140: 0.7005 | J140: 4.0056 | K140: 26.2728 | L140: 30.9789 | M140: 0.2347322041
A141: 208 | B141: Governor Wentworth Regional | C141: 27515 | D141: Crescent Lake School | E141: 0 | F141: 0 | G141: 208.9663 | H141: 208.9663 | I141: 0 | J141: 0 | K141: 47.683 | L141: 47.683 | M141: 0.2281851188
A142: 211 | B142: Grantham | C142: 21330 | D142: Grantham Village School | E142: 4.9029 | F142: 20.2535 | G142: 205.846 | H142: 231.0024 | I142: 0 | J142: 1.8634 | K142: 18.4857 | L142: 20.3491 | M142: 0.08809042677
A143: 215 | B143: Greenland | C143: 22450 | D143: Greenland Central School | E143: 0 | F143: 23.4477 | G143: 364.556 | H143: 388.0037 | I143: 0 | J143: 1.2443 | K143: 27.0332 | L143: 28.2775 | M143: 0.07287945965
A144: 223 | B144: Hampstead | C144: 22750 | D144: Hampstead Middle School | E144: 0 | F144: 0 | G144: 359.1555 | H144: 359.1555 | I144: 0 | J144: 0 | K144: 25.0937 | L144: 25.0937 | M144: 0.06986862237
A145: 223 | B145: Hampstead | C145: 22755 | D145: Hampstead Central School | E145: 17.5358 | F145: 52.8143 | G145: 343.0542 | H145: 413.4043 | I145: 2.1675 | J145: 4.5 | K145: 37.0465 | L145: 43.714 | M145: 0.1057415223
A146: 225 | B146: Hampton | C146: 20790 | D146: Hampton Academy | E146: 0 | F146: 0 | G146: 355.8797 | H146: 355.8797 | I146: 0 | J146: 0 | K146: 59.6306 | L146: 59.6306 | M146: 0.1675583069
A147: 225 | B147: Hampton | C147: 20795 | D147: Adeline C. Marston School | E147: 0 | F147: 0 | G147: 287.3879 | H147: 287.3879 | I147: 0 | J147: 0 | K147: 50.7721 | L147: 50.7721 | M147: 0.1766674937
A148: 225 | B148: Hampton | C148: 20770 | D148: Hampton Centre School | E148: 12.9852 | F148: 73.1962 | G148: 210.7423 | H148: 296.9237 | I148: 2.9334 | J148: 11.3336 | K148: 27.0299 | L148: 41.2969 | M148: 0.139082532
A149: 227 | B149: Hampton Falls | C149: 20800 | D149: Lincoln Akerman School | E149: 0 | F149: 16.4034 | G149: 169.3523 | H149: 185.7557 | I149: 0 | J149: 0 | K149: 3 | L149: 3 | M149: 0.01615024465
A150: 233 | B150: Hanover | C150: 20830 | D150: Bernice A. Ray School | E150: 0 | F150: 66.8851 | G150: 389.626 | H150: 456.5111 | I150: 0 | J150: 2.4152 | K150: 13.2102 | L150: 15.6254 | M150: 0.03422786434
A151: 235 | B151: Harrisville | C151: 21155 | D151: Wells Memorial School | E151: 0 | F151: 5.8389 | G151: 54.1002 | H151: 59.9391 | I151: 0 | J151: 0 | K151: 15.1279 | L151: 15.1279 | M151: 0.2523878403
A152: 238 | B152: Haverhill Cooperative | C152: 20905 | D152: Woodsville Elementary School | E152: 5.5061 | F152: 42.7584 | G152: 128.9307 | H152: 177.1952 | I152: 1.6438 | J152: 13.4269 | K152: 41.2117 | L152: 56.2824 | M152: 0.3176293715
A153: 238 | B153: Haverhill Cooperative | C153: 20910 | D153: Woodsville High School | E153: 0 | F153: 0 | G153: 212.2317 | H153: 212.2317 | I153: 0 | J153: 0 | K153: 58.9557 | L153: 58.9557 | M153: 0.2777893218
A154: 238 | B154: Haverhill Cooperative | C154: 26875 | D154: Haverhill Cooperative Middle School | E154: 0 | F154: 0 | G154: 235.4856 | H154: 235.4856 | I154: 0 | J154: 0 | K154: 65.0285 | L154: 65.0285 | M154: 0.2761463971
A155: 245 | B155: Henniker | C155: 20935 | D155: Henniker Community School | E155: 0 | F155: 37.8565 | G155: 341.0505 | H155: 378.907 | I155: 0 | J155: 8.9209 | K155: 55.7579 | L155: 64.6788 | M155: 0.1706983508
A156: 247 | B156: Hill | C156: 20670 | D156: Jennie D. Blake School | E156: 0 | F156: 7.598 | G156: 42.454 | H156: 50.052 | I156: 0 | J156: 1 | K156: 11.973 | L156: 12.973 | M156: 0.2591904419
A157: 251 | B157: Hillsboro-Deering Cooperative | C157: 20950 | D157: Hillsboro-Deering High School | E157: 0 | F157: 0 | G157: 374.677 | H157: 374.677 | I157: 0 | J157: 0 | K157: 96.0876 | L157: 96.0876 | M157: 0.2564544928
A158: 251 | B158: Hillsboro-Deering Cooperative | C158: 20955 | D158: Hillsboro-Deering Elementary School | E158: 5.6008 | F158: 58.4746 | G158: 329.7498 | H158: 393.8252 | I158: 2.4314 | J158: 24.514 | K158: 119.9986 | L158: 146.944 | M158: 0.3731198511
A159: 251 | B159: Hillsboro-Deering Cooperative | C159: 20960 | D159: Hillsboro-Deering Middle School | E159: 0 | F159: 0 | G159: 267.0402 | H159: 267.0402 | I159: 0 | J159: 0 | K159: 86.926 | L159: 86.926 | M159: 0.3255165327
A160: 255 | B160: Hinsdale | C160: 21675 | D160: Hinsdale High School | E160: 0 | F160: 0 | G160: 129.2496 | H160: 129.2496 | I160: 0 | J160: 0 | K160: 38.3478 | L160: 38.3478 | M160: 0.2966956958
A161: 255 | B161: Hinsdale | C161: 21680 | D161: Hinsdale Elementary School | E161: 6.7558 | F161: 40.7784 | G161: 215.5462 | H161: 263.0804 | I161: 2.2376 | J161: 17.0525 | K161: 99.346 | L161: 118.6361 | M161: 0.4509499757
A162: 255 | B162: Hinsdale | C162: 26985 | D162: Hinsdale Middle High School | E162: 0 | F162: 0 | G162: 128.4065 | H162: 128.4065 | I162: 0 | J162: 0 | K162: 51.825 | L162: 51.825 | M162: 0.4036010638
A163: 257 | B163: Holderness | C163: 22345 | D163: Holderness Central School | E163: 0 | F163: 12.8081 | G163: 141.4329 | H163: 154.241 | I163: 0 | J163: 4.4128 | K163: 24.864 | L163: 29.2768 | M163: 0.1898120474
A164: 259 | B164: Hollis | C164: 21815 | D164: Hollis Primary School | E164: 7.7325 | F164: 69.9314 | G164: 250.1642 | H164: 327.8281 | I164: 0.058 | J164: 3.5086 | K164: 11.804 | L164: 15.3706 | M164: 0.04688615771
A165: 259 | B165: Hollis | C165: 27530 | D165: Hollis Upper Elementary School | E165: 0 | F165: 0 | G165: 282.7785 | H165: 282.7785 | I165: 0 | J165: 0 | K165: 11.3069 | L165: 11.3069 | M165: 0.03998500593
A166: 260 | B166: Hollis-Brookline Cooperative | C166: 21810 | D166: Hollis-Brookline High School | E166: 0 | F166: 0 | G166: 817.3992 | H166: 817.3992 | I166: 0 | J166: 0 | K166: 36.9886 | L166: 36.9886 | M166: 0.04525157353
A167: 260 | B167: Hollis-Brookline Cooperative | C167: 21805 | D167: Hollis-Brookline Middle School | E167: 0 | F167: 0 | G167: 379.2344 | H167: 379.2344 | I167: 0 | J167: 0 | K167: 17.0297 | L167: 17.0297 | M167: 0.04490547271
A168: 261 | B168: Hooksett | C168: 20540 | D168: Hooksett Memorial School | E168: 0 | F168: 0 | G168: 394.808 | H168: 394.808 | I168: 0 | J168: 0 | K168: 70.2024 | L168: 70.2024 | M168: 0.1778140261
A169: 261 | B169: Hooksett | C169: 28050 | D169: David R. Cawley Middle School | E169: 0 | F169: 0 | G169: 439.5678 | H169: 439.5678 | I169: 0 | J169: 0 | K169: 75.6309 | L169: 75.6309 | M169: 0.1720574164
A170: 261 | B170: Hooksett | C170: 20550 | D170: Fred C. Underhill School | E170: 5.0762 | F170: 63.4655 | G170: 252.0344 | H170: 320.5761 | I170: 0.8 | J170: 5.3238 | K170: 46.2946 | L170: 52.4184 | M170: 0.1635131253
A171: 263 | B171: Hopkinton | C171: 20975 | D171: Harold Martin School | E171: 11.7739 | F171: 47.6971 | G171: 184.2512 | H171: 243.7222 | I171: 0.6 | J171: 7.4857 | K171: 18.4572 | L171: 26.5429 | M171: 0.1089063696
A172: 263 | B172: Hopkinton | C172: 20965 | D172: Maple Street Elementary School | E172: 0 | F172: 0 | G172: 208.3622 | H172: 208.3622 | I172: 0 | J172: 0 | K172: 17.6936 | L172: 17.6936 | M172: 0.08491751383
A173: 263 | B173: Hopkinton | C173: 20970 | D173: Hopkinton High School | E173: 0 | F173: 0 | G173: 319.8142 | H173: 319.8142 | I173: 0 | J173: 0 | K173: 17.7472 | L173: 17.7472 | M173: 0.05549222017
A174: 263 | B174: Hopkinton | C174: 27000 | D174: Hopkinton Middle School | E174: 0 | F174: 0 | G174: 144.0309 | H174: 144.0309 | I174: 0 | J174: 0 | K174: 11.2683 | L174: 11.2683 | M174: 0.07823529534
A175: 267 | B175: Hudson | C175: 21060 | D175: Hudson Memorial School | E175: 0 | F175: 0 | G175: 706.8633 | H175: 706.8633 | I175: 0 | J175: 0 | K175: 166.1575 | L175: 166.1575 | M175: 0.2350631303
A176: 267 | B176: Hudson | C176: 27900 | D176: Hills Garrison Elementary School | E176: 0 | F176: 0 | G176: 381.1753 | H176: 381.1753 | I176: 0 | J176: 0 | K176: 73.8967 | L176: 73.8967 | M176: 0.1938653947
A177: 267 | B177: Hudson | C177: 21050 | D177: Alvirne High School | E177: 0 | F177: 0 | G177: 1077.0821 | H177: 1077.0821 | I177: 0 | J177: 0 | K177: 166.26 | L177: 166.26 | M177: 0.154361492
A178: 267 | B178: Hudson | C178: 21045 | D178: Dr. H. O. Smith Elementary School | E178: 0 | F178: 184.1191 | G178: 163.3968 | H178: 347.5159 | I178: 0 | J178: 33.7613 | K178: 29.3848 | L178: 63.1461 | M178: 0.1817070816
A179: 267 | B179: Hudson | C179: 29232 | D179: Nottingham West Elementary Pre School | E179: 24.7499 | F179: 0 | G179: 0 | H179: 24.7499 | I179: 1.989 | J179: 0 | K179: 0 | L179: 1.989 | M179: 0.08036396107
A180: 267 | B180: Hudson | C180: 26765 | D180: Nottingham West Elementary School | E180: 0 | F180: 0 | G180: 480.4531 | H180: 480.4531 | I180: 0 | J180: 0 | K180: 92.3189 | L180: 92.3189 | M180: 0.1921496604
A181: 269 | B181: Inter-Lakes Cooperative | C181: 29201 | D181: Inter-Lakes Middle School | E181: 0 | F181: 0 | G181: 155.5931 | H181: 155.5931 | I181: 0 | J181: 0 | K181: 38.9133 | L181: 38.9133 | M181: 0.250096566
A182: 269 | B182: Inter-Lakes Cooperative | C182: 29200 | D182: Inter-Lakes Elementary School | E182: 8.0058 | F182: 42.0785 | G182: 355.6395 | H182: 405.7238 | I182: 2.6849 | J182: 12.2093 | K182: 118.1539 | L182: 133.0481 | M182: 0.3279277676
A183: 269 | B183: Inter-Lakes Cooperative | C183: 20040 | D183: Sandwich Central School | E183: 0 | F183: 10.3931 | G183: 50.362 | H183: 60.7551 | I183: 0 | J183: 1 | K183: 9.703 | L183: 10.703 | M183: 0.1761662807
A184: 269 | B184: Inter-Lakes Cooperative | C184: 20035 | D184: Inter-Lakes High School | E184: 0 | F184: 0 | G184: 286.4749 | H184: 286.4749 | I184: 0 | J184: 0 | K184: 60.1983 | L184: 60.1983 | M184: 0.2101346401
A185: 271 | B185: Jackson | C185: 20355 | D185: Jackson Grammar School | E185: 0 | F185: 5.7611 | G185: 44.3549 | H185: 50.116 | I185: 0 | J185: 0 | K185: 4.011 | L185: 4.011 | M185: 0.08003432038
A186: 274 | B186: Jaffrey-Rindge Cooperative | C186: 22280 | D186: Jaffrey-Rindge Middle School | E186: 0 | F186: 0 | G186: 312.4531 | H186: 312.4531 | I186: 0 | J186: 0 | K186: 116.5384 | L186: 116.5384 | M186: 0.3729788567
A187: 274 | B187: Jaffrey-Rindge Cooperative | C187: 22275 | D187: Jaffrey Grade School | E187: 21.4067 | F187: 56.6651 | G187: 222.0967 | H187: 300.1685 | I187: 4.2666 | J187: 16.5657 | K187: 92.2954 | L187: 113.1277 | M187: 0.376880652
A188: 274 | B188: Jaffrey-Rindge Cooperative | C188: 22265 | D188: Conant High School | E188: 0 | F188: 0 | G188: 320.6535 | H188: 320.6535 | I188: 0 | J188: 0 | K188: 88.1791 | L188: 88.1791 | M188: 0.2749980898
A189: 274 | B189: Jaffrey-Rindge Cooperative | C189: 22320 | D189: Rindge Memorial School | E189: 14.1082 | F189: 39.0471 | G189: 224.766 | H189: 277.9213 | I189: 2.4 | J189: 7.3235 | K189: 54.3142 | L189: 64.0377 | M189: 0.2304166683
A190: 275 | B190: John Stark Regional | C190: 26380 | D190: John Stark Regional High School | E190: 0 | F190: 0 | G190: 603.4375 | H190: 603.4375 | I190: 0 | J190: 0 | K190: 45.1627 | L190: 45.1627 | M190: 0.07484238219
A191: 276 | B191: Kearsarge Regional | C191: 22015 | D191: Kearsarge Regional High School | E191: 0 | F191: 0 | G191: 512.8508 | H191: 512.8508 | I191: 0 | J191: 0 | K191: 56.2749 | L191: 56.2749 | M191: 0.1097295744
A192: 276 | B192: Kearsarge Regional | C192: 21980 | D192: Kearsarge Reg. Elem. School at New London | E192: 0 | F192: 49.9251 | G192: 276.7893 | H192: 326.7144 | I192: 0 | J192: 5.495 | K192: 17.8951 | L192: 23.3901 | M192: 0.07159188576
A193: 276 | B193: Kearsarge Regional | C193: 26535 | D193: Kearsarge Regional Middle School | E193: 0 | F193: 0 | G193: 397.5775 | H193: 397.5775 | I193: 0 | J193: 0 | K193: 57.4444 | L193: 57.4444 | M193: 0.1444860436
A194: 276 | B194: Kearsarge Regional | C194: 26530 | D194: Kearsarge Reg. Elementary School - Bradford | E194: 0 | F194: 29.2611 | G194: 121.6629 | H194: 150.924 | I194: 0 | J194: 7.8722 | K194: 28.5296 | L194: 36.4018 | M194: 0.2411929183
A195: 276 | B195: Kearsarge Regional | C195: 26565 | D195: James House Preschool | E195: 18.2604 | F195: 0 | G195: 0 | H195: 18.2604 | I195: 3.3001 | J195: 0 | K195: 0 | L195: 3.3001 | M195: 0.1807244091
A196: 276 | B196: Kearsarge Regional | C196: 22010 | D196: Sutton Central Elementary School | E196: 0 | F196: 13.7445 | G196: 73.6783 | H196: 87.4228 | I196: 0 | J196: 3 | K196: 12.55 | L196: 15.55 | M196: 0.1778712189
A197: 276 | B197: Kearsarge Regional | C197: 22020 | D197: Simonds Elementary School | E197: 0 | F197: 21.7155 | G197: 129.5556 | H197: 151.2711 | I197: 0 | J197: 4.0888 | K197: 31.1555 | L197: 35.2443 | M197: 0.2329876625
A198: 279 | B198: Keene | C198: 21170 | D198: Symonds Elementary School | E198: 0 | F198: 51.5778 | G198: 241.9873 | H198: 293.5651 | I198: 0 | J198: 8.0915 | K198: 60.1668 | L198: 68.2583 | M198: 0.2325150367
A199: 279 | B199: Keene | C199: 21185 | D199: Keene Middle School | E199: 0 | F199: 0 | G199: 676.2745 | H199: 676.2745 | I199: 0 | J199: 0 | K199: 187.806 | L199: 187.806 | M199: =L199/H199 -> 0.2777067596
A200: 279 | B200: Keene | C200: 29180 | D200: Jonathan Daniels School | E200: 21.1918 | F200: 0 | G200: 0 | H200: =E200+F200+G200 -> 21.1918 | I200: 8.349 | J200: 0 | K200: 0 | L200: =I200+J200+K200 -> 8.349 | M200: 0.3939731406
A201: 279 | B201: Keene | C201: 21195 | D201: Keene High School | E201: 0 | F201: 0 | G201: 1331.0691 | H201: 1331.0691 | I201: 0 | J201: 0 | K201: 277.2076 | L201: 277.2076 | M201: 0.2082593608
A202: 279 | B202: Keene | C202: 21190 | D202: Franklin Elementary School | E202: 0 | F202: 25.2057 | G202: 175.9396 | H202: 201.1453 | I202: 0 | J202: 15.0171 | K202: 108.8964 | L202: 123.9135 | M202: 0.6160397484
... 301 more rows

Sheet Bullying (hidden)
H1: December 7, 2021
A2: New Hampshire Department of Education
A3: Division of Education Analytics and Resources, Bureau of Educational Statistics
A4: 101 Pleasant Street, Concord NH 03301-3860
A5: Telephone: (603) 271-2778 Fax: (603) 271-3875
A7: 2020-2021 NH School Safety Data Collection
A8: Section 3: Bullying
G9: Reported Incidents of: | I9: Investigated and actual incidents of: | K9: Bullying incidents based on: | Q9: Bullying incidents that:
A10: SAU | B10: District ID | C10: District | D10: School ID | E10: School | F10: Enrollment | G10: Bullying (of any kind) | H10: Cyber-bullying | I10: Bullying (of any kind) | J10: Cyber-bullying | K10: Gender | L10: Sexual Orientation | M10: Race, Color or National Origin | N10: Disability | O10: Physical Characteristics | P10: Any Other Basis | Q10: Were a Single Significant Event | R10: Were a Pattern of Deliberate Harmful Events | S10: Included Physical Harm | T10: Included Property Damage | U10: Used Social/ Emotional Alienation | V10: Interfered with Educational Opportunities | W10: Disrupted School Operations
A11: 9 | B11: 113 | C11: Conway | D11: 27010 | E11: A. Crosby Kennett Middle School | F11: 241 | G11: 7 | H11: 2 | I11: 5 | J11: 1 | K11: 2 | L11: 0 | M11: 1 | N11: 1 | O11: 0 | P11: 1 | Q11: 6 | R11: 0 | S11: 0 | T11: 0 | U11: 0 | V11: 6 | W11: 0
A12: 8 | B12: 111 | C12: Concord | D12: 20240 | E12: Abbot-Downing School | F12: 325 | G12: 0 | H12: 0 | I12: 0 | J12: 0 | K12: 0 | L12: 0 | M12: 0 | N12: 0 | O12: 0 | P12: 0 | Q12: 0 | R12: 0 | S12: 0 | T12: 0 | U12: 0 | V12: 0 | W12: 0
A13: 401 | B13: 725 | C13: Academy for Science and Design Charter School | D13: 28615 | E13: Academy for Science and Design Charter (H) | F13: 222 | G13: 1 | H13: 0 | I13: 0 | J13: 0 | K13: 0 | L13: 0 | M13: 0 | N13: 0 | O13: 0 | P13: 0 | Q13: 0 | R13: 0 | S13: 0 | T13: 0 | U13: 0 | V13: 0 | W13: 0
A14: 401 | B14: 725 | C14: Academy for Science and Design Charter School | D14: 28580 | E14: Academy for Science and Design Charter (M) | F14: 319 | G14: 3 | H14: 3 | I14: 3 | J14: 3 | K14: 1 | L14: 1 | M14: 0 | N14: 0 | O14: 1 | P14: 0 | Q14: 1 | R14: 0 | S14: 0 | T14: 0 | U14: 0 | V14: 0 | W14: 0
A15: 60 | B15: 174 | C15: Fall Mountain Regional | D15: 22960 | E15: Acworth Elementary School | F15: 24 | G15: 0 | H15: 0 | I15: 0 | J15: 0 | K15: 0 | L15: 0 | M15: 0 | N15: 0 | O15: 0 | P15: 0 | Q15: 0 | R15: 0 | S15: 0 | T15: 0 | U15: 0 | V15: 0 | W15: 0
A16: 90 | B16: 225 | C16: Hampton | D16: 20795 | E16: Adeline C. Marston School | F16: 284 | G16: 0 | H16: 0 | I16: 0 | J16: 0 | K16: 0 | L16: 0 | M16: 0 | N16: 0 | O16: 0 | P16: 0 | Q16: 0 | R16: 0 | S16: 0 | T16: 0 | U16: 0 | V16: 0 | W16: 0
A17: 53 | B17: 9 | C17: Allenstown | D17: 22580 | E17: Allenstown Elementary School | F17: 189 | G17: 1 | H17: 0 | I17: 0 | J17: 0 | K17: 0 | L17: 0 | M17: 0 | N17: 0 | O17: 0 | P17: 0 | Q17: 0 | R17: 0 | S17: 0 | T17: 0 | U17: 0 | V17: 0 | W17: 0
A18: 60 | B18: 174 | C18: Fall Mountain Regional | D18: 22965 | E18: Alstead Primary School | F18: 80 | G18: 0 | H18: 0 | I18: 0 | J18: 0 | K18: 0 | L18: 0 | M18: 0 | N18: 0 | O18: 0 | P18: 0 | Q18: 0 | R18: 0 | S18: 0 | T18: 0 | U18: 0 | V18: 0 | W18: 0
A19: 72 | B19: 15 | C19: Alton | D19: 22480 | E19: Alton Central School (Elem) | F19: 419 | G19: 1 | H19: 1 | I19: 0 | J19: 0 | K19: 0 | L19: 0 | M19: 0 | N19: 0 | O19: 0 | P19: 0 | Q19: 0 | R19: 0 | S19: 0 | T19: 0 | U19: 0 | V19: 0 | W19: 0
A20: 81 | B20: 267 | C20: Hudson | D20: 21050 | E20: Alvirne High School | F20: 1091 | G20: 9 | H20: 2 | I20: 3 | J20: 2 | K20: 0 | L20: 2 | M20: 0 | N20: 0 | O20: 0 | P20: 1 | Q20: 0 | R20: 3 | S20: 0 | T20: 0 | U20: 0 | V20: 0 | W20: 0
A21: 39 | B21: 17 | C21: Amherst | D21: 21745 | E21: Amherst Middle School | F21: 612 | G21: 2 | H21: 1 | I21: 1 | J21: 0 | K21: 0 | L21: 0 | M21: 1 | N21: 0 | O21: 0 | P21: 0 | Q21: 1 | R21: 0 | S21: 0 | T21: 0 | U21: 0 | V21: 0 | W21: 0
A22: 42 | B22: 371 | C22: Nashua | D22: 21940 | E22: Amherst Street School | F22: 266 | G22: 1 | H22: 0 | I22: 0 | J22: 0 | K22: 0 | L22: 0 | M22: 0 | N22: 0 | O22: 0 | P22: 0 | Q22: 0 | R22: 0 | S22: 0 | T22: 0 | U22: 0 | V22: 0 | W22: 0
A23: 46 | B23: 19 | C23: Andover | D23: 22130 | E23: Andover Elementary School | F23: 225 | G23: 14 | H23: 5 | I23: 12 | J23: 2 | K23: 2 | L23: 5 | M23: 1 | N23: 1 | O23: 1 | P23: 2 | Q23: 3 | R23: 2 | S23: 0 | T23: 0 | U23: 3 | V23: 4 | W23: 5
A24: 1 | B24: 112 | C24: Contoocook Valley | D24: 22215 | E24: Antrim Elementary School | F24: 117 | G24: 0 | H24: 0 | I24: 0 | J24: 0 | K24: 0 | L24: 0 | M24: 0 | N24: 0 | O24: 0 | P24: 0 | Q24: 0 | R24: 0 | S24: 0 | T24: 0 | U24: 0 | V24: 0 | W24: 0
A25: 53 | B25: 9 | C25: Allenstown | D25: 22575 | E25: Armand R. Dupont School | F25: 154 | G25: 0 | H25: 0 | I25: 0 | J25: 0 | K25: 0 | L25: 0 | M25: 0 | N25: 0 | O25: 0 | P25: 0 | Q25: 0 | R25: 0 | S25: 0 | T25: 0 | U25: 0 | V25: 0 | W25: 0
A26: 2 | B26: 23 | C26: Ashland | D26: 20010 | E26: Ashland Elementary School | F26: 159 | G26: 5 | H26: 0 | I26: 0 | J26: 0 | K26: 0 | L26: 0 | M26: 0 | N26: 0 | O26: 0 | P26: 0 | Q26: 0 | R26: 0 | S26: 0 | T26: 0 | U26: 3 | V26: 3 | W26: 0
A27: 55 | B27: 534 | C27: Timberlane Regional | D27: 22740 | E27: Atkinson Academy | F27: 336 | G27: 0 | H27: 0 | I27: 0 | J27: 0 | K27: 0 | L27: 0 | M27: 0 | N27: 0 | O27: 0 | P27: 0 | Q27: 0 | R27: 0 | S27: 0 | T27: 0 | U27: 0 | V27: 0 | W27: 0
A28: 15 | B28: 29 | C28: Auburn | D28: 20530 | E28: Auburn Village School | F28: 603 | G28: 4 | H28: 0 | I28: 4 | J28: 0 | K28: 0 | L28: 2 | M28: 0 | N28: 0 | O28: 0 | P28: 2 | Q28: 0 | R28: 0 | S28: 0 | T28: 0 | U28: 0 | V28: 4 | W28: 0
A29: 37 | B29: 335 | C29: Manchester | D29: 21545 | E29: Bakersville School | F29: 402 | G29: 0 | H29: 0 | I29: 0 | J29: 0 | K29: 0 | L29: 0 | M29: 0 | N29: 0 | O29: 0 | P29: 0 | Q29: 0 | R29: 0 | S29: 0 | T29: 0 | U29: 0 | V29: 0 | W29: 0
A30: 86 | B30: 31 | C30: Barnstead | D30: 22485 | E30: Barnstead Elementary School | F30: 449 | G30: 5 | H30: 1 | I30: 4 | J30: 0 | K30: 0 | L30: 1 | M30: 0 | N30: 0 | O30: 0 | P30: 3 | Q30: 3 | R30: 1 | S30: 0 | T30: 0 | U30: 3 | V30: 3 | W30: 3
A31: 74 | B31: 33 | C31: Barrington | D31: 22045 | E31: Barrington Elementary School | F31: 376 | G31: 2 | H31: 0 | I31: 0 | J31: 0 | K31: 0 | L31: 0 | M31: 0 | N31: 0 | O31: 0 | P31: 0 | Q31: 2 | R31: 0 | S31: 0 | T31: 0 | U31: 0 | V31: 0 | W31: 0
A32: 74 | B32: 33 | C32: Barrington | D32: 22030 | E32: Barrington Middle School | F32: 388 | G32: 0 | H32: 0 | I32: 0 | J32: 0 | K32: 0 | L32: 0 | M32: 0 | N32: 0 | O32: 0 | P32: 0 | Q32: 0 | R32: 0 | S32: 0 | T32: 0 | U32: 0 | V32: 0 | W32: 0
A33: 19 | B33: 199 | C33: Goffstown | D33: 20695 | E33: Bartlett Elementary School | F33: 193 | G33: 0 | H33: 0 | I33: 0 | J33: 0 | K33: 0 | L33: 0 | M33: 0 | N33: 0 | O33: 0 | P33: 0 | Q33: 0 | R33: 0 | S33: 0 | T33: 0 | U33: 0 | V33: 0 | W33: 0
A34: 23 | B34: 39 | C34: Bath | D34: 20860 | E34: Bath Village School | F34: 69 | G34: 0 | H34: 0 | I34: 0 | J34: 0 | K34: 0 | L34: 0 | M34: 0 | N34: 0 | O34: 0 | P34: 0 | Q34: 0 | R34: 0 | S34: 0 | T34: 0 | U34: 0 | V34: 0 | W34: 0
A35: 8 | B35: 111 | C35: Concord | D35: 26490 | E35: Beaver Meadow School | F35: 328 | G35: 0 | H35: 0 | I35: 0 | J35: 0 | K35: 0 | L35: 0 | M35: 0 | N35: 0 | O35: 0 | P35: 0 | Q35: 0 | R35: 0 | S35: 0 | T35: 0 | U35: 0 | V35: 0 | W35: 0
A36: 25 | B36: 41 | C36: Bedford | D36: 28555 | E36: Bedford High School | F36: 1480 | G36: 1 | H36: 0 | I36: 1 | J36: 0 | K36: 0 | L36: 0 | M36: 0 | N36: 0 | O36: 0 | P36: 1 | Q36: 0 | R36: 1 | S36: 0 | T36: 0 | U36: 0 | V36: 0 | W36: 0
A37: 37 | B37: 335 | C37: Manchester | D37: 21600 | E37: Beech Street School | F37: 499 | G37: 2 | H37: 0 | I37: 2 | J37: 0 | K37: 0 | L37: 0 | M37: 1 | N37: 0 | O37: 0 | P37: 1 | Q37: 1 | R37: 1 | S37: 0 | T37: 0 | U37: 0 | V37: 2 | W37: 0
A38: 80 | B38: 486 | C38: Shaker Regional | D38: 22135 | E38: Belmont Elementary School | F38: 343 | G38: 0 | H38: 0 | I38: 0 | J38: 0 | K38: 0 | L38: 0 | M38: 0 | N38: 0 | O38: 0 | P38: 0 | Q38: 0 | R38: 0 | S38: 0 | T38: 0 | U38: 0 | V38: 0 | W38: 0
A39: 80 | B39: 486 | C39: Shaker Regional | D39: 22145 | E39: Belmont High School | F39: 365 | G39: 1 | H39: 0 | I39: 0 | J39: 0 | K39: 0 | L39: 0 | M39: 0 | N39: 0 | O39: 0 | P39: 0 | Q39: 0 | R39: 0 | S39: 0 | T39: 0 | U39: 0 | V39: 0 | W39: 0
A40: 80 | B40: 486 | C40: Shaker Regional | D40: 22150 | E40: Belmont Middle School | F40: 376 | G40: 5 | H40: 5 | I40: 5 | J40: 5 | K40: 0 | L40: 0 | M40: 1 | N40: 0 | O40: 0 | P40: 4 | Q40: 5 | R40: 0 | S40: 0 | T40: 0 | U40: 0 | V40: 1 | W40: 0
A41: 3 | B41: 51 | C41: Berlin | D41: 27035 | E41: Berlin Elementary School | F41: 485 | G41: 0 | H41: 1 | I41: 0 | J41: 0 | K41: 0 | L41: 0 | M41: 0 | N41: 0 | O41: 0 | P41: 0 | Q41: 0 | R41: 0 | S41: 0 | T41: 0 | U41: 0 | V41: 0 | W41: 0
A42: 3 | B42: 51 | C42: Berlin | D42: 20045 | E42: Berlin Middle School | F42: 244 | G42: 1 | H42: 0 | I42: 1 | J42: 0 | K42: 0 | L42: 0 | M42: 0 | N42: 0 | O42: 0 | P42: 1 | Q42: 1 | R42: 0 | S42: 0 | T42: 0 | U42: 0 | V42: 0 | W42: 0
A43: 3 | B43: 51 | C43: Berlin | D43: 20050 | E43: Berlin Senior High School | F43: 371 | G43: 0 | H43: 0 | I43: 0 | J43: 0 | K43: 0 | L43: 0 | M43: 0 | N43: 0 | O43: 0 | P43: 0 | Q43: 0 | R43: 0 | S43: 0 | T43: 0 | U43: 0 | V43: 0 | W43: 0
A44: 70 | B44: 233 | C44: Hanover | D44: 20830 | E44: Bernice A. Ray School | F44: 451 | G44: 9 | H44: 1 | I44: 4 | J44: 0 | K44: 0 | L44: 0 | M44: 0 | N44: 0 | O44: 0 | P44: 4 | Q44: 3 | R44: 4 | S44: 5 | T44: 0 | U44: 5 | V44: 1 | W44: 0
A45: 35 | B45: 53 | C45: Bethlehem | D45: 21400 | E45: Bethlehem Elementary School | F45: 143 | G45: 2 | H45: 1 | I45: 1 | J45: 1 | K45: 0 | L45: 0 | M45: 0 | N45: 0 | O45: 0 | P45: 2 | Q45: 2 | R45: 0 | S45: 0 | T45: 0 | U45: 0 | V45: 0 | W45: 0
A46: 42 | B46: 371 | C46: Nashua | D46: 21865 | E46: Bicentennial Elementary School | F46: 458 | G46: 0 | H46: 0 | I46: 0 | J46: 0 | K46: 0 | L46: 0 | M46: 0 | N46: 0 | O46: 0 | P46: 0 | Q46: 0 | R46: 0 | S46: 0 | T46: 0 | U46: 0 | V46: 0 | W46: 0
A47: 42 | B47: 371 | C47: Nashua | D47: 21895 | E47: Birch Hill Elementary School | F47: 333 | G47: 0 | H47: 0 | I47: 0 | J47: 0 | K47: 0 | L47: 0 | M47: 0 | N47: 0 | O47: 0 | P47: 0 | Q47: 0 | R47: 0 | S47: 0 | T47: 0 | U47: 0 | V47: 0 | W47: 0
A48: 6 | B48: 101 | C48: Claremont | D48: 20145 | E48: Bluff School | F48: 143 | G48: 0 | H48: 0 | I48: 0 | J48: 0 | K48: 0 | L48: 0 | M48: 0 | N48: 0 | O48: 0 | P48: 0 | Q48: 0 | R48: 0 | S48: 0 | T48: 0 | U48: 0 | V48: 0 | W48: 0
A49: 46 | B49: 352 | C49: Merrimack Valley | D49: 22155 | E49: Boscawen Elementary School | F49: 219 | G49: 1 | H49: 0 | I49: 0 | J49: 0 | K49: 0 | L49: 0 | M49: 0 | N49: 0 | O49: 0 | P49: 0 | Q49: 0 | R49: 0 | S49: 0 | T49: 0 | U49: 0 | V49: 0 | W49: 0
A50: 67 | B50: 57 | C50: Bow | D50: 20680 | E50: Bow Elementary School | F50: 522 | G50: 0 | H50: 0 | I50: 0 | J50: 0 | K50: 0 | L50: 0 | M50: 0 | N50: 0 | O50: 0 | P50: 0 | Q50: 0 | R50: 0 | S50: 0 | T50: 0 | U50: 0 | V50: 0 | W50: 0
A51: 67 | B51: 57 | C51: Bow | D51: 27375 | E51: Bow High School | F51: 621 | G51: 6 | H51: 3 | I51: 4 | J51: 1 | K51: 3 | L51: 1 | M51: 0 | N51: 0 | O51: 0 | P51: 0 | Q51: 2 | R51: 2 | S51: 0 | T51: 0 | U51: 2 | V51: 1 | W51: 0
A52: 67 | B52: 57 | C52: Bow | D52: 20675 | E52: Bow Memorial School | F52: 526 | G52: 0 | H52: 0 | I52: 0 | J52: 0 | K52: 0 | L52: 0 | M52: 0 | N52: 0 | O52: 0 | P52: 0 | Q52: 0 | R52: 0 | S52: 0 | T52: 0 | U52: 0 | V52: 0 | W52: 0
A53: 87 | B53: 342 | C53: Mascenic Regional | D53: 26685 | E53: Boynton Middle School | F53: 267 | G53: 6 | H53: 0 | I53: 2 | J53: 0 | K53: 0 | L53: 0 | M53: 1 | N53: 0 | O53: 0 | P53: 1 | Q53: 1 | R53: 0 | S53: 0 | T53: 0 | U53: 1 | V53: 2 | W53: 1
A54: 4 | B54: 388 | C54: Newfound Area | D54: 27685 | E54: Bridgewater-Hebron Village School | F54: 136 | G54: 0 | H54: 0 | I54: 0 | J54: 0 | K54: 0 | L54: 0 | M54: 0 | N54: 0 | O54: 0 | P54: 0 | Q54: 0 | R54: 0 | S54: 0 | T54: 0 | U54: 0 | V54: 0 | W54: 0
A55: 4 | B55: 388 | C55: Newfound Area | D55: 20090 | E55: Bristol Elementary School | F55: 199 | G55: 0 | H55: 0 | I55: 0 | J55: 0 | K55: 0 | L55: 0 | M55: 0 | N55: 0 | O55: 0 | P55: 0 | Q55: 0 | R55: 0 | S55: 0 | T55: 0 | U55: 0 | V55: 0 | W55: 0
A56: 42 | B56: 371 | C56: Nashua | D56: 21925 | E56: Broad Street Elementary School | F56: 284 | G56: 0 | H56: 0 | I56: 0 | J56: 0 | K56: 0 | L56: 0 | M56: 0 | N56: 0 | O56: 0 | P56: 0 | Q56: 0 | R56: 0 | S56: 0 | T56: 0 | U56: 0 | V56: 0 | W56: 0
A57: 8 | B57: 111 | C57: Concord | D57: 20260 | E57: Broken Ground School | F57: 314 | G57: 1 | H57: 1 | I57: 1 | J57: 1 | K57: 0 | L57: 0 | M57: 0 | N57: 0 | O57: 0 | P57: 1 | Q57: 1 | R57: 0 | S57: 0 | T57: 0 | U57: 0 | V57: 1 | W57: 0
A58: 54 | B58: 461 | C58: Rochester | D58: 22675 | E58: Bud Carlson Academy | F58: 44 | G58: 0 | H58: 0 | I58: 0 | J58: 0 | K58: 0 | L58: 0 | M58: 0 | N58: 0 | O58: 0 | P58: 0 | Q58: 0 | R58: 0 | S58: 0 | T58: 0 | U58: 0 | V58: 0 | W58: 0
A59: 27 | B59: 315 | C59: Litchfield | D59: 27715 | E59: Campbell High School | F59: 433 | G59: 0 | H59: 0 | I59: 0 | J59: 0 | K59: 0 | L59: 0 | M59: 0 | N59: 0 | O59: 0 | P59: 0 | Q59: 0 | R59: 0 | S59: 0 | T59: 0 | U59: 0 | V59: 0 | W59: 0
A60: 48 | B60: 75 | C60: Campton | D60: 22335 | E60: Campton Elementary School | F60: 310 | G60: 2 | H60: 0 | I60: 0 | J60: 0 | K60: 0 | L60: 0 | M60: 0 | N60: 0 | O60: 0 | P60: 0 | Q60: 0 | R60: 0 | S60: 0 | T60: 0 | U60: 0 | V60: 0 | W60: 0
A61: 62 | B61: 343 | C61: Mascoma Valley Regional | D61: 21315 | E61: Canaan Elementary School | F61: 200 | G61: 3 | H61: 0 | I61: 0 | J61: 0 | K61: 0 | L61: 0 | M61: 0 | N61: 0 | O61: 0 | P61: 0 | Q61: 0 | R61: 0 | S61: 0 | T61: 0 | U61: 0 | V61: 0 | W61: 0
A62: 80 | B62: 486 | C62: Shaker Regional | D62: 22165 | E62: Canterbury Elementary School | F62: 105 | G62: 0 | H62: 0 | I62: 0 | J62: 0 | K62: 0 | L62: 0 | M62: 0 | N62: 0 | O62: 0 | P62: 0 | Q62: 0 | R62: 0 | S62: 0 | T62: 0 | U62: 0 | V62: 0 | W62: 0
A63: 41 | B63: 71 | C63: Brookline | D63: 27765 | E63: Captain Samuel Douglass Academy | F63: 247 | G63: 1 | H63: 0 | I63: 1 | J63: 0 | K63: 0 | L63: 0 | M63: 0 | N63: 0 | O63: 0 | P63: 1 | Q63: 0 | R63: 1 | S63: 0 | T63: 0 | U63: 0 | V63: 1 | W63: 0
A64: 49 | B64: 208 | C64: Governor Wentworth Regional | D64: 22430 | E64: Carpenter Elementary School | F64: 199 | G64: 0 | H64: 0 | I64: 0 | J64: 0 | K64: 0 | L64: 0 | M64: 0 | N64: 0 | O64: 0 | P64: 0 | Q64: 0 | R64: 0 | S64: 0 | T64: 0 | U64: 0 | V64: 0 | W64: 0
A65: 24 | B65: 555 | C65: Weare | D65: 26810 | E65: Center Woods School | F65: 544 | G65: 2 | H65: 0 | I65: 1 | J65: 0 | K65: 0 | L65: 0 | M65: 0 | N65: 0 | O65: 1 | P65: 0 | Q65: 0 | R65: 0 | S65: 0 | T65: 0 | U65: 1 | V65: 0 | W65: 0
A66: 54 | B66: 461 | C66: Rochester | D66: 22695 | E66: Chamberlain Street School | F66: 333 | G66: 8 | H66: 0 | I66: 3 | J66: 0 | K66: 0 | L66: 0 | M66: 0 | N66: 0 | O66: 0 | P66: 3 | Q66: 0 | R66: 1 | S66: 0 | T66: 0 | U66: 2 | V66: 0 | W66: 0
A67: 60 | B67: 174 | C67: Fall Mountain Regional | D67: 22975 | E67: Charlestown Middle School | F67: 143 | G67: 4 | H67: 0 | I67: 4 | J67: 0 | K67: 0 | L67: 0 | M67: 0 | N67: 0 | O67: 0 | P67: 4 | Q67: 3 | R67: 1 | S67: 1 | T67: 0 | U67: 2 | V67: 4 | W67: 0
A68: 60 | B68: 174 | C68: Fall Mountain Regional | D68: 22985 | E68: Charlestown Primary School | F68: 218 | G68: 0 | H68: 0 | I68: 0 | J68: 0 | K68: 0 | L68: 0 | M68: 0 | N68: 0 | O68: 0 | P68: 0 | Q68: 0 | R68: 0 | S68: 0 | T68: 0 | U68: 0 | V68: 0 | W68: 0
A69: 42 | B69: 371 | C69: Nashua | D69: 21930 | E69: Charlotte Ave Elementary School | F69: 373 | G69: 0 | H69: 0 | I69: 0 | J69: 0 | K69: 0 | L69: 0 | M69: 0 | N69: 0 | O69: 0 | P69: 0 | Q69: 0 | R69: 0 | S69: 0 | T69: 0 | U69: 0 | V69: 0 | W69: 0
A70: 82 | B70: 93 | C70: Chester | D70: 20500 | E70: Chester Academy | F70: 481 | G70: 0 | H70: 2 | I70: 0 | J70: 2 | K70: 0 | L70: 0 | M70: 0 | N70: 0 | O70: 0 | P70: 2 | Q70: 2 | R70: 0 | S70: 0 | T70: 0 | U70: 2 | V70: 0 | W70: 0
A71: 29 | B71: 95 | C71: Chesterfield | D71: 21140 | E71: Chesterfield Central School | F71: 260 | G71: 4 | H71: 1 | I71: 4 | J71: 1 | K71: 0 | L71: 0 | M71: 0 | N71: 0 | O71: 1 | P71: 3 | Q71: 2 | R71: 0 | S71: 0 | T71: 0 | U71: 2 | V71: 0 | W71: 0
A72: 53 | B72: 99 | C72: Chichester | D72: 22590 | E72: Chichester Central School | F72: 208 | G72: 0 | H72: 0 | I72: 0 | J72: 0 | K72: 0 | L72: 0 | M72: 0 | N72: 0 | O72: 0 | P72: 0 | Q72: 0 | R72: 0 | S72: 0 | T72: 0 | U72: 0 | V72: 0 | W72: 0
A73: 8 | B73: 111 | C73: Concord | D73: 20305 | E73: Christa McAuliffe School | F73: 346 | G73: 4 | H73: 0 | I73: 1 | J73: 0 | K73: 0 | L73: 0 | M73: 1 | N73: 0 | O73: 0 | P73: 0 | Q73: 1 | R73: 0 | S73: 0 | T73: 0 | U73: 0 | V73: 1 | W73: 0
A74: 6 | B74: 101 | C74: Claremont | D74: 20115 | E74: Claremont Middle School | F74: 396 | G74: 16 | H74: 0 | I74: 11 | J74: 0 | K74: 2 | L74: 4 | M74: 1 | N74: 1 | O74: 0 | P74: 4 | Q74: 3 | R74: 5 | S74: 0 | T74: 0 | U74: 2 | V74: 1 | W74: 0
A75: 6 | B75: 101 | C75: Claremont | D75: 29184 | E75: Claremont Preschool Center | F75: 51 | G75: 0 | H75: 0 | I75: 0 | J75: 0 | K75: 0 | L75: 0 | M75: 0 | N75: 0 | O75: 0 | P75: 0 | Q75: 0 | R75: 0 | S75: 0 | T75: 0 | U75: 0 | V75: 0 | W75: 0
A76: 39 | B76: 17 | C76: Amherst | D76: 21750 | E76: Clark-Wilkins School | F76: 644 | G76: 1 | H76: 0 | I76: 1 | J76: 0 | K76: 0 | L76: 0 | M76: 0 | N76: 0 | O76: 0 | P76: 1 | Q76: 0 | R76: 0 | S76: 0 | T76: 0 | U76: 1 | V76: 0 | W76: 0
A77: 401 | B77: 707 | C77: Cocheco Academy for the Arts | D77: 28455 | E77: Cocheco Academy for the Arts | F77: 42 | G77: 0 | H77: 0 | I77: 0 | J77: 0 | K77: 0 | L77: 0 | M77: 0 | N77: 0 | O77: 0 | P77: 0 | Q77: 0 | R77: 0 | S77: 0 | T77: 0 | U77: 0 | V77: 0 | W77: 0
A78: 201 | B78: 998 | C78: Coe-Brown Northwood Academy | D78: 22025 | E78: Coe-Brown Northwood Academy | F78: 673 | G78: 2 | H78: 2 | I78: 0 | J78: 0 | K78: 0 | L78: 0 | M78: 3 | N78: 0 | O78: 0 | P78: 0 | Q78: 0 | R78: 0 | S78: 0 | T78: 0 | U78: 0 | V78: 0 | W78: 0
A79: 7 | B79: 105 | C79: Colebrook | D79: 20195 | E79: Colebrook Academy and Elementary School (E) | F79: 196 | G79: 3 | H79: 1 | I79: 3 | J79: 1 | K79: 0 | L79: 1 | M79: 0 | N79: 0 | O79: 2 | P79: 0 | Q79: 3 | R79: 0 | S79: 0 | T79: 0 | U79: 1 | V79: 3 | W79: 0
A80: 7 | B80: 105 | C80: Colebrook | D80: 20185 | E80: Colebrook Academy and Elementary School (H) | F80: 100 | G80: 5 | H80: 1 | I80: 5 | J80: 1 | K80: 1 | L80: 0 | M80: 0 | N80: 0 | O80: 1 | P80: 3 | Q80: 5 | R80: 0 | S80: 0 | T80: 0 | U80: 1 | V80: 5 | W80: 0
A81: 401 | B81: 743 | C81: Compass Classical Academy Charter School | D81: 29166 | E81: Compass Classical Academy Charter School (E) | F81: 139 | G81: 2 | H81: 0 | I81: 0 | J81: 0 | K81: 0 | L81: 0 | M81: 0 | N81: 0 | O81: 0 | P81: 0 | Q81: 0 | R81: 0 | S81: 0 | T81: 0 | U81: 0 | V81: 0 | W81: 0
A82: 401 | B82: 743 | C82: Compass Classical Academy Charter School | D82: 29224 | E82: Compass Classical Academy Charter School (H) | F82: 12 | G82: 3 | H82: 0 | I82: 0 | J82: 0 | K82: 0 | L82: 0 | M82: 0 | N82: 0 | O82: 0 | P82: 0 | Q82: 0 | R82: 0 | S82: 0 | T82: 0 | U82: 0 | V82: 0 | W82: 0
A83: 47 | B83: 274 | C83: Jaffrey-Rindge Cooperative | D83: 22265 | E83: Conant High School | F83: 328 | G83: 1 | H83: 0 | I83: 0 | J83: 0 | K83: 0 | L83: 0 | M83: 0 | N83: 0 | O83: 0 | P83: 0 | Q83: 0 | R83: 0 | S83: 0 | T83: 0 | U83: 0 | V83: 0 | W83: 0
A84: 8 | B84: 111 | C84: Concord | D84: 20285 | E84: Concord High School | F84: 1537 | G84: 6 | H84: 1 | I84: 5 | J84: 1 | K84: 0 | L84: 0 | M84: 0 | N84: 0 | O84: 0 | P84: 5 | Q84: 3 | R84: 2 | S84: 0 | T84: 0 | U84: 0 | V84: 0 | W84: 0
A85: 1 | B85: 112 | C85: Contoocook Valley | D85: 22290 | E85: Conval Regional High School | F85: 708 | G85: 4 | H85: 3 | I85: 3 | J85: 3 | K85: 0 | L85: 0 | M85: 0 | N85: 0 | O85: 0 | P85: 3 | Q85: 3 | R85: 0 | S85: 0 | T85: 0 | U85: 1 | V85: 0 | W85: 0
A86: 9 | B86: 113 | C86: Conway | D86: 20340 | E86: Conway Elementary School | F86: 209 | G86: 0 | H86: 0 | I86: 0 | J86: 0 | K86: 0 | L86: 0 | M86: 0 | N86: 0 | O86: 0 | P86: 0 | Q86: 0 | R86: 0 | S86: 0 | T86: 0 | U86: 0 | V86: 0 | W86: 0
A87: 16 | B87: 172 | C87: Exeter Region Cooperative | D87: 20590 | E87: Cooperative Middle School | F87: 1057 | G87: 0 | H87: 0 | I87: 0 | J87: 0 | K87: 0 | L87: 0 | M87: 0 | N87: 0 | O87: 0 | P87: 0 | Q87: 0 | R87: 0 | S87: 0 | T87: 0 | U87: 0 | V87: 0 | W87: 0
A88: 100 | B88: 115 | C88: Cornish | D88: 20175 | E88: Cornish Elementary School | F88: 115 | G88: 0 | H88: 0 | I88: 0 | J88: 0 | K88: 0 | L88: 0 | M88: 0 | N88: 0 | O88: 0 | P88: 0 | Q88: 0 | R88: 0 | S88: 0 | T88: 0 | U88: 0 | V88: 0 | W88: 0
A89: 49 | B89: 208 | C89: Governor Wentworth Regional | D89: 27515 | E89: Crescent Lake School | F89: 212 | G89: 0 | H89: 0 | I89: 0 | J89: 0 | K89: 0 | L89: 0 | M89: 0 | N89: 0 | O89: 0 | P89: 0 | Q89: 0 | R89: 0 | S89: 0 | T89: 0 | U89: 0 | V89: 0 | W89: 0
A90: 99 | B90: 117 | C90: Croydon | D90: 21960 | E90: Croydon Village School | F90: 27 | G90: 0 | H90: 0 | I90: 0 | J90: 0 | K90: 0 | L90: 0 | M90: 0 | N90: 0 | O90: 0 | P90: 0 | Q90: 0 | R90: 0 | S90: 0 | T90: 0 | U90: 0 | V90: 0 | W90: 0
A91: 401 | B91: 723 | C91: CSI Charter School | D91: 28575 | E91: CSI Charter School | F91: 28 | G91: 0 | H91: 0 | I91: 0 | J91: 0 | K91: 0 | L91: 0 | M91: 0 | N91: 0 | O91: 0 | P91: 0 | Q91: 0 | R91: 0 | S91: 0 | T91: 0 | U91: 0 | V91: 0 | W91: 0
A92: 93 | B92: 363 | C92: Monadnock Regional | D92: 21715 | E92: Cutler Elementary School | F92: 277 | G92: 3 | H92: 1 | I92: 1 | J92: 0 | K92: 0 | L92: 0 | M92: 0 | N92: 0 | O92: 0 | P92: 1 | Q92: 0 | R92: 1 | S92: 0 | T92: 0 | U92: 1 | V92: 1 | W92: 0
A93: 84 | B93: 317 | C93: Littleton | D93: 21440 | E93: Daisy Bronson Junior High School | F93: 91 | G93: 0 | H93: 0 | I93: 0 | J93: 0 | K93: 0 | L93: 0 | M93: 0 | N93: 0 | O93: 0 | P93: 0 | Q93: 0 | R93: 0 | S93: 0 | T93: 0 | U93: 0 | V93: 0 | W93: 0
A94: 4 | B94: 388 | C94: Newfound Area | D94: 20095 | E94: Danbury Elementary School | F94: 57 | G94: 0 | H94: 0 | I94: 0 | J94: 0 | K94: 0 | L94: 0 | M94: 0 | N94: 0 | O94: 0 | P94: 0 | Q94: 0 | R94: 0 | S94: 0 | T94: 0 | U94: 0 | V94: 0 | W94: 0
A95: 17 | B95: 476 | C95: Sanborn Regional | D95: 20625 | E95: Daniel J. Bakie School | F95: 343 | G95: 0 | H95: 0 | I95: 1 | J95: 0 | K95: 0 | L95: 0 | M95: 0 | N95: 0 | O95: 0 | P95: 1 | Q95: 0 | R95: 1 | S95: 0 | T95: 0 | U95: 1 | V95: 0 | W95: 0
A96: 55 | B96: 534 | C96: Timberlane Regional | D96: 22745 | E96: Danville Elementary School | F96: 250 | G96: 0 | H96: 0 | I96: 0 | J96: 0 | K96: 0 | L96: 0 | M96: 0 | N96: 0 | O96: 0 | P96: 0 | Q96: 0 | R96: 0 | S96: 0 | T96: 0 | U96: 0 | V96: 0 | W96: 0
A97: 15 | B97: 261 | C97: Hooksett | D97: 28050 | E97: David R. Cawley Middle School | F97: 439 | G97: 4 | H97: 1 | I97: 4 | J97: 1 | K97: 0 | L97: 0 | M97: 0 | N97: 0 | O97: 1 | P97: 3 | Q97: 4 | R97: 0 | S97: 0 | T97: 0 | U97: 0 | V97: 4 | W97: 0
A98: 53 | B98: 127 | C98: Deerfield | D98: 22595 | E98: Deerfield Community School | F98: 498 | G98: 1 | H98: 1 | I98: 0 | J98: 0 | K98: 0 | L98: 0 | M98: 0 | N98: 0 | O98: 0 | P98: 0 | Q98: 0 | R98: 0 | S98: 0 | T98: 0 | U98: 0 | V98: 0 | W98: 0
A99: 10 | B99: 131 | C99: Derry Cooperative | D99: 29156 | E99: Derry Early Education Program | F99: 74 | G99: 0 | H99: 0 | I99: 0 | J99: 0 | K99: 0 | L99: 0 | M99: 0 | N99: 0 | O99: 0 | P99: 0 | Q99: 0 | R99: 0 | S99: 0 | T99: 0 | U99: 0 | V99: 0 | W99: 0
A100: 10 | B100: 131 | C100: Derry Cooperative | D100: 20380 | E100: Derry Village School | F100: 389 | G100: 1 | H100: 0 | I100: 1 | J100: 0 | K100: 0 | L100: 0 | M100: 0 | N100: 0 | O100: 0 | P100: 1 | Q100: 0 | R100: 1 | S100: 1 | T100: 0 | U100: 1 | V100: 1 | W100: 0
A101: 6 | B101: 101 | C101: Claremont | D101: 20165 | E101: Disnard Elementary School | F101: 240 | G101: 7 | H101: 2 | I101: 3 | J101: 1 | K101: 0 | L101: 0 | M101: 0 | N101: 0 | O101: 0 | P101: 3 | Q101: 3 | R101: 0 | S101: 0 | T101: 0 | U101: 0 | V101: 0 | W101: 0
A102: 11 | B102: 141 | C102: Dover | D102: 20435 | E102: Dover Middle School | F102: 1086 | G102: 1 | H102: 0 | I102: 1 | J102: 0 | K102: 0 | L102: 0 | M102: 0 | N102: 0 | O102: 0 | P102: 1 | Q102: 0 | R102: 1 | S102: 0 | T102: 0 | U102: 0 | V102: 0 | W102: 0
A103: 11 | B103: 141 | C103: Dover | D103: 20455 | E103: Dover Senior High School | F103: 1527 | G103: 2 | H103: 0 | I103: 2 | J103: 0 | K103: 0 | L103: 0 | M103: 0 | N103: 0 | O103: 0 | P103: 2 | Q103: 2 | R103: 0 | S103: 0 | T103: 0 | U103: 0 | V103: 0 | W103: 0
A104: 93 | B104: 363 | C104: Monadnock Regional | D104: 21665 | E104: Dr. George S. Emerson Elementary School | F104: 153 | G104: 0 | H104: 0 | I104: 0 | J104: 0 | K104: 0 | L104: 0 | M104: 0 | N104: 0 | O104: 0 | P104: 0 | Q104: 0 | R104: 0 | S104: 0 | T104: 0 | U104: 0 | V104: 0 | W104: 0
A105: 81 | B105: 267 | C105: Hudson | D105: 21045 | E105: Dr. H. O. Smith Elementary School | F105: 339 | G105: 0 | H105: 0 | I105: 0 | J105: 0 | K105: 0 | L105: 0 | M105: 0 | N105: 0 | O105: 0 | P105: 0 | Q105: 0 | R105: 0 | S105: 0 | T105: 0 | U105: 0 | V105: 0 | W105: 0
A106: 57 | B106: 473 | C106: Salem | D106: 22895 | E106: Dr. L. F. Soule School | F106: 249 | G106: 0 | H106: 0 | I106: 0 | J106: 0 | K106: 0 | L106: 0 | M106: 0 | N106: 0 | O106: 0 | P106: 0 | Q106: 0 | R106: 0 | S106: 0 | T106: 0 | U106: 0 | V106: 0 | W106: 0
A107: 42 | B107: 371 | C107: Nashua | D107: 21835 | E107: Dr. Norman W. Crisp School | F107: 379 | G107: 5 | H107: 2 | I107: 5 | J107: 2 | K107: 0 | L107: 0 | M107: 0 | N107: 0 | O107: 1 | P107: 4 | Q107: 5 | R107: 0 | S107: 0 | T107: 0 | U107: 2 | V107: 0 | W107: 0
A108: 1 | B108: 112 | C108: Contoocook Valley | D108: 22230 | E108: Dublin Consolidated School | F108: 47 | G108: 0 | H108: 0 | I108: 0 | J108: 0 | K108: 0 | L108: 0 | M108: 0 | N108: 0 | O108: 0 | P108: 0 | Q108: 0 | R108: 0 | S108: 0 | T108: 0 | U108: 0 | V108: 0 | W108: 0
A109: 67 | B109: 149 | C109: Dunbarton | D109: 20685 | E109: Dunbarton Elementary School | F109: 240 | G109: 0 | H109: 0 | I109: 0 | J109: 0 | K109: 0 | L109: 0 | M109: 0 | N109: 0 | O109: 0 | P109: 0 | Q109: 0 | R109: 0 | S109: 0 | T109: 0 | U109: 0 | V109: 0 | W109: 0
A110: 74 | B110: 33 | C110: Barrington | D110: 29010 | E110: Early Childhood Learning Center | F110: 140 | G110: 0 | H110: 0 | I110: 0 | J110: 0 | K110: 0 | L110: 0 | M110: 0 | N110: 0 | O110: 0 | P110: 0 | Q110: 0 | R110: 0 | S110: 0 | T110: 0 | U110: 0 | V110: 0 | W110: 0
A111: 10 | B111: 131 | C111: Derry Cooperative | D111: 20370 | E111: East Derry Memorial Elementary School | F111: 383 | G111: 3 | H111: 0 | I111: 0 | J111: 0 | K111: 0 | L111: 0 | M111: 0 | N111: 0 | O111: 0 | P111: 0 | Q111: 0 | R111: 0 | S111: 0 | T111: 0 | U111: 0 | V111: 0 | W111: 0
A112: 16 | B112: 153 | C112: East Kingston | D112: 20565 | E112: East Kingston Elementary School | F112: 122 | G112: 1 | H112: 0 | I112: 0 | J112: 0 | K112: 0 | L112: 0 | M112: 0 | N112: 0 | O112: 0 | P112: 1 | Q112: 0 | R112: 0 | S112: 0 | T112: 0 | U112: 0 | V112: 0 | W112: 0
A113: 54 | B113: 461 | C113: Rochester | D113: 22650 | E113: East Rochester School | F113: 269 | G113: 2 | H113: 1 | I113: 1 | J113: 1 | K113: 0 | L113: 0 | M113: 0 | N113: 0 | O113: 0 | P113: 1 | Q113: 1 | R113: 0 | S113: 0 | T113: 0 | U113: 0 | V113: 0 | W113: 0
A114: 20 | B114: 203 | C114: Gorham Randolph Shelburne Cooperative | D114: 20745 | E114: Edward Fenn School | F114: 143 | G114: 0 | H114: 0 | I114: 0 | J114: 0 | K114: 0 | L114: 0 | M114: 0 | N114: 0 | O114: 0 | P114: 0 | Q114: 0 | R114: 0 | S114: 0 | T114: 0 | U114: 0 | V114: 0 | W114: 0
A115: 49 | B115: 208 | C115: Governor Wentworth Regional | D115: 22395 | E115: Effingham Elementary School | F115: 102 | G115: 0 | H115: 0 | I115: 0 | J115: 0 | K115: 0 | L115: 0 | M115: 0 | N115: 0 | O115: 0 | P115: 0 | Q115: 0 | R115: 0 | S115: 0 | T115: 0 | U115: 0 | V115: 0 | W115: 0
A116: 83 | B116: 189 | C116: Fremont | D116: 20525 | E116: Ellis School | F116: 369 | G116: 1 | H116: 0 | I116: 1 | J116: 0 | K116: 1 | L116: 1 | M116: 0 | N116: 0 | O116: 1 | P116: 0 | Q116: 0 | R116: 1 | S116: 0 | T116: 0 | U116: 0 | V116: 0 | W116: 0
A117: 42 | B117: 371 | C117: Nashua | D117: 21890 | E117: Elm Street Middle School | F117: 1044 | G117: 1 | H117: 0 | I117: 0 | J117: 0 | K117: 0 | L117: 0 | M117: 0 | N117: 0 | O117: 0 | P117: 0 | Q117: 0 | R117: 0 | S117: 0 | T117: 0 | U117: 0 | V117: 0 | W117: 0
A118: 30 | B118: 285 | C118: Laconia | D118: 21290 | E118: Elm Street School | F118: 272 | G118: 0 | H118: 0 | I118: 0 | J118: 0 | K118: 0 | L118: 0 | M118: 0 | N118: 0 | O118: 0 | P118: 0 | Q118: 0 | R118: 0 | S118: 0 | T118: 0 | U118: 0 | V118: 0 | W118: 0
A119: 62 | B119: 343 | C119: Mascoma Valley Regional | D119: 21325 | E119: Enfield Village School | F119: 185 | G119: 0 | H119: 0 | I119: 0 | J119: 0 | K119: 0 | L119: 0 | M119: 0 | N119: 0 | O119: 0 | P119: 0 | Q119: 0 | R119: 0 | S119: 0 | T119: 0 | U119: 0 | V119: 0 | W119: 0
A120: 14 | B120: 165 | C120: Epping | D120: 26510 | E120: Epping Elementary School | F120: 451 | G120: 2 | H120: 0 | I120: 1 | J120: 0 | K120: 0 | L120: 0 | M120: 0 | N120: 0 | O120: 0 | P120: 1 | Q120: 0 | R120: 1 | S120: 1 | T120: 0 | U120: 0 | V120: 1 | W120: 1
A121: 14 | B121: 165 | C121: Epping | D121: 20515 | E121: Epping High School | F121: 248 | G121: 2 | H121: 2 | I121: 0 | J121: 0 | K121: 0 | L121: 0 | M121: 0 | N121: 0 | O121: 0 | P121: 2 | Q121: 0 | R121: 2 | S121: 0 | T121: 0 | U121: 2 | V121: 1 | W121: 0
A122: 14 | B122: 165 | C122: Epping | D122: 26505 | E122: Epping Middle School | F122: 195 | G122: 2 | H122: 0 | I122: 0 | J122: 0 | K122: 0 | L122: 0 | M122: 0 | N122: 0 | O122: 0 | P122: 2 | Q122: 0 | R122: 0 | S122: 0 | T122: 0 | U122: 0 | V122: 0 | W122: 0
A123: 53 | B123: 167 | C123: Epsom | D123: 22600 | E123: Epsom Central School | F123: 375 | G123: 1 | H123: 0 | I123: 0 | J123: 0 | K123: 0 | L123: 0 | M123: 0 | N123: 0 | O123: 0 | P123: 0 | Q123: 0 | R123: 0 | S123: 0 | T123: 0 | U123: 0 | V123: 0 | W123: 0
A124: 10 | B124: 131 | C124: Derry Cooperative | D124: 28465 | E124: Ernest P. Barka Elementary School | F124: 489 | G124: 0 | H124: 0 | I124: 0 | J124: 0 | K124: 0 | L124: 0 | M124: 0 | N124: 0 | O124: 0 | P124: 0 | Q124: 0 | R124: 0 | S124: 0 | T124: 0 | U124: 0 | V124: 0 | W124: 0
A125: 20 | B125: 171 | C125: Errol | D125: 20735 | E125: Errol Consolidated Elementary School | F125: 11 | G125: 1 | H125: 0 | I125: 0 | J125: 0 | K125: 0 | L125: 0 | M125: 0 | N125: 0 | O125: 0 | P125: 0 | Q125: 0 | R125: 0 | S125: 0 | T125: 0 | U125: 0 | V125: 0 | W125: 0
A126: 16 | B126: 172 | C126: Exeter Region Cooperative | D126: 20600 | E126: Exeter High School | F126: 1572 | G126: 0 | H126: 0 | I126: 0 | J126: 0 | K126: 0 | L126: 0 | M126: 0 | N126: 0 | O126: 0 | P126: 0 | Q126: 0 | R126: 0 | S126: 0 | T126: 0 | U126: 0 | V126: 0 | W126: 0
A127: 42 | B127: 371 | C127: Nashua | D127: 21840 | E127: Fairgrounds Elementary School | F127: 487 | G127: 2 | H127: 0 | I127: 2 | J127: 0 | K127: 1 | L127: 0 | M127: 0 | N127: 0 | O127: 1 | P127: 0 | Q127: 1 | R127: 1 | S127: 0 | T127: 0 | U127: 2 | V127: 0 | W127: 0
A128: 42 | B128: 371 | C128: Nashua | D128: 21875 | E128: Fairgrounds Middle School | F128: 667 | G128: 1 | H128: 0 | I128: 1 | J128: 0 | K128: 0 | L128: 0 | M128: 0 | N128: 0 | O128: 1 | P128: 0 | Q128: 0 | R128: 0 | S128: 0 | T128: 0 | U128: 0 | V128: 1 | W128: 0
A129: 60 | B129: 174 | C129: Fall Mountain Regional | D129: 22990 | E129: Fall Mountain Regional High School | F129: 498 | G129: 0 | H129: 0 | I129: 0 | J129: 0 | K129: 0 | L129: 0 | M129: 0 | N129: 0 | O129: 0 | P129: 0 | Q129: 0 | R129: 0 | S129: 0 | T129: 0 | U129: 0 | V129: 0 | W129: 0
A130: 60 | B130: 174 | C130: Fall Mountain Regional | D130: 27395 | E130: Fall Mountain Regional -Pre School Program | F130: 9 | G130: 0 | H130: 0 | I130: 0 | J130: 0 | K130: 0 | L130: 0 | M130: 0 | N130: 0 | O130: 0 | P130: 0 | Q130: 0 | R130: 0 | S130: 0 | T130: 0 | U130: 0 | V130: 0 | W130: 0
A131: 61 | B131: 175 | C131: Farmington | D131: 22050 | E131: Farmington Senior High School | F131: 241 | G131: 0 | H131: 0 | I131: 0 | J131: 0 | K131: 0 | L131: 0 | M131: 0 | N131: 0 | O131: 0 | P131: 0 | Q131: 0 | R131: 0 | S131: 0 | T131: 0 | U131: 0 | V131: 0 | W131: 0
A132: 63 | B132: 572 | C132: Wilton-Lyndeborough Cooperative | D132: 23060 | E132: Florence Rideout Elementary School | F132: 223 | G132: 0 | H132: 0 | I132: 0 | J132: 0 | K132: 0 | L132: 0 | M132: 0 | N132: 0 | O132: 0 | P132: 0 | Q132: 0 | R132: 0 | S132: 0 | T132: 0 | U132: 0 | V132: 0 | W132: 0
A133: 70 | B133: 142 | C133: Dresden | D133: 20825 | E133: Frances C. Richmond School | F133: 357 | G133: 1 | H133: 0 | I133: 0 | J133: 0 | K133: 1 | L133: 0 | M133: 0 | N133: 0 | O133: 0 | P133: 0 | Q133: 0 | R133: 0 | S133: 0 | T133: 0 | U133: 0 | V133: 0 | W133: 0
A134: 1 | B134: 112 | C134: Contoocook Valley | D134: 22245 | E134: Francestown Elementary School | F134: 47 | G134: 0 | H134: 0 | I134: 0 | J134: 0 | K134: 0 | L134: 0 | M134: 0 | N134: 0 | O134: 0 | P134: 0 | Q134: 0 | R134: 0 | S134: 0 | T134: 0 | U134: 0 | V134: 0 | W134: 0
A135: 29 | B135: 279 | C135: Keene | D135: 21190 | E135: Franklin Elementary School | F135: 201 | G135: 0 | H135: 0 | I135: 0 | J135: 0 | K135: 0 | L135: 0 | M135: 0 | N135: 0 | O135: 0 | P135: 0 | Q135: 0 | R135: 0 | S135: 0 | T135: 0 | U135: 0 | V135: 0 | W135: 0
A136: 18 | B136: 185 | C136: Franklin | D136: 20660 | E136: Franklin High School | F136: 269 | G136: 6 | H136: 2 | I136: 2 | J136: 1 | K136: 0 | L136: 1 | M136: 1 | N136: 0 | O136: 0 | P136: 0 | Q136: 6 | R136: 0 | S136: 0 | T136: 0 | U136: 2 | V136: 0 | W136: 1
A137: 18 | B137: 185 | C137: Franklin | D137: 26755 | E137: Franklin Middle School | F137: 357 | G137: 2 | H137: 0 | I137: 0 | J137: 0 | K137: 0 | L137: 0 | M137: 0 | N137: 0 | O137: 0 | P137: 0 | Q137: 0 | R137: 0 | S137: 0 | T137: 0 | U137: 0 | V137: 0 | W137: 0
A138: 15 | B138: 261 | C138: Hooksett | D138: 20550 | E138: Fred C. Underhill School | F138: 377 | G138: 0 | H138: 0 | I138: 0 | J138: 0 | K138: 0 | L138: 0 | M138: 0 | N138: 0 | O138: 0 | P138: 0 | Q138: 0 | R138: 0 | S138: 0 | T138: 0 | U138: 0 | V138: 0 | W138: 0
A139: 13 | B139: 187 | C139: Freedom | D139: 20350 | E139: Freedom Elementary School | F139: 55 | G139: 0 | H139: 0 | I139: 0 | J139: 0 | K139: 0 | L139: 0 | M139: 0 | N139: 0 | O139: 0 | P139: 0 | Q139: 0 | R139: 0 | S139: 0 | T139: 0 | U139: 0 | V139: 0 | W139: 0
A140: 29 | B140: 279 | C140: Keene | D140: 21165 | E140: Fuller Elementary School | F140: 314 | G140: 3 | H140: 0 | I140: 1 | J140: 0 | K140: 0 | L140: 0 | M140: 0 | N140: 0 | O140: 0 | P140: 0 | Q140: 0 | R140: 1 | S140: 0 | T140: 0 | U140: 0 | V140: 0 | W140: 0
A141: 11 | B141: 141 | C141: Dover | D141: 20430 | E141: Garrison School | F141: 375 | G141: 0 | H141: 0 | I141: 0 | J141: 0 | K141: 0 | L141: 0 | M141: 0 | N141: 0 | O141: 0 | P141: 0 | Q141: 0 | R141: 0 | S141: 0 | T141: 0 | U141: 0 | V141: 0 | W141: 0
A142: 401 | B142: 742 | C142: Gate City Charter School For the Arts | D142: 29151 | E142: Gate City Charter School for the Arts | F142: 140 | G142: 0 | H142: 0 | I142: 0 | J142: 0 | K142: 0 | L142: 0 | M142: 0 | N142: 0 | O142: 0 | P142: 0 | Q142: 0 | R142: 0 | S142: 0 | T142: 0 | U142: 0 | V142: 0 | W142: 0
A143: 10 | B143: 131 | C143: Derry Cooperative | D143: 20420 | E143: Gilbert H. Hood Middle School | F143: 578 | G143: 4 | H143: 0 | I143: 2 | J143: 0 | K143: 0 | L143: 0 | M143: 0 | N143: 0 | O143: 0 | P143: 2 | Q143: 0 | R143: 2 | S143: 0 | T143: 0 | U143: 0 | V143: 0 | W143: 0
A144: 73 | B144: 191 | C144: Gilford | D144: 21245 | E144: Gilford Elementary School | F144: 304 | G144: 1 | H144: 0 | I144: 1 | J144: 0 | K144: 0 | L144: 0 | M144: 0 | N144: 0 | O144: 0 | P144: 1 | Q144: 0 | R144: 1 | S144: 1 | T144: 0 | U144: 0 | V144: 1 | W144: 0
A145: 73 | B145: 191 | C145: Gilford | D145: 21240 | E145: Gilford High School | F145: 493 | G145: 1 | H145: 1 | I145: 1 | J145: 1 | K145: 0 | L145: 0 | M145: 0 | N145: 0 | O145: 0 | P145: 2 | Q145: 0 | R145: 0 | S145: 0 | T145: 0 | U145: 2 | V145: 0 | W145: 0
A146: 73 | B146: 191 | C146: Gilford | D146: 26995 | E146: Gilford Middle School | F146: 333 | G146: 14 | H146: 11 | I146: 0 | J146: 0 | K146: 0 | L146: 0 | M146: 0 | N146: 0 | O146: 0 | P146: 0 | Q146: 0 | R146: 0 | S146: 0 | T146: 0 | U146: 0 | V146: 0 | W146: 0
A147: 79 | B147: 195 | C147: Gilmanton | D147: 21250 | E147: Gilmanton Elementary School | F147: 387 | G147: 3 | H147: 1 | I147: 0 | J147: 0 | K147: 0 | L147: 0 | M147: 0 | N147: 0 | O147: 0 | P147: 0 | Q147: 0 | R147: 0 | S147: 0 | T147: 0 | U147: 0 | V147: 0 | W147: 0
A148: 93 | B148: 363 | C148: Monadnock Regional | D148: 21670 | E148: Gilsum STEAM Academy | F148: 57 | G148: 0 | H148: 0 | I148: 0 | J148: 0 | K148: 0 | L148: 0 | M148: 0 | N148: 0 | O148: 0 | P148: 0 | Q148: 0 | R148: 0 | S148: 0 | T148: 0 | U148: 0 | V148: 0 | W148: 0
A149: 19 | B149: 199 | C149: Goffstown | D149: 28525 | E149: Glen Lake School | F149: 175 | G149: 0 | H149: 0 | I149: 0 | J149: 0 | K149: 0 | L149: 0 | M149: 0 | N149: 0 | O149: 0 | P149: 0 | Q149: 0 | R149: 0 | S149: 0 | T149: 0 | U149: 0 | V149: 0 | W149: 0
A150: 19 | B150: 199 | C150: Goffstown | D150: 20700 | E150: Goffstown High School | F150: 1046 | G150: 1 | H150: 1 | I150: 1 | J150: 1 | K150: 0 | L150: 0 | M150: 0 | N150: 0 | O150: 0 | P150: 1 | Q150: 1 | R150: 0 | S150: 0 | T150: 0 | U150: 0 | V150: 0 | W150: 0
A151: 95 | B151: 575 | C151: Windham | D151: 21130 | E151: Golden Brook Elementary School | F151: 1011 | G151: 0 | H151: 0 | I151: 0 | J151: 0 | K151: 0 | L151: 0 | M151: 0 | N151: 0 | O151: 0 | P151: 0 | Q151: 0 | R151: 0 | S151: 0 | T151: 0 | U151: 0 | V151: 0 | W151: 0
A152: 54 | B152: 461 | C152: Rochester | D152: 22725 | E152: Gonic School | F152: 218 | G152: 0 | H152: 0 | I152: 0 | J152: 0 | K152: 0 | L152: 0 | M152: 0 | N152: 0 | O152: 0 | P152: 0 | Q152: 0 | R152: 0 | S152: 0 | T152: 0 | U152: 0 | V152: 0 | W152: 0
A153: 20 | B153: 203 | C153: Gorham Randolph Shelburne Cooperative | D153: 20750 | E153: Gorham High School | F153: 141 | G153: 0 | H153: 0 | I153: 0 | J153: 0 | K153: 0 | L153: 0 | M153: 0 | N153: 0 | O153: 0 | P153: 0 | Q153: 0 | R153: 0 | S153: 0 | T153: 0 | U153: 0 | V153: 0 | W153: 0
A154: 20 | B154: 203 | C154: Gorham Randolph Shelburne Cooperative | D154: 27005 | E154: Gorham Middle School | F154: 102 | G154: 0 | H154: 0 | I154: 0 | J154: 0 | K154: 0 | L154: 0 | M154: 0 | N154: 0 | O154: 0 | P154: 0 | Q154: 0 | R154: 0 | S154: 0 | T154: 0 | U154: 0 | V154: 0 | W154: 0
A155: 37 | B155: 335 | C155: Manchester | D155: 21530 | E155: Gossler Park School | F155: 332 | G155: 0 | H155: 0 | I155: 0 | J155: 0 | K155: 0 | L155: 0 | M155: 0 | N155: 0 | O155: 0 | P155: 0 | Q155: 0 | R155: 0 | S155: 0 | T155: 0 | U155: 0 | V155: 0 | W155: 0
A156: 401 | B156: 702 | C156: Granite State Arts Academy Charter School | D156: 29153 | E156: Granite State Arts Academy Charter School | F156: 114 | G156: 0 | H156: 0 | I156: 0 | J156: 0 | K156: 0 | L156: 0 | M156: 0 | N156: 0 | O156: 0 | P156: 0 | Q156: 0 | R156: 0 | S156: 0 | T156: 0 | U156: 0 | V156: 0 | W156: 0
A157: 75 | B157: 211 | C157: Grantham | D157: 21330 | E157: Grantham Village School | F157: 257 | G157: 2 | H157: 0 | I157: 0 | J157: 0 | K157: 0 | L157: 0 | M157: 0 | N157: 0 | O157: 0 | P157: 0 | Q157: 0 | R157: 0 | S157: 0 | T157: 0 | U157: 0 | V157: 0 | W157: 0
A158: 401 | B158: 709 | C158: Great Bay Charter School | D158: 28445 | E158: Great Bay Charter School (H) | F158: 94 | G158: 0 | H158: 0 | I158: 0 | J158: 0 | K158: 0 | L158: 0 | M158: 0 | N158: 0 | O158: 0 | P158: 0 | Q158: 0 | R158: 0 | S158: 0 | T158: 0 | U158: 0 | V158: 0 | W158: 0
A159: 401 | B159: 709 | C159: Great Bay Charter School | D159: 28620 | E159: Great Bay Charter School (M) | F159: 45 | G159: 1 | H159: 0 | I159: 0 | J159: 0 | K159: 0 | L159: 0 | M159: 0 | N159: 0 | O159: 0 | P159: 0 | Q159: 0 | R159: 0 | S159: 0 | T159: 0 | U159: 0 | V159: 0 | W159: 0
A160: 1 | B160: 112 | C160: Contoocook Valley | D160: 22210 | E160: Great Brook School | F160: 254 | G160: 4 | H160: 1 | I160: 0 | J160: 0 | K160: 0 | L160: 0 | M160: 0 | N160: 0 | O160: 0 | P160: 0 | Q160: 0 | R160: 0 | S160: 0 | T160: 0 | U160: 0 | V160: 0 | W160: 0
A161: 37 | B161: 335 | C161: Manchester | D161: 21610 | E161: Green Acres School | F161: 443 | G161: 0 | H161: 0 | I161: 0 | J161: 0 | K161: 0 | L161: 0 | M161: 0 | N161: 0 | O161: 0 | P161: 0 | Q161: 0 | R161: 0 | S161: 0 | T161: 0 | U161: 0 | V161: 0 | W161: 0
A162: 1 | B162: 112 | C162: Contoocook Valley | D162: 22250 | E162: Greenfield Elementary School | F162: 86 | G162: 0 | H162: 0 | I162: 0 | J162: 0 | K162: 0 | L162: 0 | M162: 0 | N162: 0 | O162: 0 | P162: 0 | Q162: 0 | R162: 0 | S162: 0 | T162: 0 | U162: 0 | V162: 0 | W162: 0
A163: 50 | B163: 215 | C163: Greenland | D163: 22450 | E163: Greenland Central School | F163: 386 | G163: 1 | H163: 0 | I163: 1 | J163: 0 | K163: 0 | L163: 0 | M163: 0 | N163: 0 | O163: 0 | P163: 1 | Q163: 1 | R163: 0 | S163: 0 | T163: 0 | U163: 0 | V163: 0 | W163: 0
A164: 27 | B164: 315 | C164: Litchfield | D164: 21095 | E164: Griffin Memorial School | F164: 414 | G164: 3 | H164: 0 | I164: 1 | J164: 0 | K164: 0 | L164: 0 | M164: 0 | N164: 0 | O164: 0 | P164: 1 | Q164: 0 | R164: 0 | S164: 0 | T164: 0 | U164: 0 | V164: 1 | W164: 0
A165: 10 | B165: 131 | C165: Derry Cooperative | D165: 20390 | E165: Grinnell School | F165: 336 | G165: 7 | H165: 1 | I165: 1 | J165: 0 | K165: 1 | L165: 0 | M165: 0 | N165: 0 | O165: 0 | P165: 0 | Q165: 1 | R165: 0 | S165: 0 | T165: 0 | U165: 0 | V165: 0 | W165: 0
A166: 58 | B166: 407 | C166: Northumberland | D166: 22905 | E166: Groveton Elementary School | F166: 125 | G166: 2 | H166: 1 | I166: 0 | J166: 0 | K166: 0 | L166: 0 | M166: 0 | N166: 0 | O166: 0 | P166: 2 | Q166: 1 | R166: 0 | S166: 0 | T166: 0 | U166: 1 | V166: 0 | W166: 0
A167: 58 | B167: 407 | C167: Northumberland | D167: 22900 | E167: Groveton High School | F167: 123 | G167: 1 | H167: 0 | I167: 0 | J167: 0 | K167: 0 | L167: 0 | M167: 0 | N167: 0 | O167: 0 | P167: 0 | Q167: 0 | R167: 0 | S167: 0 | T167: 0 | U167: 0 | V167: 0 | W167: 0
A168: 58 | B168: 407 | C168: Northumberland | D168: 26600 | E168: Groveton High School (Middle) | F168: 80 | G168: 0 | H168: 0 | I168: 0 | J168: 0 | K168: 0 | L168: 0 | M168: 0 | N168: 0 | O168: 0 | P168: 0 | Q168: 0 | R168: 0 | S168: 0 | T168: 0 | U168: 0 | V168: 0 | W168: 0
A169: 37 | B169: 335 | C169: Manchester | D169: 21625 | E169: Hallsville School | F169: 238 | G169: 0 | H169: 0 | I169: 0 | J169: 0 | K169: 0 | L169: 0 | M169: 0 | N169: 0 | O169: 0 | P169: 0 | Q169: 0 | R169: 0 | S169: 0 | T169: 0 | U169: 0 | V169: 0 | W169: 0
A170: 55 | B170: 223 | C170: Hampstead | D170: 22755 | E170: Hampstead Central School | F170: 443 | G170: 3 | H170: 0 | I170: 1 | J170: 0 | K170: 0 | L170: 0 | M170: 0 | N170: 0 | O170: 0 | P170: 1 | Q170: 0 | R170: 1 | S170: 0 | T170: 0 | U170: 1 | V170: 0 | W170: 1
A171: 55 | B171: 223 | C171: Hampstead | D171: 22750 | E171: Hampstead Middle School | F171: 363 | G171: 9 | H171: 6 | I171: 9 | J171: 6 | K171: 0 | L171: 1 | M171: 4 | N171: 0 | O171: 0 | P171: 4 | Q171: 1 | R171: 1 | S171: 0 | T171: 0 | U171: 0 | V171: 0 | W171: 0
A172: 90 | B172: 225 | C172: Hampton | D172: 20790 | E172: Hampton Academy | F172: 355 | G172: 0 | H172: 0 | I172: 1 | J172: 1 | K172: 0 | L172: 1 | M172: 0 | N172: 0 | O172: 0 | P172: 1 | Q172: 1 | R172: 0 | S172: 0 | T172: 0 | U172: 0 | V172: 0 | W172: 1
A173: 90 | B173: 225 | C173: Hampton | D173: 20770 | E173: Hampton Centre School | F173: 302 | G173: 0 | H173: 0 | I173: 0 | J173: 0 | K173: 0 | L173: 0 | M173: 0 | N173: 0 | O173: 0 | P173: 0 | Q173: 0 | R173: 0 | S173: 0 | T173: 0 | U173: 0 | V173: 0 | W173: 0
A174: 1 | B174: 112 | C174: Contoocook Valley | D174: 22260 | E174: Hancock Elementary School | F174: 49 | G174: 0 | H174: 0 | I174: 0 | J174: 0 | K174: 0 | L174: 0 | M174: 0 | N174: 0 | O174: 0 | P174: 0 | Q174: 0 | R174: 0 | S174: 0 | T174: 0 | U174: 0 | V174: 0 | W174: 0
A175: 70 | B175: 142 | C175: Dresden | D175: 20820 | E175: Hanover High School | F175: 697 | G175: 1 | H175: 0 | I175: 1 | J175: 0 | K175: 1 | L175: 0 | M175: 0 | N175: 0 | O175: 1 | P175: 0 | Q175: 1 | R175: 1 | S175: 0 | T175: 0 | U175: 0 | V175: 0 | W175: 0
A176: 88 | B176: 295 | C176: Lebanon | D176: 21335 | E176: Hanover Street School | F176: 310 | G176: 1 | H176: 0 | I176: 0 | J176: 0 | K176: 0 | L176: 0 | M176: 0 | N176: 0 | O176: 0 | P176: 0 | Q176: 0 | R176: 0 | S176: 0 | T176: 0 | U176: 0 | V176: 0 | W176: 0
A177: 66 | B177: 263 | C177: Hopkinton | D177: 20975 | E177: Harold Martin School | F177: 262 | G177: 2 | H177: 0 | I177: 2 | J177: 0 | K177: 0 | L177: 0 | M177: 0 | N177: 2 | O177: 0 | P177: 0 | Q177: 2 | R177: 0 | S177: 0 | T177: 0 | U177: 2 | V177: 2 | W177: 0
A178: 23 | B178: 238 | C178: Haverhill Cooperative | D178: 26875 | E178: Haverhill Cooperative Middle School | F178: 237 | G178: 8 | H178: 1 | I178: 4 | J178: 0 | K178: 0 | L178: 0 | M178: 0 | N178: 0 | O178: 0 | P178: 4 | Q178: 4 | R178: 0 | S178: 0 | T178: 0 | U178: 0 | V178: 0 | W178: 0
A179: 24 | B179: 245 | C179: Henniker | D179: 20935 | E179: Henniker Community School | F179: 380 | G179: 0 | H179: 0 | I179: 0 | J179: 0 | K179: 0 | L179: 0 | M179: 0 | N179: 0 | O179: 0 | P179: 0 | Q179: 0 | R179: 0 | S179: 0 | T179: 0 | U179: 0 | V179: 0 | W179: 0
A180: 37 | B180: 335 | C180: Manchester | D180: 27595 | E180: Henry J. McLaughlin Jr. Middle School | F180: 711 | G180: 0 | H180: 0 | I180: 0 | J180: 0 | K180: 0 | L180: 0 | M180: 0 | N180: 0 | O180: 0 | P180: 0 | Q180: 0 | R180: 0 | S180: 0 | T180: 0 | U180: 0 | V180: 0 | W180: 0
A181: 15 | B181: 79 | C181: Candia | D181: 20535 | E181: Henry W. Moore School | F181: 267 | G181: 1 | H181: 0 | I181: 0 | J181: 0 | K181: 0 | L181: 0 | M181: 0 | N181: 0 | O181: 0 | P181: 0 | Q181: 0 | R181: 0 | S181: 0 | T181: 0 | U181: 0 | V181: 0 | W181: 0
A182: 37 | B182: 335 | C182: Manchester | D182: 21640 | E182: Henry Wilson Elementary School | F182: 427 | G182: 0 | H182: 0 | I182: 0 | J182: 0 | K182: 0 | L182: 0 | M182: 0 | N182: 0 | O182: 0 | P182: 0 | Q182: 0 | R182: 0 | S182: 0 | T182: 0 | U182: 0 | V182: 0 | W182: 0
A183: 61 | B183: 175 | C183: Farmington | D183: 22055 | E183: Henry Wilson Memorial School | F183: 298 | G183: 4 | H183: 2 | I183: 0 | J183: 0 | K183: 0 | L183: 0 | M183: 0 | N183: 0 | O183: 0 | P183: 0 | Q183: 0 | R183: 0 | S183: 0 | T183: 0 | U183: 0 | V183: 0 | W183: 0
A184: 40 | B184: 357 | C184: Milford | D184: 27895 | E184: Heron Pond Elementary School | F184: 572 | G184: 0 | H184: 0 | I184: 0 | J184: 0 | K184: 0 | L184: 0 | M184: 0 | N184: 0 | O184: 0 | P184: 0 | Q184: 0 | R184: 0 | S184: 0 | T184: 0 | U184: 0 | V184: 0 | W184: 0
A185: 87 | B185: 342 | C185: Mascenic Regional | D185: 28990 | E185: Highbridge Hill Elementary School | F185: 351 | G185: 0 | H185: 0 | I185: 0 | J185: 0 | K185: 0 | L185: 0 | M185: 0 | N185: 0 | O185: 0 | P185: 0 | Q185: 0 | R185: 0 | S185: 0 | T185: 0 | U185: 0 | V185: 0 | W185: 0
A186: 37 | B186: 335 | C186: Manchester | D186: 21560 | E186: Highland-Goffes Falls School | F186: 380 | G186: 4 | H186: 0 | I186: 4 | J186: 0 | K186: 0 | L186: 0 | M186: 1 | N186: 0 | O186: 2 | P186: 1 | Q186: 4 | R186: 0 | S186: 0 | T186: 0 | U186: 4 | V186: 0 | W186: 0
A187: 81 | B187: 267 | C187: Hudson | D187: 27900 | E187: Hills Garrison Elementary School | F187: 381 | G187: 1 | H187: 0 | I187: 1 | J187: 0 | K187: 0 | L187: 0 | M187: 0 | N187: 0 | O187: 0 | P187: 1 | Q187: 1 | R187: 0 | S187: 0 | T187: 0 | U187: 0 | V187: 0 | W187: 0
A188: 34 | B188: 251 | C188: Hillsboro-Deering Cooperative | D188: 20955 | E188: Hillsboro-Deering Elementary School | F188: 388 | G188: 4 | H188: 0 | I188: 4 | J188: 0 | K188: 0 | L188: 0 | M188: 0 | N188: 2 | O188: 0 | P188: 2 | Q188: 0 | R188: 4 | S188: 1 | T188: 0 | U188: 4 | V188: 2 | W188: 2
A189: 34 | B189: 251 | C189: Hillsboro-Deering Cooperative | D189: 20950 | E189: Hillsboro-Deering High School | F189: 382 | G189: 3 | H189: 2 | I189: 0 | J189: 1 | K189: 0 | L189: 0 | M189: 0 | N189: 0 | O189: 0 | P189: 1 | Q189: 0 | R189: 1 | S189: 0 | T189: 0 | U189: 1 | V189: 1 | W189: 1
A190: 34 | B190: 251 | C190: Hillsboro-Deering Cooperative | D190: 20960 | E190: Hillsboro-Deering Middle School | F190: 267 | G190: 2 | H190: 1 | I190: 1 | J190: 0 | K190: 0 | L190: 0 | M190: 0 | N190: 1 | O190: 0 | P190: 1 | Q190: 0 | R190: 2 | S190: 0 | T190: 0 | U190: 1 | V190: 0 | W190: 0
A191: 37 | B191: 335 | C191: Manchester | D191: 21520 | E191: Hillside Middle School | F191: 791 | G191: 0 | H191: 0 | I191: 0 | J191: 0 | K191: 0 | L191: 0 | M191: 0 | N191: 0 | O191: 0 | P191: 0 | Q191: 0 | R191: 0 | S191: 0 | T191: 0 | U191: 0 | V191: 0 | W191: 0
A192: 92 | B192: 255 | C192: Hinsdale | D192: 21680 | E192: Hinsdale Elementary School | F192: 270 | G192: 15 | H192: 0 | I192: 8 | J192: 0 | K192: 0 | L192: 0 | M192: 0 | N192: 0 | O192: 1 | P192: 7 | Q192: 1 | R192: 6 | S192: 0 | T192: 0 | U192: 1 | V192: 0 | W192: 0
A193: 92 | B193: 255 | C193: Hinsdale | D193: 21675 | E193: Hinsdale High School | F193: 132 | G193: 0 | H193: 0 | I193: 0 | J193: 0 | K193: 0 | L193: 0 | M193: 0 | N193: 0 | O193: 0 | P193: 0 | Q193: 0 | R193: 0 | S193: 0 | T193: 0 | U193: 0 | V193: 0 | W193: 0
A194: 92 | B194: 255 | C194: Hinsdale | D194: 26985 | E194: Hinsdale Middle High School | F194: 125 | G194: 2 | H194: 0 | I194: 1 | J194: 0 | K194: 0 | L194: 0 | M194: 0 | N194: 0 | O194: 0 | P194: 1 | Q194: 0 | R194: 1 | S194: 0 | T194: 0 | U194: 0 | V194: 0 | W194: 0
A195: 48 | B195: 257 | C195: Holderness | D195: 22345 | E195: Holderness Central School | F195: 157 | G195: 0 | H195: 0 | I195: 0 | J195: 0 | K195: 0 | L195: 0 | M195: 0 | N195: 0 | O195: 0 | P195: 0 | Q195: 0 | R195: 0 | S195: 0 | T195: 0 | U195: 0 | V195: 0 | W195: 0
A196: 41 | B196: 259 | C196: Hollis | D196: 21815 | E196: Hollis Primary School | F196: 335 | G196: 0 | H196: 0 | I196: 0 | J196: 0 | K196: 0 | L196: 0 | M196: 0 | N196: 0 | O196: 0 | P196: 0 | Q196: 0 | R196: 0 | S196: 0 | T196: 0 | U196: 0 | V196: 0 | W196: 0
A197: 41 | B197: 259 | C197: Hollis | D197: 27530 | E197: Hollis Upper Elementary School | F197: 282 | G197: 0 | H197: 0 | I197: 0 | J197: 0 | K197: 0 | L197: 0 | M197: 0 | N197: 0 | O197: 0 | P197: 0 | Q197: 0 | R197: 0 | S197: 0 | T197: 0 | U197: 0 | V197: 0 | W197: 0
A198: 41 | B198: 260 | C198: Hollis-Brookline Cooperative | D198: 21810 | E198: Hollis-Brookline High School | F198: 817 | G198: 12 | H198: 6 | I198: 3 | J198: 2 | K198: 2 | L198: 0 | M198: 1 | N198: 0 | O198: 0 | P198: 3 | Q198: 3 | R198: 2 | S198: 0 | T198: 0 | U198: 1 | V198: 2 | W198: 0
A199: 41 | B199: 260 | C199: Hollis-Brookline Cooperative | D199: 21805 | E199: Hollis-Brookline Middle School | F199: 383 | G199: 3 | H199: 1 | I199: 0 | J199: 0 | K199: 0 | L199: 0 | M199: 0 | N199: 0 | O199: 0 | P199: 0 | Q199: 0 | R199: 0 | S199: 0 | T199: 0 | U199: 0 | V199: 0 | W199: 0
A200: 15 | B200: 261 | C200: Hooksett | D200: 20540 | E200: Hooksett Memorial School | F200: 398 | G200: 1 | H200: 0 | I200: 1 | J200: 0 | K200: 0 | L200: 0 | M200: 0 | N200: 0 | O200: 0 | P200: 1 | Q200: 0 | R200: 1 | S200: 0 | T200: 0 | U200: 1 | V200: 0 | W200: 0
A201: 66 | B201: 263 | C201: Hopkinton | D201: 20970 | E201: Hopkinton High School | F201: 325 | G201: 5 | H201: 1 | I201: 3 | J201: 1 | K201: 0 | L201: 2 | M201: 0 | N201: 0 | O201: 0 | P201: 1 | Q201: 1 | R201: 2 | S201: 0 | T201: 0 | U201: 0 | V201: 0 | W201: 0
... 304 more rows

Sheet Student Discipline (hidden)
H1: December 7, 2021
A2: New Hampshire Department of Education
A3: Division of Education Analytics and Resources, Bureau of Educational Statistics
A4: 101 Pleasant Street, Concord NH 03301-3860
A5: Telephone: (603) 271-2778 Fax: (603) 271-3875
A7: 2020-2021 NH School Safety Data Collection
A8: Section 4: Student Discipline
G9: Incidents which resulted in suspensions or expulsions for at least 1 full day: | Q9: Count of students:
A10: SAU | B10: District ID | C10: District | D10: School ID | E10: School | F10: Enrollment | G10: Violent Incidents With Physical Injury Requiring Professional Medical Attention | H10: Violent Incidents, including Harassment & Bullying (Without Physical Injury) | I10: Weapons Possession | J10: Illicit Drugs | K10: Alcohol | L10: Other Incidents Related to Drug or Alcohol Use, Violence or Weapons Possession | M10: Disruption | N10: Defiance | O10: Inappropriate Language | P10: All Other Incidents | Q10: Who Received In-School Suspensions | R10: Who Received Out-of-School Suspensions | S10: Who Were Expelled
A11: 9 | B11: 113 | C11: Conway | D11: 27010 | E11: A. Crosby Kennett Middle School | F11: 241 | G11: 0 | H11: 0 | I11: 0 | J11: 1 | K11: 0 | L11: 0 | M11: 6 | N11: 0 | O11: 4 | P11: 7 | Q11: 13 | R11: 8 | S11: 0
A12: 8 | B12: 111 | C12: Concord | D12: 20240 | E12: Abbot-Downing School | F12: 325 | G12: 0 | H12: 0 | I12: 0 | J12: 0 | K12: 0 | L12: 0 | M12: 0 | N12: 0 | O12: 0 | P12: 2 | Q12: 1 | R12: 1 | S12: 0
A13: 401 | B13: 725 | C13: Academy for Science and Design Charter School | D13: 28615 | E13: Academy for Science and Design Charter (H) | F13: 222 | G13: 0 | H13: 0 | I13: 0 | J13: 0 | K13: 0 | L13: 0 | M13: 0 | N13: 0 | O13: 0 | P13: 0 | Q13: 0 | R13: 0 | S13: 0
A14: 401 | B14: 725 | C14: Academy for Science and Design Charter School | D14: 28580 | E14: Academy for Science and Design Charter (M) | F14: 319 | G14: 0 | H14: 0 | I14: 0 | J14: 0 | K14: 0 | L14: 0 | M14: 0 | N14: 0 | O14: 0 | P14: 0 | Q14: 0 | R14: 0 | S14: 0
A15: 60 | B15: 174 | C15: Fall Mountain Regional | D15: 22960 | E15: Acworth Elementary School | F15: 24 | G15: 0 | H15: 0 | I15: 0 | J15: 0 | K15: 0 | L15: 0 | M15: 0 | N15: 0 | O15: 0 | P15: 0 | Q15: 0 | R15: 0 | S15: 0
A16: 90 | B16: 225 | C16: Hampton | D16: 20795 | E16: Adeline C. Marston School | F16: 284 | G16: 0 | H16: 0 | I16: 0 | J16: 0 | K16: 0 | L16: 0 | M16: 0 | N16: 0 | O16: 0 | P16: 0 | Q16: 0 | R16: 0 | S16: 0
A17: 53 | B17: 9 | C17: Allenstown | D17: 22580 | E17: Allenstown Elementary School | F17: 189 | G17: 0 | H17: 4 | I17: 0 | J17: 0 | K17: 0 | L17: 0 | M17: 0 | N17: 1 | O17: 1 | P17: 0 | Q17: 6 | R17: 5 | S17: 0
A18: 60 | B18: 174 | C18: Fall Mountain Regional | D18: 22965 | E18: Alstead Primary School | F18: 80 | G18: 4 | H18: 2 | I18: 0 | J18: 0 | K18: 0 | L18: 0 | M18: 0 | N18: 0 | O18: 0 | P18: 0 | Q18: 0 | R18: 2 | S18: 0
A19: 72 | B19: 15 | C19: Alton | D19: 22480 | E19: Alton Central School (Elem) | F19: 419 | G19: 0 | H19: 3 | I19: 1 | J19: 1 | K19: 0 | L19: 0 | M19: 0 | N19: 0 | O19: 0 | P19: 0 | Q19: 0 | R19: 6 | S19: 0
A20: 81 | B20: 267 | C20: Hudson | D20: 21050 | E20: Alvirne High School | F20: 1091 | G20: 3 | H20: 9 | I20: 0 | J20: 20 | K20: 0 | L20: 1 | M20: 9 | N20: 5 | O20: 6 | P20: 45 | Q20: 37 | R20: 61 | S20: 0
A21: 39 | B21: 17 | C21: Amherst | D21: 21745 | E21: Amherst Middle School | F21: 612 | G21: 0 | H21: 15 | I21: 0 | J21: 2 | K21: 0 | L21: 0 | M21: 1 | N21: 2 | O21: 2 | P21: 5 | Q21: 26 | R21: 1 | S21: 0
A22: 42 | B22: 371 | C22: Nashua | D22: 21940 | E22: Amherst Street School | F22: 266 | G22: 0 | H22: 0 | I22: 0 | J22: 0 | K22: 0 | L22: 0 | M22: 0 | N22: 0 | O22: 0 | P22: 0 | Q22: 0 | R22: 0 | S22: 0
A23: 46 | B23: 19 | C23: Andover | D23: 22130 | E23: Andover Elementary School | F23: 225 | G23: 0 | H23: 0 | I23: 0 | J23: 1 | K23: 0 | L23: 0 | M23: 1 | N23: 0 | O23: 0 | P23: 0 | Q23: 5 | R23: 2 | S23: 0
A24: 1 | B24: 112 | C24: Contoocook Valley | D24: 22215 | E24: Antrim Elementary School | F24: 117 | G24: 0 | H24: 3 | I24: 0 | J24: 0 | K24: 0 | L24: 0 | M24: 0 | N24: 0 | O24: 0 | P24: 0 | Q24: 0 | R24: 1 | S24: 0
A25: 53 | B25: 9 | C25: Allenstown | D25: 22575 | E25: Armand R. Dupont School | F25: 154 | G25: 0 | H25: 0 | I25: 0 | J25: 0 | K25: 0 | L25: 0 | M25: 0 | N25: 2 | O25: 0 | P25: 3 | Q25: 1 | R25: 4 | S25: 0
A26: 2 | B26: 23 | C26: Ashland | D26: 20010 | E26: Ashland Elementary School | F26: 159 | G26: 0 | H26: 0 | I26: 0 | J26: 0 | K26: 0 | L26: 0 | M26: 0 | N26: 0 | O26: 0 | P26: 0 | Q26: 2 | R26: 1 | S26: 0
A27: 55 | B27: 534 | C27: Timberlane Regional | D27: 22740 | E27: Atkinson Academy | F27: 336 | G27: 0 | H27: 0 | I27: 0 | J27: 0 | K27: 0 | L27: 0 | M27: 0 | N27: 0 | O27: 0 | P27: 0 | Q27: 0 | R27: 0 | S27: 0
A28: 15 | B28: 29 | C28: Auburn | D28: 20530 | E28: Auburn Village School | F28: 603 | G28: 12 | H28: 12 | I28: 0 | J28: 0 | K28: 0 | L28: 0 | M28: 0 | N28: 1 | O28: 2 | P28: 0 | Q28: 13 | R28: 13 | S28: 0
A29: 37 | B29: 335 | C29: Manchester | D29: 21545 | E29: Bakersville School | F29: 402 | G29: 0 | H29: 0 | I29: 0 | J29: 0 | K29: 0 | L29: 0 | M29: 3 | N29: 0 | O29: 0 | P29: 6 | Q29: 0 | R29: 9 | S29: 0
A30: 86 | B30: 31 | C30: Barnstead | D30: 22485 | E30: Barnstead Elementary School | F30: 449 | G30: 0 | H30: 10 | I30: 0 | J30: 0 | K30: 0 | L30: 0 | M30: 1 | N30: 0 | O30: 0 | P30: 1 | Q30: 5 | R30: 12 | S30: 0
A31: 74 | B31: 33 | C31: Barrington | D31: 22045 | E31: Barrington Elementary School | F31: 376 | G31: 0 | H31: 0 | I31: 0 | J31: 0 | K31: 0 | L31: 0 | M31: 0 | N31: 0 | O31: 0 | P31: 3 | Q31: 2 | R31: 1 | S31: 0
